Workbook

Sheet 西秀区
A1: 附件1 西秀区2022年“特岗计划”教师招聘总成绩统计情况表
A2: 序号 | B2: 报考县区 | C2: 报考学段 | D2: 报考学科 | E2: 笔试准考证号 | F2: 笔试得分 | G2: 折算成绩(占总成绩50%） | H2: 面试得分 | I2: 折算成绩(占总成绩50%） | J2: 总成绩 | K2: 备注
A3: 1 | B3: 西秀区 | C3: 小学 | D3: 语文 | E3: AS01202202300 | F3: 64 | G3: =F3*0.5 -> 32.00 | H3: 67.4 | I3: =H3*0.5 -> 33.70 | J3: =G3+I3 -> 65.70
A4: 2 | B4: 西秀区 | C4: 小学 | D4: 语文 | E4: AS01202202232 | F4: 64 | G4: 32.00 | H4: 76 | I4: 38.00 | J4: 70.00
A5: 3 | B5: 西秀区 | C5: 小学 | D5: 语文 | E5: AS01202202255 | F5: 64 | G5: 32.00 | H5: 72.8 | I5: 36.40 | J5: 68.40
A6: 4 | B6: 西秀区 | C6: 小学 | D6: 语文 | E6: AS01202202099 | F6: 69 | G6: 34.50 | H6: 76 | I6: 38.00 | J6: 72.50
A7: 5 | B7: 西秀区 | C7: 小学 | D7: 语文 | E7: AS01202202248 | F7: 62 | G7: 31.00 | H7: 68 | I7: 34.00 | J7: 65.00
A8: 6 | B8: 西秀区 | C8: 小学 | D8: 语文 | E8: AS01202202073 | F8: 68 | G8: 34.00 | H8: 73.2 | I8: 36.60 | J8: 70.60
A9: 7 | B9: 西秀区 | C9: 小学 | D9: 语文 | E9: AS01202202272 | F9: 66 | G9: 33.00 | H9: 78.8 | I9: 39.40 | J9: 72.40
A10: 8 | B10: 西秀区 | C10: 小学 | D10: 语文 | E10: AS01202202177 | F10: 69 | G10: 34.50 | H10: 73.2 | I10: 36.60 | J10: 71.10
A11: 9 | B11: 西秀区 | C11: 小学 | D11: 语文 | E11: AS01202202117 | F11: 74 | G11: 37.00 | H11: 85.6 | I11: 42.80 | J11: 79.80
A12: 10 | B12: 西秀区 | C12: 小学 | D12: 语文 | E12: AS01202202145 | F12: 62 | G12: 31.00 | H12: 74 | I12: 37.00 | J12: 68.00
A13: 11 | B13: 西秀区 | C13: 小学 | D13: 语文 | E13: AS01202202063 | F13: 65 | G13: 32.50 | H13: 73.4 | I13: 36.70 | J13: 69.20
A14: 12 | B14: 西秀区 | C14: 小学 | D14: 语文 | E14: AS01202202052 | F14: 66 | G14: 33.00 | H14: 72.4 | I14: 36.20 | J14: 69.20
A15: 13 | B15: 西秀区 | C15: 小学 | D15: 语文 | E15: AS01202202220 | F15: 62 | G15: 31.00 | H15: 82.2 | I15: 41.10 | J15: 72.10
A16: 14 | B16: 西秀区 | C16: 小学 | D16: 语文 | E16: AS01202202216 | F16: 64 | G16: 32.00 | H16: 71.8 | I16: 35.90 | J16: 67.90
A17: 15 | B17: 西秀区 | C17: 小学 | D17: 语文 | E17: AS01202202109 | F17: 65 | G17: 32.50 | H17: 75 | I17: 37.50 | J17: 70.00
A18: 16 | B18: 西秀区 | C18: 小学 | D18: 语文 | E18: AS01202202222 | F18: 62 | G18: 31.00 | H18: 75.8 | I18: 37.90 | J18: 68.90
A19: 17 | B19: 西秀区 | C19: 小学 | D19: 语文 | E19: AS01202202087 | F19: 64 | G19: 32.00 | H19: 74.6 | I19: 37.30 | J19: 69.30
A20: 18 | B20: 西秀区 | C20: 小学 | D20: 语文 | E20: AS01202202133 | F20: 68 | G20: 34.00 | H20: 78 | I20: 39.00 | J20: 73.00
A21: 19 | B21: 西秀区 | C21: 小学 | D21: 语文 | E21: AS01202202293 | F21: 64 | G21: 32.00 | H21: 82 | I21: 41.00 | J21: 73.00
A22: 20 | B22: 西秀区 | C22: 小学 | D22: 语文 | E22: AS01202202088 | F22: 71 | G22: 35.50 | H22: 73 | I22: 36.50 | J22: 72.00
A23: 21 | B23: 西秀区 | C23: 小学 | D23: 语文 | E23: AS01202202235 | F23: 65 | G23: 32.50 | H23: 80.4 | I23: 40.20 | J23: 72.70
A24: 22 | B24: 西秀区 | C24: 小学 | D24: 语文 | E24: AS01202202198 | F24: 62 | G24: 31.00 | H24: 76 | I24: 38.00 | J24: 69.00
A25: 23 | B25: 西秀区 | C25: 小学 | D25: 语文 | E25: AS01202202229 | F25: 71 | G25: 35.50 | H25: 77.8 | I25: 38.90 | J25: 74.40
A26: 24 | B26: 西秀区 | C26: 小学 | D26: 语文 | E26: AS01202202086 | F26: 63 | G26: 31.50 | H26: 74 | I26: 37.00 | J26: 68.50
A27: 25 | B27: 西秀区 | C27: 小学 | D27: 语文 | E27: AS01202202070 | F27: 70 | G27: 35.00 | H27: 77.8 | I27: 38.90 | J27: 73.90
A28: 26 | B28: 西秀区 | C28: 小学 | D28: 语文 | E28: AS01202202120 | F28: 76 | G28: 38.00 | H28: 78.8 | I28: 39.40 | J28: 77.40
A29: 27 | B29: 西秀区 | C29: 小学 | D29: 语文 | E29: AS01202202123 | F29: 65 | G29: 32.50 | H29: 75.8 | I29: 37.90 | J29: 70.40
A30: 28 | B30: 西秀区 | C30: 小学 | D30: 语文 | E30: AS01202202110 | F30: 69 | G30: 34.50 | H30: 80 | I30: 40.00 | J30: 74.50
A31: 29 | B31: 西秀区 | C31: 小学 | D31: 语文 | E31: AS01202202328 | F31: 63 | G31: 31.50 | H31: 80 | I31: 40.00 | J31: 71.50
A32: 30 | B32: 西秀区 | C32: 小学 | D32: 语文 | E32: AS01202202183 | F32: 72 | G32: 36.00 | H32: 79.8 | I32: 39.90 | J32: 75.90
A33: 31 | B33: 西秀区 | C33: 小学 | D33: 语文 | E33: AS01202202263 | F33: 67 | G33: 33.50 | H33: 78.4 | I33: 39.20 | J33: 72.70
A34: 32 | B34: 西秀区 | C34: 小学 | D34: 语文 | E34: AS01202202294 | F34: 68 | G34: 34.00 | H34: 83.2 | I34: 41.60 | J34: 75.60
A35: 33 | B35: 西秀区 | C35: 小学 | D35: 语文 | E35: AS01202202114 | F35: 68 | G35: 34.00 | H35: 76.8 | I35: 38.40 | J35: 72.40
A36: 34 | B36: 西秀区 | C36: 小学 | D36: 语文 | E36: AS01202202245 | F36: 64 | G36: 32.00 | H36: 74 | I36: 37.00 | J36: 69.00
A37: 35 | B37: 西秀区 | C37: 小学 | D37: 语文 | E37: AS01202202230 | F37: 74 | G37: 37.00 | H37: 74 | I37: 37.00 | J37: 74.00
A38: 36 | B38: 西秀区 | C38: 小学 | D38: 语文 | E38: AS01202202113 | F38: 63 | G38: 31.50 | H38: 71.4 | I38: 35.70 | J38: 67.20
A39: 37 | B39: 西秀区 | C39: 小学 | D39: 语文 | E39: AS01202202148 | F39: 68 | G39: 34.00 | H39: 78.4 | I39: 39.20 | J39: 73.20 | K39: 最后一名总成绩出现并列的，满足优先录取条件之一的进入体检，均满足或均不满足优先聘用条件的依次以笔试成绩，从高分到低分确定体检人员。
A40: 38 | B40: 西秀区 | C40: 小学 | D40: 语文 | E40: AS01202202092 | F40: 70 | G40: 35.00 | H40: 77.8 | I40: 38.90 | J40: 73.90
A41: 39 | B41: 西秀区 | C41: 小学 | D41: 语文 | E41: AS01202202322 | F41: 69 | G41: 34.50 | H41: 75.6 | I41: 37.80 | J41: 72.30
A42: 40 | B42: 西秀区 | C42: 小学 | D42: 语文 | E42: AS01202202162 | F42: 64 | G42: 32.00 | H42: 64 | I42: 32.00 | J42: 64.00
A43: 41 | B43: 西秀区 | C43: 小学 | D43: 语文 | E43: AS01202202105 | F43: 77 | G43: 38.50 | H43: 79.8 | I43: 39.90 | J43: 78.40
A44: 42 | B44: 西秀区 | C44: 小学 | D44: 语文 | E44: AS01202202297 | F44: 64 | G44: 32.00 | H44: 70.6 | I44: 35.30 | J44: 67.30
A45: 43 | B45: 西秀区 | C45: 小学 | D45: 语文 | E45: AS01202202084 | F45: 63 | G45: 31.50 | H45: 76.8 | I45: 38.40 | J45: 69.90
A46: 44 | B46: 西秀区 | C46: 小学 | D46: 语文 | E46: AS01202202223 | F46: 72 | G46: 36.00 | H46: 76.2 | I46: 38.10 | J46: 74.10
A47: 45 | B47: 西秀区 | C47: 小学 | D47: 语文 | E47: AS01202202256 | F47: 73 | G47: 36.50 | H47: 75.8 | I47: 37.90 | J47: 74.40
A48: 46 | B48: 西秀区 | C48: 小学 | D48: 语文 | E48: AS01202202277 | F48: 67 | G48: 33.50 | H48: 73.6 | I48: 36.80 | J48: 70.30
A49: 47 | B49: 西秀区 | C49: 小学 | D49: 语文 | E49: AS01202202226 | F49: 71 | G49: 35.50 | H49: 74.2 | I49: 37.10 | J49: 72.60
A50: 48 | B50: 西秀区 | C50: 小学 | D50: 语文 | E50: AS01202202165 | F50: 66 | G50: 33.00 | H50: 81.2 | I50: 40.60 | J50: 73.60
A51: 49 | B51: 西秀区 | C51: 小学 | D51: 语文 | E51: AS01202202210 | F51: 62 | G51: 31.00 | H51: 84.8 | I51: 42.40 | J51: 73.40
A52: 50 | B52: 西秀区 | C52: 小学 | D52: 语文 | E52: AS01202202206 | F52: 64 | G52: 32.00 | H52: 缺考 | I52: 0.00 | J52: 32.00 | K52: 面试缺考
A53: 51 | B53: 西秀区 | C53: 小学 | D53: 语文 | E53: AS01202202271 | F53: 69 | G53: 34.50 | H53: 80.6 | I53: =H53*0.5 -> 40.30 | J53: =G53+I53 -> 74.80
A54: 52 | B54: 西秀区 | C54: 小学 | D54: 语文 | E54: AS01202202215 | F54: 65 | G54: 32.50 | H54: 78.2 | I54: 39.10 | J54: 71.60
A55: 53 | B55: 西秀区 | C55: 小学 | D55: 语文 | E55: AS01202202196 | F55: 67 | G55: 33.50 | H55: 79.8 | I55: 39.90 | J55: 73.40
A56: 54 | B56: 西秀区 | C56: 小学 | D56: 语文 | E56: AS01202202155 | F56: 63 | G56: 31.50 | H56: 78.2 | I56: 39.10 | J56: 70.60
A57: 55 | B57: 西秀区 | C57: 小学 | D57: 语文 | E57: AS01202202057 | F57: 67 | G57: 33.50 | H57: 77.8 | I57: 38.90 | J57: 72.40
A58: 56 | B58: 西秀区 | C58: 小学 | D58: 语文 | E58: AS01202202068 | F58: 67 | G58: 33.50 | H58: 79.6 | I58: 39.80 | J58: 73.30
A59: 57 | B59: 西秀区 | C59: 小学 | D59: 语文 | E59: AS01202202053 | F59: 63 | G59: 31.50 | H59: 73 | I59: 36.50 | J59: 68.00
A60: 58 | B60: 西秀区 | C60: 小学 | D60: 语文 | E60: AS01202202302 | F60: 63 | G60: 31.50 | H60: 80.2 | I60: 40.10 | J60: 71.60
A61: 59 | B61: 西秀区 | C61: 小学 | D61: 语文 | E61: AS01202202127 | F61: 64 | G61: 32.00 | H61: 86.8 | I61: 43.40 | J61: 75.40
A62: 60 | B62: 西秀区 | C62: 小学 | D62: 语文 | E62: AS01202202075 | F62: 62 | G62: 31.00 | H62: 79.4 | I62: 39.70 | J62: 70.70
A63: 61 | B63: 西秀区 | C63: 小学 | D63: 语文 | E63: AS01202202312 | F63: 73 | G63: 36.50 | H63: 73 | I63: 36.50 | J63: 73.00
A64: 62 | B64: 西秀区 | C64: 小学 | D64: 语文 | E64: AS01202202308 | F64: 62 | G64: 31.00 | H64: 79.6 | I64: 39.80 | J64: 70.80
A65: 63 | B65: 西秀区 | C65: 小学 | D65: 语文 | E65: AS01202202280 | F65: 68 | G65: 34.00 | H65: 76.4 | I65: 38.20 | J65: 72.20
A66: 64 | B66: 西秀区 | C66: 小学 | D66: 语文 | E66: AS01202202242 | F66: 70 | G66: 35.00 | H66: 77.6 | I66: 38.80 | J66: 73.80
A67: 65 | B67: 西秀区 | C67: 小学 | D67: 语文 | E67: AS01202202332 | F67: 65 | G67: =F67*0.5 -> 32.50 | H67: 21.4 | I67: 10.70 | J67: 43.20
A68: 66 | B68: 西秀区 | C68: 小学 | D68: 语文 | E68: AS01202202090 | F68: 67 | G68: 33.50 | H68: 79.4 | I68: 39.70 | J68: 73.20
A69: 67 | B69: 西秀区 | C69: 小学 | D69: 语文 | E69: AS01202202135 | F69: 69 | G69: 34.50 | H69: 83 | I69: 41.50 | J69: 76.00
A70: 68 | B70: 西秀区 | C70: 小学 | D70: 语文 | E70: AS01202202104 | F70: 67 | G70: 33.50 | H70: 80.6 | I70: 40.30 | J70: 73.80
A71: 69 | B71: 西秀区 | C71: 小学 | D71: 语文 | E71: AS01202202292 | F71: 62 | G71: 31.00 | H71: 78 | I71: 39.00 | J71: 70.00
A72: 70 | B72: 西秀区 | C72: 小学 | D72: 语文 | E72: AS01202202284 | F72: 69 | G72: 34.50 | H72: 77.2 | I72: 38.60 | J72: 73.10
A73: 71 | B73: 西秀区 | C73: 小学 | D73: 语文 | E73: AS01202202323 | F73: 66 | G73: 33.00 | H73: 缺考 | I73: 0.00 | J73: 33.00 | K73: 面试缺考
A74: 72 | B74: 西秀区 | C74: 小学 | D74: 语文 | E74: AS01202202268 | F74: 64 | G74: 32.00 | H74: 缺考 | I74: 0.00 | J74: 32.00 | K74: 面试缺考
A75: 73 | B75: 西秀区 | C75: 小学 | D75: 语文 | E75: AS01202202298 | F75: 63 | G75: 31.50 | H75: 缺考 | I75: 0.00 | J75: 31.50 | K75: 面试缺考
A76: 74 | B76: 西秀区 | C76: 小学 | D76: 语文 | E76: AS01202202278 | F76: 62 | G76: 31.00 | H76: 缺考 | I76: 0.00 | J76: 31.00 | K76: 面试缺考
A77: 75 | B77: 西秀区 | C77: 小学 | D77: 语文 | E77: AS01202202342 | F77: 62 | G77: 31.00 | H77: 缺考 | I77: 0.00 | J77: 31.00 | K77: 面试缺考
A78: 76 | B78: 西秀区 | C78: 初中 | D78: 语文 | E78: AS01202201967 | F78: 69 | G78: 34.50 | H78: 79.4 | I78: =H78*0.5 -> 39.70 | J78: =G78+I78 -> 74.20
A79: 77 | B79: 西秀区 | C79: 初中 | D79: 语文 | E79: AS01202201718 | F79: 70 | G79: 35.00 | H79: 84 | I79: 42.00 | J79: 77.00
A80: 78 | B80: 西秀区 | C80: 初中 | D80: 语文 | E80: AS01202202011 | F80: 67 | G80: 33.50 | H80: 75.6 | I80: 37.80 | J80: 71.30
A81: 79 | B81: 西秀区 | C81: 初中 | D81: 语文 | E81: AS01202201778 | F81: 70 | G81: 35.00 | H81: 81 | I81: 40.50 | J81: 75.50
A82: 80 | B82: 西秀区 | C82: 初中 | D82: 语文 | E82: AS01202201882 | F82: 70 | G82: 35.00 | H82: 84.8 | I82: 42.40 | J82: 77.40
A83: 81 | B83: 西秀区 | C83: 初中 | D83: 语文 | E83: AS01202201827 | F83: 71 | G83: 35.50 | H83: 89.2 | I83: 44.60 | J83: 80.10
A84: 82 | B84: 西秀区 | C84: 初中 | D84: 语文 | E84: AS01202201720 | F84: 70 | G84: 35.00 | H84: 82 | I84: 41.00 | J84: 76.00
A85: 83 | B85: 西秀区 | C85: 初中 | D85: 语文 | E85: AS01202201994 | F85: 68 | G85: 34.00 | H85: 83 | I85: 41.50 | J85: 75.50
A86: 84 | B86: 西秀区 | C86: 初中 | D86: 语文 | E86: AS01202201835 | F86: 68 | G86: 34.00 | H86: 75.6 | I86: 37.80 | J86: 71.80
A87: 85 | B87: 西秀区 | C87: 初中 | D87: 语文 | E87: AS01202201820 | F87: 76 | G87: 38.00 | H87: 88 | I87: 44.00 | J87: 82.00
A88: 86 | B88: 西秀区 | C88: 初中 | D88: 语文 | E88: AS01202201968 | F88: 73 | G88: 36.50 | H88: 85.2 | I88: 42.60 | J88: 79.10
A89: 87 | B89: 西秀区 | C89: 初中 | D89: 语文 | E89: AS01202201839 | F89: 67 | G89: 33.50 | H89: 84 | I89: 42.00 | J89: 75.50
A90: 88 | B90: 西秀区 | C90: 初中 | D90: 语文 | E90: AS01202201832 | F90: 67 | G90: 33.50 | H90: 73 | I90: 36.50 | J90: 70.00
A91: 89 | B91: 西秀区 | C91: 初中 | D91: 语文 | E91: AS01202201837 | F91: 72 | G91: 36.00 | H91: 87.2 | I91: 43.60 | J91: 79.60
A92: 90 | B92: 西秀区 | C92: 初中 | D92: 语文 | E92: AS01202201965 | F92: 69 | G92: 34.50 | H92: 82.2 | I92: 41.10 | J92: 75.60
A93: 91 | B93: 西秀区 | C93: 初中 | D93: 语文 | E93: AS01202201811 | F93: 69 | G93: 34.50 | H93: 73.4 | I93: 36.70 | J93: 71.20
A94: 92 | B94: 西秀区 | C94: 初中 | D94: 语文 | E94: AS01202201722 | F94: 71 | G94: 35.50 | H94: 91.2 | I94: 45.60 | J94: 81.10
A95: 93 | B95: 西秀区 | C95: 初中 | D95: 语文 | E95: AS01202201765 | F95: 69 | G95: 34.50 | H95: 85 | I95: 42.50 | J95: 77.00
A96: 94 | B96: 西秀区 | C96: 初中 | D96: 语文 | E96: AS01202201807 | F96: 73 | G96: 36.50 | H96: 89.6 | I96: 44.80 | J96: 81.30
A97: 95 | B97: 西秀区 | C97: 初中 | D97: 语文 | E97: AS01202202027 | F97: 73 | G97: 36.50 | H97: 85.2 | I97: 42.60 | J97: 79.10
A98: 96 | B98: 西秀区 | C98: 初中 | D98: 语文 | E98: AS01202201813 | F98: 68 | G98: 34.00 | H98: 74.8 | I98: 37.40 | J98: 71.40
A99: 97 | B99: 西秀区 | C99: 初中 | D99: 语文 | E99: AS01202201828 | F99: 69 | G99: 34.50 | H99: 86 | I99: 43.00 | J99: 77.50
A100: 98 | B100: 西秀区 | C100: 初中 | D100: 语文 | E100: AS01202201846 | F100: 76 | G100: 38.00 | H100: 83.2 | I100: 41.60 | J100: 79.60
A101: 99 | B101: 西秀区 | C101: 初中 | D101: 语文 | E101: AS01202201906 | F101: 70 | G101: 35.00 | H101: 80 | I101: 40.00 | J101: 75.00
A102: 100 | B102: 西秀区 | C102: 初中 | D102: 语文 | E102: AS01202201873 | F102: 71 | G102: 35.50 | H102: 80.8 | I102: 40.40 | J102: 75.90
A103: 101 | B103: 西秀区 | C103: 初中 | D103: 语文 | E103: AS01202201988 | F103: 69 | G103: 34.50 | H103: 79 | I103: 39.50 | J103: 74.00
A104: 102 | B104: 西秀区 | C104: 初中 | D104: 语文 | E104: AS01202201901 | F104: 70 | G104: 35.00 | H104: 85 | I104: 42.50 | J104: 77.50
A105: 103 | B105: 西秀区 | C105: 初中 | D105: 语文 | E105: AS01202201885 | F105: 69 | G105: 34.50 | H105: 84.8 | I105: 42.40 | J105: 76.90
A106: 104 | B106: 西秀区 | C106: 初中 | D106: 语文 | E106: AS01202201743 | F106: 76 | G106: 38.00 | H106: 81.8 | I106: 40.90 | J106: 78.90
A107: 105 | B107: 西秀区 | C107: 初中 | D107: 语文 | E107: AS01202201903 | F107: 73 | G107: 36.50 | H107: 85.8 | I107: 42.90 | J107: 79.40
A108: 106 | B108: 西秀区 | C108: 初中 | D108: 语文 | E108: AS01202201789 | F108: 67 | G108: 33.50 | H108: 83.4 | I108: 41.70 | J108: 75.20
A109: 107 | B109: 西秀区 | C109: 初中 | D109: 语文 | E109: AS01202202000 | F109: 76 | G109: 38.00 | H109: 90.2 | I109: 45.10 | J109: 83.10
A110: 108 | B110: 西秀区 | C110: 初中 | D110: 语文 | E110: AS01202201762 | F110: 75 | G110: 37.50 | H110: 83 | I110: 41.50 | J110: 79.00
A111: 109 | B111: 西秀区 | C111: 初中 | D111: 语文 | E111: AS01202201716 | F111: 73 | G111: 36.50 | H111: 77.4 | I111: 38.70 | J111: 75.20
A112: 110 | B112: 西秀区 | C112: 初中 | D112: 语文 | E112: AS01202201919 | F112: 70 | G112: 35.00 | H112: 82.8 | I112: 41.40 | J112: 76.40
A113: 111 | B113: 西秀区 | C113: 初中 | D113: 语文 | E113: AS01202201836 | F113: 67 | G113: 33.50 | H113: 82 | I113: 41.00 | J113: 74.50
A114: 112 | B114: 西秀区 | C114: 初中 | D114: 语文 | E114: AS01202201770 | F114: 70 | G114: 35.00 | H114: 82.6 | I114: 41.30 | J114: 76.30
A115: 113 | B115: 西秀区 | C115: 初中 | D115: 语文 | E115: AS01202202005 | F115: 67 | G115: 33.50 | H115: 76.6 | I115: 38.30 | J115: 71.80
A116: 114 | B116: 西秀区 | C116: 初中 | D116: 语文 | E116: AS01202201898 | F116: 67 | G116: 33.50 | H116: 84.2 | I116: 42.10 | J116: 75.60
A117: 115 | B117: 西秀区 | C117: 初中 | D117: 语文 | E117: AS01202201875 | F117: 67 | G117: 33.50 | H117: 90.8 | I117: 45.40 | J117: 78.90
A118: 116 | B118: 西秀区 | C118: 初中 | D118: 语文 | E118: AS01202201843 | F118: 69 | G118: 34.50 | H118: 83.8 | I118: 41.90 | J118: 76.40
A119: 117 | B119: 西秀区 | C119: 初中 | D119: 语文 | E119: AS01202201726 | F119: 67 | G119: 33.50 | H119: 87.6 | I119: 43.80 | J119: 77.30
A120: 118 | B120: 西秀区 | C120: 初中 | D120: 语文 | E120: AS01202201773 | F120: 74 | G120: 37.00 | H120: 87.6 | I120: 43.80 | J120: 80.80
A121: 119 | B121: 西秀区 | C121: 初中 | D121: 语文 | E121: AS01202201980 | F121: 67 | G121: 33.50 | H121: 89.4 | I121: 44.70 | J121: 78.20
A122: 120 | B122: 西秀区 | C122: 初中 | D122: 语文 | E122: AS01202201957 | F122: 71 | G122: 35.50 | H122: 缺考 | I122: 0.00 | J122: 35.50 | K122: 面试缺考
A123: 121 | B123: 西秀区 | C123: 初中 | D123: 语文 | E123: AS01202201946 | F123: 67 | G123: 33.50 | H123: 缺考 | I123: 0.00 | J123: 33.50 | K123: 面试缺考
A124: 122 | B124: 西秀区 | C124: 小学 | D124: 科学 | E124: AS01202201148 | F124: 38 | G124: 19.00 | H124: 78.4 | I124: =H124*0.5 -> 39.20 | J124: =G124+I124 -> 58.20
A125: 123 | B125: 西秀区 | C125: 小学 | D125: 数学 | E125: AS01202201120 | F125: 52 | G125: 26.00 | H125: 84.8 | I125: 42.40 | J125: 68.40
A126: 124 | B126: 西秀区 | C126: 小学 | D126: 数学 | E126: AS01202201105 | F126: 62 | G126: 31.00 | H126: 76.2 | I126: 38.10 | J126: 69.10
A127: 125 | B127: 西秀区 | C127: 小学 | D127: 信息技术 | E127: AS01202201163 | F127: 41 | G127: 20.50 | H127: 83.2 | I127: 41.60 | J127: 62.10
A128: 126 | B128: 西秀区 | C128: 小学 | D128: 数学 | E128: AS01202201091 | F128: 86 | G128: 43.00 | H128: 80.4 | I128: 40.20 | J128: 83.20
A129: 127 | B129: 西秀区 | C129: 小学 | D129: 数学 | E129: AS01202201127 | F129: 72 | G129: 36.00 | H129: 87.6 | I129: 43.80 | J129: 79.80
A130: 128 | B130: 西秀区 | C130: 小学 | D130: 数学 | E130: AS01202201097 | F130: 76 | G130: 38.00 | H130: 88.2 | I130: 44.10 | J130: 82.10
A131: 129 | B131: 西秀区 | C131: 小学 | D131: 数学 | E131: AS01202201128 | F131: 45 | G131: =F131*0.5 -> 22.50 | H131: 77.6 | I131: 38.80 | J131: 61.30
A132: 130 | B132: 西秀区 | C132: 小学 | D132: 数学 | E132: AS01202201094 | F132: 85 | G132: 42.50 | H132: 81.4 | I132: 40.70 | J132: 83.20
A133: 131 | B133: 西秀区 | C133: 小学 | D133: 数学 | E133: AS01202201117 | F133: 57 | G133: 28.50 | H133: 80.8 | I133: 40.40 | J133: 68.90
A134: 132 | B134: 西秀区 | C134: 小学 | D134: 信息技术 | E134: AS01202201173 | F134: 38 | G134: 19.00 | H134: 89.4 | I134: 44.70 | J134: 63.70
A135: 133 | B135: 西秀区 | C135: 小学 | D135: 数学 | E135: AS01202201138 | F135: 71 | G135: 35.50 | H135: 87.6 | I135: 43.80 | J135: 79.30
A136: 134 | B136: 西秀区 | C136: 小学 | D136: 数学 | E136: AS01202201119 | F136: 64 | G136: 32.00 | H136: 83.2 | I136: 41.60 | J136: 73.60
A137: 135 | B137: 西秀区 | C137: 小学 | D137: 信息技术 | E137: AS01202201168 | F137: 44 | G137: 22.00 | H137: 87.2 | I137: 43.60 | J137: 65.60
A138: 136 | B138: 西秀区 | C138: 小学 | D138: 科学 | E138: AS01202201144 | F138: 42 | G138: 21.00 | H138: 81 | I138: 40.50 | J138: 61.50
A139: 137 | B139: 西秀区 | C139: 小学 | D139: 数学 | E139: AS01202201140 | F139: 80 | G139: 40.00 | H139: 77.4 | I139: 38.70 | J139: 78.70
A140: 138 | B140: 西秀区 | C140: 小学 | D140: 数学 | E140: AS01202201141 | F140: 62 | G140: 31.00 | H140: 80.8 | I140: 40.40 | J140: 71.40
A141: 139 | B141: 西秀区 | C141: 小学 | D141: 数学 | E141: AS01202201096 | F141: 57 | G141: 28.50 | H141: 75.6 | I141: 37.80 | J141: 66.30
A142: 140 | B142: 西秀区 | C142: 小学 | D142: 数学 | E142: AS01202201118 | F142: 37 | G142: 18.50 | H142: 74.8 | I142: 37.40 | J142: 55.90
A143: 141 | B143: 西秀区 | C143: 小学 | D143: 数学 | E143: AS01202201135 | F143: 75 | G143: 37.50 | H143: 88.2 | I143: 44.10 | J143: 81.60
A144: 142 | B144: 西秀区 | C144: 小学 | D144: 数学 | E144: AS01202201114 | F144: 81 | G144: 40.50 | H144: 87 | I144: 43.50 | J144: 84.00
A145: 143 | B145: 西秀区 | C145: 小学 | D145: 数学 | E145: AS01202201143 | F145: 51 | G145: 25.50 | H145: 79.4 | I145: 39.70 | J145: 65.20
A146: 144 | B146: 西秀区 | C146: 小学 | D146: 数学 | E146: AS01202201109 | F146: 68 | G146: 34.00 | H146: 88.6 | I146: 44.30 | J146: 78.30
A147: 145 | B147: 西秀区 | C147: 小学 | D147: 数学 | E147: AS01202201092 | F147: 82 | G147: 41.00 | H147: 84.8 | I147: 42.40 | J147: 83.40
A148: 146 | B148: 西秀区 | C148: 小学 | D148: 科学 | E148: AS01202201147 | F148: 41 | G148: 20.50 | H148: 90 | I148: 45.00 | J148: 65.50
A149: 147 | B149: 西秀区 | C149: 小学 | D149: 数学 | E149: AS01202201116 | F149: 58 | G149: 29.00 | H149: 84 | I149: 42.00 | J149: 71.00
A150: 148 | B150: 西秀区 | C150: 小学 | D150: 数学 | E150: AS01202201098 | F150: 79 | G150: 39.50 | H150: 88.2 | I150: 44.10 | J150: 83.60
A151: 149 | B151: 西秀区 | C151: 小学 | D151: 数学 | E151: AS01202201104 | F151: 70 | G151: 35.00 | H151: 85.2 | I151: 42.60 | J151: 77.60
A152: 150 | B152: 西秀区 | C152: 小学 | D152: 数学 | E152: AS01202201123 | F152: 55 | G152: 27.50 | H152: 81.4 | I152: 40.70 | J152: 68.20
A153: 151 | B153: 西秀区 | C153: 小学 | D153: 数学 | E153: AS01202201107 | F153: 56 | G153: 28.00 | H153: 缺考 | I153: 0.00 | J153: 28.00 | K153: 面试缺考
A154: 152 | B154: 西秀区 | C154: 小学 | D154: 数学 | E154: AS01202201101 | F154: 50 | G154: 25.00 | H154: 缺考 | I154: 0.00 | J154: 25.00 | K154: 面试缺考
A155: 153 | B155: 西秀区 | C155: 小学 | D155: 数学 | E155: AS01202201139 | F155: 43 | G155: 21.50 | H155: 缺考 | I155: 0.00 | J155: 21.50 | K155: 面试缺考
A156: 154 | B156: 西秀区 | C156: 小学 | D156: 数学 | E156: AS01202201103 | F156: 42 | G156: 21.00 | H156: 缺考 | I156: 0.00 | J156: 21.00 | K156: 面试缺考
A157: 155 | B157: 西秀区 | C157: 小学 | D157: 数学 | E157: AS01202201126 | F157: 41 | G157: 20.50 | H157: 缺考 | I157: 0.00 | J157: 20.50 | K157: 面试缺考
A158: 156 | B158: 西秀区 | C158: 小学 | D158: 数学 | E158: AS01202201100 | F158: 40 | G158: 20.00 | H158: 缺考 | I158: 0.00 | J158: 20.00 | K158: 面试缺考
A159: 157 | B159: 西秀区 | C159: 小学 | D159: 数学 | E159: AS01202201136 | F159: 39 | G159: 19.50 | H159: 缺考 | I159: 0.00 | J159: 19.50 | K159: 面试缺考
A160: 158 | B160: 西秀区 | C160: 小学 | D160: 数学 | E160: AS01202201113 | F160: 37 | G160: 18.50 | H160: 缺考 | I160: 0.00 | J160: 18.50 | K160: 面试缺考
A161: 159 | B161: 西秀区 | C161: 小学 | D161: 数学 | E161: AS01202201125 | F161: 37 | G161: 18.50 | H161: 缺考 | I161: 0.00 | J161: 18.50 | K161: 面试缺考
A162: 160 | B162: 西秀区 | C162: 小学 | D162: 数学 | E162: AS01202201093 | F162: 35 | G162: 17.50 | H162: 缺考 | I162: 0.00 | J162: 17.50 | K162: 面试缺考
A163: 161 | B163: 西秀区 | C163: 小学 | D163: 数学 | E163: AS01202201095 | F163: 35 | G163: 17.50 | H163: 缺考 | I163: 0.00 | J163: 17.50 | K163: 面试缺考
A164: 162 | B164: 西秀区 | C164: 初中 | D164: 数学 | E164: AS01202201040 | F164: 70 | G164: 35.00 | H164: 78 | I164: =H164*0.5 -> 39.00 | J164: =G164+I164 -> 74.00
A165: 163 | B165: 西秀区 | C165: 初中 | D165: 数学 | E165: AS01202200993 | F165: 79 | G165: 39.50 | H165: 87 | I165: 43.50 | J165: 83.00
A166: 164 | B166: 西秀区 | C166: 初中 | D166: 数学 | E166: AS01202201049 | F166: 75 | G166: 37.50 | H166: 79.4 | I166: 39.70 | J166: 77.20
A167: 165 | B167: 西秀区 | C167: 初中 | D167: 数学 | E167: AS01202201022 | F167: 76 | G167: 38.00 | H167: 86.4 | I167: 43.20 | J167: 81.20
A168: 166 | B168: 西秀区 | C168: 初中 | D168: 信息技术 | E168: AS01202201159 | F168: 50 | G168: 25.00 | H168: 78.6 | I168: 39.30 | J168: 64.30
A169: 167 | B169: 西秀区 | C169: 初中 | D169: 数学 | E169: AS01202201001 | F169: 78 | G169: 39.00 | H169: 79 | I169: 39.50 | J169: 78.50
A170: 168 | B170: 西秀区 | C170: 初中 | D170: 数学 | E170: AS01202201021 | F170: 78 | G170: 39.00 | H170: 87.8 | I170: 43.90 | J170: 82.90
A171: 169 | B171: 西秀区 | C171: 初中 | D171: 数学 | E171: AS01202201033 | F171: 80 | G171: 40.00 | H171: 79 | I171: 39.50 | J171: 79.50
A172: 170 | B172: 西秀区 | C172: 初中 | D172: 数学 | E172: AS01202200983 | F172: 81 | G172: 40.50 | H172: 78.6 | I172: 39.30 | J172: 79.80
A173: 171 | B173: 西秀区 | C173: 初中 | D173: 数学 | E173: AS01202201045 | F173: 76 | G173: 38.00 | H173: 80.6 | I173: 40.30 | J173: 78.30
A174: 172 | B174: 西秀区 | C174: 初中 | D174: 数学 | E174: AS01202200987 | F174: 78 | G174: 39.00 | H174: 84.8 | I174: 42.40 | J174: 81.40
A175: 173 | B175: 西秀区 | C175: 初中 | D175: 数学 | E175: AS01202200980 | F175: 81 | G175: 40.50 | H175: 84.4 | I175: 42.20 | J175: 82.70
A176: 174 | B176: 西秀区 | C176: 初中 | D176: 数学 | E176: AS01202200988 | F176: 78 | G176: 39.00 | H176: 82.4 | I176: 41.20 | J176: 80.20
A177: 175 | B177: 西秀区 | C177: 初中 | D177: 数学 | E177: AS01202200986 | F177: 84 | G177: 42.00 | H177: 87 | I177: 43.50 | J177: 85.50
A178: 176 | B178: 西秀区 | C178: 初中 | D178: 数学 | E178: AS01202200984 | F178: 80 | G178: 40.00 | H178: 87 | I178: 43.50 | J178: 83.50
A179: 177 | B179: 西秀区 | C179: 初中 | D179: 数学 | E179: AS01202201080 | F179: 78 | G179: 39.00 | H179: 78.4 | I179: 39.20 | J179: 78.20
A180: 178 | B180: 西秀区 | C180: 初中 | D180: 数学 | E180: AS01202201051 | F180: 86 | G180: 43.00 | H180: 82.4 | I180: 41.20 | J180: 84.20
A181: 179 | B181: 西秀区 | C181: 初中 | D181: 数学 | E181: AS01202201000 | F181: 75 | G181: 37.50 | H181: 81 | I181: 40.50 | J181: 78.00
A182: 180 | B182: 西秀区 | C182: 初中 | D182: 数学 | E182: AS01202201053 | F182: 74 | G182: 37.00 | H182: 79 | I182: 39.50 | J182: 76.50
A183: 181 | B183: 西秀区 | C183: 初中 | D183: 数学 | E183: AS01202201054 | F183: 85 | G183: 42.50 | H183: 81.2 | I183: 40.60 | J183: 83.10
A184: 182 | B184: 西秀区 | C184: 初中 | D184: 数学 | E184: AS01202201076 | F184: 70 | G184: 35.00 | H184: 88.4 | I184: 44.20 | J184: 79.20
A185: 183 | B185: 西秀区 | C185: 初中 | D185: 信息技术 | E185: AS01202201157 | F185: 73 | G185: 36.50 | H185: 87 | I185: 43.50 | J185: 80.00
A186: 184 | B186: 西秀区 | C186: 初中 | D186: 数学 | E186: AS01202201058 | F186: 73 | G186: 36.50 | H186: 83.8 | I186: 41.90 | J186: 78.40
A187: 185 | B187: 西秀区 | C187: 初中 | D187: 数学 | E187: AS01202201025 | F187: 72 | G187: 36.00 | H187: 89.2 | I187: 44.60 | J187: 80.60
A188: 186 | B188: 西秀区 | C188: 初中 | D188: 数学 | E188: AS01202201018 | F188: 79 | G188: 39.50 | H188: 83.4 | I188: 41.70 | J188: 81.20
A189: 187 | B189: 西秀区 | C189: 初中 | D189: 数学 | E189: AS01202201023 | F189: 70 | G189: 35.00 | H189: 84.4 | I189: 42.20 | J189: 77.20
A190: 188 | B190: 西秀区 | C190: 初中 | D190: 数学 | E190: AS01202201036 | F190: 78 | G190: 39.00 | H190: 78.2 | I190: 39.10 | J190: 78.10
A191: 189 | B191: 西秀区 | C191: 初中 | D191: 数学 | E191: AS01202201030 | F191: 80 | G191: 40.00 | H191: 82 | I191: 41.00 | J191: 81.00
A192: 190 | B192: 西秀区 | C192: 初中 | D192: 数学 | E192: AS01202200982 | F192: 83 | G192: 41.50 | H192: 85.2 | I192: 42.60 | J192: 84.10
A193: 191 | B193: 西秀区 | C193: 初中 | D193: 数学 | E193: AS01202201074 | F193: 74 | G193: 37.00 | H193: 80.2 | I193: 40.10 | J193: 77.10
A194: 192 | B194: 西秀区 | C194: 初中 | D194: 数学 | E194: AS01202201085 | F194: 76 | G194: 38.00 | H194: 80.8 | I194: 40.40 | J194: 78.40
A195: 193 | B195: 西秀区 | C195: 初中 | D195: 数学 | E195: AS01202201042 | F195: 80 | G195: =F195*0.5 -> 40.00 | H195: 86 | I195: 43.00 | J195: 83.00
A196: 194 | B196: 西秀区 | C196: 初中 | D196: 数学 | E196: AS01202201075 | F196: 72 | G196: 36.00 | H196: 78.8 | I196: 39.40 | J196: 75.40
A197: 195 | B197: 西秀区 | C197: 初中 | D197: 数学 | E197: AS01202201067 | F197: 70 | G197: 35.00 | H197: 78.2 | I197: 39.10 | J197: 74.10
A198: 196 | B198: 西秀区 | C198: 初中 | D198: 数学 | E198: AS01202200981 | F198: 75 | G198: 37.50 | H198: 缺考 | I198: 0.00 | J198: 37.50 | K198: 面试缺考
A199: 197 | B199: 西秀区 | C199: 初中 | D199: 数学 | E199: AS01202200996 | F199: 75 | G199: 37.50 | H199: 缺考 | I199: 0.00 | J199: 37.50 | K199: 面试缺考
A200: 198 | B200: 西秀区 | C200: 初中 | D200: 数学 | E200: AS01202201064 | F200: 73 | G200: 36.50 | H200: 缺考 | I200: 0.00 | J200: 36.50 | K200: 面试缺考
... 276 more rows

Sheet 平坝区
A1: 附件1 平坝区2022年“特岗计划”教师招聘总成绩统计情况表
A2: 序号 | B2: 报考县区 | C2: 报考学段 | D2: 报考学科 | E2: 笔试准考证号 | F2: 笔试得分 | G2: 折算成绩(占总成绩50%） | H2: 面试得分 | I2: 折算成绩(占总成绩50%） | J2: 总成绩 | K2: 备注
A3: 1 | B3: 平坝区 | C3: 初中 | D3: 历史 | E3: AS0220220003 | F3: 57.00 | G3: =F3*0.5 -> 28.50 | H3: 93.20 | I3: =H3*0.5 -> 46.60 | J3: =G3+I3 -> 75.10
A4: 2 | B4: 平坝区 | C4: 初中 | D4: 历史 | E4: AS0220220001 | F4: 62.00 | G4: 31.00 | H4: 84.74 | I4: 42.37 | J4: 73.37
A5: 3 | B5: 平坝区 | C5: 初中 | D5: 历史 | E5: AS0220220004 | F5: 50.00 | G5: 25.00 | H5: 缺考 | I5: 0.00 | J5: 25.00 | K5: 面试缺考
A6: 4 | B6: 平坝区 | C6: 初中 | D6: 数学 | E6: AS0220220072 | F6: 90.00 | G6: 45.00 | H6: 84.10 | I6: 42.05 | J6: 87.05
A7: 5 | B7: 平坝区 | C7: 初中 | D7: 数学 | E7: AS0220220070 | F7: 66.00 | G7: 33.00 | H7: 84.62 | I7: 42.31 | J7: 75.31
A8: 6 | B8: 平坝区 | C8: 初中 | D8: 数学 | E8: AS0220220071 | F8: 52.00 | G8: 26.00 | H8: 83.04 | I8: 41.52 | J8: 67.52
A9: 7 | B9: 平坝区 | C9: 初中 | D9: 数学 | E9: AS0220220073 | F9: 46.00 | G9: 23.00 | H9: 80.58 | I9: 40.29 | J9: 63.29
A10: 8 | B10: 平坝区 | C10: 初中 | D10: 数学 | E10: AS0220220074 | F10: 31.00 | G10: 15.50 | H10: 83.34 | I10: 41.67 | J10: 57.17
A11: 9 | B11: 平坝区 | C11: 初中 | D11: 体育 | E11: AS0220220131 | F11: 70.00 | G11: 35.00 | H11: 83.50 | I11: 41.75 | J11: 76.75
A12: 10 | B12: 平坝区 | C12: 初中 | D12: 体育 | E12: AS0220220116 | F12: 62.00 | G12: 31.00 | H12: 86.84 | I12: 43.42 | J12: 74.42
A13: 11 | B13: 平坝区 | C13: 初中 | D13: 体育 | E13: AS0220220125 | F13: 69.00 | G13: 34.50 | H13: 78.82 | I13: 39.41 | J13: 73.91
A14: 12 | B14: 平坝区 | C14: 初中 | D14: 体育 | E14: AS0220220129 | F14: 66.00 | G14: 33.00 | H14: 80.20 | I14: 40.10 | J14: 73.10
A15: 13 | B15: 平坝区 | C15: 初中 | D15: 体育 | E15: AS0220220112 | F15: 56.00 | G15: 28.00 | H15: 75.98 | I15: 37.99 | J15: 65.99
A16: 14 | B16: 平坝区 | C16: 初中 | D16: 体育 | E16: AS0220220121 | F16: 48.00 | G16: 24.00 | H16: 78.48 | I16: 39.24 | J16: 63.24
A17: 15 | B17: 平坝区 | C17: 初中 | D17: 体育 | E17: AS0220220115 | F17: 53.00 | G17: 26.50 | H17: 缺考 | I17: 0.00 | J17: 26.50 | K17: 面试缺考
A18: 16 | B18: 平坝区 | C18: 初中 | D18: 体育 | E18: AS0220220130 | F18: 51.00 | G18: 25.50 | H18: 缺考 | I18: 0.00 | J18: 25.50 | K18: 面试缺考
A19: 17 | B19: 平坝区 | C19: 初中 | D19: 体育 | E19: AS0220220124 | F19: 48.00 | G19: 24.00 | H19: 缺考 | I19: 0.00 | J19: 24.00 | K19: 面试缺考
A20: 18 | B20: 平坝区 | C20: 初中 | D20: 物理 | E20: AS0220220009 | F20: 71.00 | G20: 35.50 | H20: 76.78 | I20: 38.39 | J20: 73.89
A21: 19 | B21: 平坝区 | C21: 初中 | D21: 物理 | E21: AS0220220006 | F21: 66.00 | G21: 33.00 | H21: 79.82 | I21: 39.91 | J21: 72.91
A22: 20 | B22: 平坝区 | C22: 初中 | D22: 物理 | E22: AS0220220005 | F22: 48.00 | G22: 24.00 | H22: 85.86 | I22: 42.93 | J22: 66.93
A23: 21 | B23: 平坝区 | C23: 初中 | D23: 信息技术 | E23: AS0220220094 | F23: 71.00 | G23: 35.50 | H23: 90.26 | I23: 45.13 | J23: 80.63
A24: 22 | B24: 平坝区 | C24: 初中 | D24: 信息技术 | E24: AS0220220095 | F24: 73.00 | G24: 36.50 | H24: 86.20 | I24: 43.10 | J24: 79.60
A25: 23 | B25: 平坝区 | C25: 初中 | D25: 信息技术 | E25: AS0220220090 | F25: 71.00 | G25: 35.50 | H25: 88.18 | I25: 44.09 | J25: 79.59
A26: 24 | B26: 平坝区 | C26: 初中 | D26: 音乐 | E26: AS0220220163 | F26: 54.50 | G26: 27.25 | H26: 89.84 | I26: 44.92 | J26: 72.17
A27: 25 | B27: 平坝区 | C27: 初中 | D27: 音乐 | E27: AS0220220166 | F27: 42.50 | G27: 21.25 | H27: 76.46 | I27: 38.23 | J27: 59.48
A28: 26 | B28: 平坝区 | C28: 初中 | D28: 音乐 | E28: AS0220220165 | F28: 43.50 | G28: 21.75 | H28: 72.62 | I28: 36.31 | J28: 58.06
A29: 27 | B29: 平坝区 | C29: 初中 | D29: 英语 | E29: AS0220220221 | F29: 83.00 | G29: 41.50 | H29: 86.38 | I29: 43.19 | J29: 84.69
A30: 28 | B30: 平坝区 | C30: 初中 | D30: 英语 | E30: AS0220220220 | F30: 78.00 | G30: 39.00 | H30: 75.64 | I30: 37.82 | J30: 76.82
A31: 29 | B31: 平坝区 | C31: 初中 | D31: 英语 | E31: AS0220220222 | F31: 75.00 | G31: 37.50 | H31: 缺考 | I31: 0.00 | J31: 37.50 | K31: 面试缺考
A32: 30 | B32: 平坝区 | C32: 初中 | D32: 政治 | E32: AS0220220400 | F32: 72.00 | G32: 36.00 | H32: 83.94 | I32: 41.97 | J32: 77.97
A33: 31 | B33: 平坝区 | C33: 小学 | D33: 美术 | E33: AS0220220013 | F33: 64.00 | G33: 32.00 | H33: 89.64 | I33: 44.82 | J33: 76.82
A34: 32 | B34: 平坝区 | C34: 小学 | D34: 美术 | E34: AS0220220038 | F34: 55.00 | G34: 27.50 | H34: 87.28 | I34: 43.64 | J34: 71.14
A35: 33 | B35: 平坝区 | C35: 小学 | D35: 美术 | E35: AS0220220018 | F35: 53.00 | G35: 26.50 | H35: 88.62 | I35: 44.31 | J35: 70.81
A36: 34 | B36: 平坝区 | C36: 小学 | D36: 美术 | E36: AS0220220023 | F36: 55.00 | G36: 27.50 | H36: 85.40 | I36: 42.70 | J36: 70.20
A37: 35 | B37: 平坝区 | C37: 小学 | D37: 美术 | E37: AS0220220015 | F37: 55.00 | G37: 27.50 | H37: 83.44 | I37: 41.72 | J37: 69.22
A38: 36 | B38: 平坝区 | C38: 小学 | D38: 美术 | E38: AS0220220016 | F38: 51.00 | G38: 25.50 | H38: 81.34 | I38: 40.67 | J38: 66.17
A39: 37 | B39: 平坝区 | C39: 小学 | D39: 数学 | E39: AS0220220081 | F39: 84.00 | G39: 42.00 | H39: 88.02 | I39: 44.01 | J39: 86.01
A40: 38 | B40: 平坝区 | C40: 小学 | D40: 数学 | E40: AS0220220083 | F40: 64.00 | G40: 32.00 | H40: 88.16 | I40: 44.08 | J40: 76.08
A41: 39 | B41: 平坝区 | C41: 小学 | D41: 数学 | E41: AS0220220082 | F41: 61.00 | G41: 30.50 | H41: 90.64 | I41: 45.32 | J41: 75.82
A42: 40 | B42: 平坝区 | C42: 小学 | D42: 数学 | E42: AS0220220086 | F42: 54.00 | G42: 27.00 | H42: 89.94 | I42: 44.97 | J42: 71.97
A43: 41 | B43: 平坝区 | C43: 小学 | D43: 数学 | E43: AS0220220084 | F43: 60.00 | G43: 30.00 | H43: 81.66 | I43: 40.83 | J43: 70.83
A44: 42 | B44: 平坝区 | C44: 小学 | D44: 数学 | E44: AS0220220079 | F44: 44.00 | G44: 22.00 | H44: 84.30 | I44: 42.15 | J44: 64.15
A45: 43 | B45: 平坝区 | C45: 小学 | D45: 数学 | E45: AS0220220088 | F45: 35.00 | G45: 17.50 | H45: 83.42 | I45: 41.71 | J45: 59.21
A46: 44 | B46: 平坝区 | C46: 小学 | D46: 数学 | E46: AS0220220087 | F46: 28.00 | G46: 14.00 | H46: 84.40 | I46: 42.20 | J46: 56.20
A47: 45 | B47: 平坝区 | C47: 小学 | D47: 数学 | E47: AS0220220076 | F47: 29.00 | G47: 14.50 | H47: 缺考 | I47: 0.00 | J47: 14.50 | K47: 面试缺考
A48: 46 | B48: 平坝区 | C48: 小学 | D48: 体育 | E48: AS0220220134 | F48: 76.00 | G48: 38.00 | H48: 81.02 | I48: 40.51 | J48: 78.51
A49: 47 | B49: 平坝区 | C49: 小学 | D49: 体育 | E49: AS0220220144 | F49: 68.00 | G49: 34.00 | H49: 86.14 | I49: 43.07 | J49: 77.07
A50: 48 | B50: 平坝区 | C50: 小学 | D50: 体育 | E50: AS0220220135 | F50: 65.00 | G50: 32.50 | H50: 87.34 | I50: 43.67 | J50: 76.17
A51: 49 | B51: 平坝区 | C51: 小学 | D51: 体育 | E51: AS0220220156 | F51: 67.00 | G51: 33.50 | H51: 82.00 | I51: 41.00 | J51: 74.50
A52: 50 | B52: 平坝区 | C52: 小学 | D52: 体育 | E52: AS0220220136 | F52: 58.00 | G52: 29.00 | H52: 90.12 | I52: 45.06 | J52: 74.06
A53: 51 | B53: 平坝区 | C53: 小学 | D53: 体育 | E53: AS0220220142 | F53: 47.00 | G53: 23.50 | H53: 74.70 | I53: 37.35 | J53: 60.85
A54: 52 | B54: 平坝区 | C54: 小学 | D54: 体育 | E54: AS0220220155 | F54: 51.00 | G54: 25.50 | H54: 70.36 | I54: 35.18 | J54: 60.68
A55: 53 | B55: 平坝区 | C55: 小学 | D55: 体育 | E55: AS0220220145 | F55: 54.00 | G55: 27.00 | H55: 缺考 | I55: 0.00 | J55: 27.00 | K55: 面试缺考
A56: 54 | B56: 平坝区 | C56: 小学 | D56: 体育 | E56: AS0220220148 | F56: 54.00 | G56: 27.00 | H56: 缺考 | I56: 0.00 | J56: 27.00 | K56: 面试缺考
A57: 55 | B57: 平坝区 | C57: 小学 | D57: 体育 | E57: AS0220220151 | F57: 50.00 | G57: 25.00 | H57: 缺考 | I57: 0.00 | J57: 25.00 | K57: 面试缺考
A58: 56 | B58: 平坝区 | C58: 小学 | D58: 体育 | E58: AS0220220152 | F58: 50.00 | G58: 25.00 | H58: 缺考 | I58: 0.00 | J58: 25.00 | K58: 面试缺考
A59: 57 | B59: 平坝区 | C59: 小学 | D59: 体育 | E59: AS0220220157 | F59: 50.00 | G59: 25.00 | H59: 缺考 | I59: 0.00 | J59: 25.00 | K59: 面试缺考
A60: 58 | B60: 平坝区 | C60: 小学 | D60: 体育 | E60: AS0220220141 | F60: 47.00 | G60: 23.50 | H60: 缺考 | I60: 0.00 | J60: 23.50 | K60: 面试缺考
A61: 59 | B61: 平坝区 | C61: 小学 | D61: 体育 | E61: AS0220220143 | F61: 47.00 | G61: 23.50 | H61: 缺考 | I61: 0.00 | J61: 23.50 | K61: 面试缺考
A62: 60 | B62: 平坝区 | C62: 小学 | D62: 信息技术 | E62: AS0220220107 | F62: 87.00 | G62: 43.50 | H62: 85.52 | I62: 42.76 | J62: 86.26
A63: 61 | B63: 平坝区 | C63: 小学 | D63: 信息技术 | E63: AS0220220106 | F63: 75.00 | G63: 37.50 | H63: 83.70 | I63: 41.85 | J63: 79.35
A64: 62 | B64: 平坝区 | C64: 小学 | D64: 信息技术 | E64: AS0220220108 | F64: 65.00 | G64: 32.50 | H64: 89.30 | I64: 44.65 | J64: 77.15
A65: 63 | B65: 平坝区 | C65: 小学 | D65: 音乐 | E65: AS0220220198 | F65: 73.00 | G65: 36.50 | H65: 89.42 | I65: 44.71 | J65: 81.21
A66: 64 | B66: 平坝区 | C66: 小学 | D66: 音乐 | E66: AS0220220193 | F66: 67.50 | G66: 33.75 | H66: 87.24 | I66: 43.62 | J66: 77.37
A67: 65 | B67: 平坝区 | C67: 小学 | D67: 音乐 | E67: AS0220220167 | F67: 72.00 | G67: =F67*0.5 -> 36.00 | H67: 80.42 | I67: =H67*0.5 -> 40.21 | J67: =G67+I67 -> 76.21
A68: 66 | B68: 平坝区 | C68: 小学 | D68: 音乐 | E68: AS0220220201 | F68: 59.00 | G68: 29.50 | H68: 89.30 | I68: 44.65 | J68: 74.15
A69: 67 | B69: 平坝区 | C69: 小学 | D69: 音乐 | E69: AS0220220168 | F69: 57.50 | G69: 28.75 | H69: 87.22 | I69: 43.61 | J69: 72.36
A70: 68 | B70: 平坝区 | C70: 小学 | D70: 音乐 | E70: AS0220220212 | F70: 67.00 | G70: 33.50 | H70: 77.32 | I70: 38.66 | J70: 72.16
A71: 69 | B71: 平坝区 | C71: 小学 | D71: 音乐 | E71: AS0220220171 | F71: 61.00 | G71: 30.50 | H71: 83.02 | I71: 41.51 | J71: 72.01
A72: 70 | B72: 平坝区 | C72: 小学 | D72: 音乐 | E72: AS0220220203 | F72: 61.50 | G72: 30.75 | H72: 82.28 | I72: 41.14 | J72: 71.89
A73: 71 | B73: 平坝区 | C73: 小学 | D73: 音乐 | E73: AS0220220170 | F73: 57.50 | G73: 28.75 | H73: 82.40 | I73: 41.20 | J73: 69.95
A74: 72 | B74: 平坝区 | C74: 小学 | D74: 音乐 | E74: AS0220220180 | F74: 56.00 | G74: 28.00 | H74: 82.60 | I74: 41.30 | J74: 69.30
A75: 73 | B75: 平坝区 | C75: 小学 | D75: 音乐 | E75: AS0220220173 | F75: 57.00 | G75: 28.50 | H75: 78.76 | I75: 39.38 | J75: 67.88
A76: 74 | B76: 平坝区 | C76: 小学 | D76: 音乐 | E76: AS0220220169 | F76: 55.50 | G76: 27.75 | H76: 79.54 | I76: 39.77 | J76: 67.52
A77: 75 | B77: 平坝区 | C77: 小学 | D77: 音乐 | E77: AS0220220213 | F77: 56.00 | G77: 28.00 | H77: 69.34 | I77: 34.67 | J77: 62.67
A78: 76 | B78: 平坝区 | C78: 小学 | D78: 音乐 | E78: AS0220220202 | F78: 54.50 | G78: 27.25 | H78: 缺考 | I78: 0.00 | J78: 27.25 | K78: 面试缺考
A79: 77 | B79: 平坝区 | C79: 小学 | D79: 音乐 | E79: AS0220220179 | F79: 52.50 | G79: 26.25 | H79: 缺考 | I79: 0.00 | J79: 26.25 | K79: 面试缺考
A80: 78 | B80: 平坝区 | C80: 小学 | D80: 英语 | E80: AS0220220241 | F80: 89.00 | G80: 44.50 | H80: 80.50 | I80: 40.25 | J80: 84.75
A81: 79 | B81: 平坝区 | C81: 小学 | D81: 英语 | E81: AS0220220239 | F81: 81.00 | G81: 40.50 | H81: 86.78 | I81: 43.39 | J81: 83.89
A82: 80 | B82: 平坝区 | C82: 小学 | D82: 英语 | E82: AS0220220243 | F82: 80.00 | G82: 40.00 | H82: 78.26 | I82: 39.13 | J82: 79.13
A83: 81 | B83: 平坝区 | C83: 小学 | D83: 语文 | E83: AS0220220380 | F83: 68.00 | G83: 34.00 | H83: 91.18 | I83: 45.59 | J83: 79.59
A84: 82 | B84: 平坝区 | C84: 小学 | D84: 语文 | E84: AS0220220362 | F84: 65.00 | G84: 32.50 | H84: 91.26 | I84: 45.63 | J84: 78.13
A85: 83 | B85: 平坝区 | C85: 小学 | D85: 语文 | E85: AS0220220369 | F85: 66.00 | G85: 33.00 | H85: 87.98 | I85: 43.99 | J85: 76.99
A86: 84 | B86: 平坝区 | C86: 小学 | D86: 语文 | E86: AS0220220385 | F86: 62.00 | G86: 31.00 | H86: 91.92 | I86: 45.96 | J86: 76.96
A87: 85 | B87: 平坝区 | C87: 小学 | D87: 语文 | E87: AS0220220379 | F87: 64.00 | G87: 32.00 | H87: 88.38 | I87: 44.19 | J87: 76.19
A88: 86 | B88: 平坝区 | C88: 小学 | D88: 语文 | E88: AS0220220377 | F88: 62.00 | G88: 31.00 | H88: 89.28 | I88: 44.64 | J88: 75.64
A89: 87 | B89: 平坝区 | C89: 小学 | D89: 语文 | E89: AS0220220384 | F89: 63.00 | G89: 31.50 | H89: 87.50 | I89: 43.75 | J89: 75.25
A90: 88 | B90: 平坝区 | C90: 小学 | D90: 语文 | E90: AS0220220366 | F90: 59.00 | G90: 29.50 | H90: 91.22 | I90: 45.61 | J90: 75.11
A91: 89 | B91: 平坝区 | C91: 小学 | D91: 语文 | E91: AS0220220420 | F91: 63.00 | G91: 31.50 | H91: 85.96 | I91: 42.98 | J91: 74.48
A92: 90 | B92: 平坝区 | C92: 小学 | D92: 语文 | E92: AS0220220364 | F92: 61.00 | G92: 30.50 | H92: 87.62 | I92: 43.81 | J92: 74.31
A93: 91 | B93: 平坝区 | C93: 小学 | D93: 语文 | E93: AS0220220375 | F93: 57.00 | G93: 28.50 | H93: 90.42 | I93: 45.21 | J93: 73.71
A94: 92 | B94: 平坝区 | C94: 小学 | D94: 语文 | E94: AS0220220342 | F94: 63.00 | G94: 31.50 | H94: 84.00 | I94: 42.00 | J94: 73.50
A95: 93 | B95: 平坝区 | C95: 小学 | D95: 语文 | E95: AS0220220372 | F95: 62.00 | G95: 31.00 | H95: 83.68 | I95: 41.84 | J95: 72.84
A96: 94 | B96: 平坝区 | C96: 小学 | D96: 语文 | E96: AS0220220389 | F96: 60.00 | G96: 30.00 | H96: 83.20 | I96: 41.60 | J96: 71.60
A97: 95 | B97: 平坝区 | C97: 小学 | D97: 语文 | E97: AS0220220376 | F97: 60.00 | G97: 30.00 | H97: 83.14 | I97: 41.57 | J97: 71.57
A98: 96 | B98: 平坝区 | C98: 小学 | D98: 语文 | E98: AS0220220356 | F98: 57.00 | G98: 28.50 | H98: 缺考 | I98: 0.00 | J98: 28.50 | K98: 面试缺考
A99: 97 | B99: 平坝区 | C99: 小学 | D99: 语文 | E99: AS0220220361 | F99: 57.00 | G99: 28.50 | H99: 缺考 | I99: 0.00 | J99: 28.50 | K99: 面试缺考
A100: 98 | B100: 平坝区 | C100: 小学 | D100: 政治 | E100: AS0220220404 | F100: 84.00 | G100: 42.00 | H100: 86.84 | I100: 43.42 | J100: 85.42
A101: 99 | B101: 平坝区 | C101: 小学 | D101: 政治 | E101: AS0220220403 | F101: 82.00 | G101: 41.00 | H101: 85.44 | I101: 42.72 | J101: 83.72
A102: 100 | B102: 平坝区 | C102: 小学 | D102: 政治 | E102: AS0220220408 | F102: 82.00 | G102: 41.00 | H102: 81.94 | I102: 40.97 | J102: 81.97
A103: 101 | B103: 平坝区 | C103: 小学 | D103: 政治 | E103: AS0220220415 | F103: 79.00 | G103: 39.50 | H103: 83.40 | I103: 41.70 | J103: 81.20
A104: 102 | B104: 平坝区 | C104: 小学 | D104: 政治 | E104: AS0220220413 | F104: 67.00 | G104: 33.50 | H104: 92.02 | I104: 46.01 | J104: 79.51
A105: 103 | B105: 平坝区 | C105: 小学 | D105: 政治 | E105: AS0220220402 | F105: 75.00 | G105: 37.50 | H105: 81.12 | I105: 40.56 | J105: 78.06
A106: 104 | B106: 平坝区 | C106: 小学 | D106: 政治 | E106: AS0220220409 | F106: 73.00 | G106: 36.50 | H106: 82.40 | I106: 41.20 | J106: 77.70
A107: 105 | B107: 平坝区 | C107: 小学 | D107: 政治 | E107: AS0220220407 | F107: 73.00 | G107: 36.50 | H107: 82.08 | I107: 41.04 | J107: 77.54
A108: 106 | B108: 平坝区 | C108: 小学 | D108: 政治 | E108: AS0220220412 | F108: 78.00 | G108: 39.00 | H108: 76.30 | I108: 38.15 | J108: 77.15
A109: 107 | B109: 平坝区 | C109: 小学 | D109: 政治 | E109: AS0220220401 | F109: 76.00 | G109: 38.00 | H109: 66.80 | I109: 33.40 | J109: 71.40
A110: 108 | B110: 平坝区 | C110: 小学 | D110: 政治 | E110: AS0220220410 | F110: 80.00 | G110: 40.00 | H110: 缺考 | I110: 0.00 | J110: 40.00 | K110: 面试缺考
A111: 109 | B111: 平坝区 | C111: 小学 | D111: 政治 | E111: AS0220220405 | F111: 66.00 | G111: 33.00 | H111: 缺考 | I111: 0.00 | J111: 33.00 | K111: 面试缺考
A112: 110 | B112: 平坝区 | C112: 幼儿园 | D112: 幼儿园 | E112: AS0220220304 | F112: 71.00 | G112: 35.50 | H112: 81.78 | I112: 40.89 | J112: 76.39
A113: 111 | B113: 平坝区 | C113: 幼儿园 | D113: 幼儿园 | E113: AS0220220259 | F113: 65.00 | G113: 32.50 | H113: 87.44 | I113: 43.72 | J113: 76.22
A114: 112 | B114: 平坝区 | C114: 幼儿园 | D114: 幼儿园 | E114: AS0220220298 | F114: 65.50 | G114: 32.75 | H114: 81.96 | I114: 40.98 | J114: 73.73
A115: 113 | B115: 平坝区 | C115: 幼儿园 | D115: 幼儿园 | E115: AS0220220306 | F115: 62.00 | G115: 31.00 | H115: 85.06 | I115: 42.53 | J115: 73.53
A116: 114 | B116: 平坝区 | C116: 幼儿园 | D116: 幼儿园 | E116: AS0220220421 | F116: 66.00 | G116: 33.00 | H116: 79.92 | I116: 39.96 | J116: 72.96
A117: 115 | B117: 平坝区 | C117: 幼儿园 | D117: 幼儿园 | E117: AS0220220272 | F117: 67.00 | G117: 33.50 | H117: 78.74 | I117: 39.37 | J117: 72.87
A118: 116 | B118: 平坝区 | C118: 幼儿园 | D118: 幼儿园 | E118: AS0220220309 | F118: 62.00 | G118: 31.00 | H118: 82.58 | I118: 41.29 | J118: 72.29
A119: 117 | B119: 平坝区 | C119: 幼儿园 | D119: 幼儿园 | E119: AS0220220290 | F119: 65.00 | G119: 32.50 | H119: 79.46 | I119: 39.73 | J119: 72.23
A120: 118 | B120: 平坝区 | C120: 幼儿园 | D120: 幼儿园 | E120: AS0220220281 | F120: 63.00 | G120: 31.50 | H120: 77.78 | I120: 38.89 | J120: 70.39
A121: 119 | B121: 平坝区 | C121: 幼儿园 | D121: 幼儿园 | E121: AS0220220307 | F121: 57.00 | G121: 28.50 | H121: 81.78 | I121: 40.89 | J121: 69.39
A122: 120 | B122: 平坝区 | C122: 幼儿园 | D122: 幼儿园 | E122: AS0220220303 | F122: 56.00 | G122: 28.00 | H122: 79.32 | I122: 39.66 | J122: 67.66
A123: 121 | B123: 平坝区 | C123: 幼儿园 | D123: 幼儿园 | E123: AS0220220299 | F123: 56.50 | G123: 28.25 | H123: 77.70 | I123: 38.85 | J123: 67.10

Sheet 普定县
A1: 附件1
A2: 普定县2022年“特岗计划”教师招聘总成绩统计情况表
A3: 序号 | B3: 报考县区 | C3: 报考学段 | D3: 报考学科 | E3: 笔试准考证号 | F3: 笔试得分 | G3: 折算成绩(占总成绩50%） | H3: 面试得分 | I3: 折算成绩(占总成绩50%） | J3: 总成绩 | K3: 备注
A4: 1 | B4: 普定县 | C4: 小学 | D4: 科学 | E4: AS0320220435 | F4: 72 | G4: =F4/2 -> 36 | H4: 91.61 | I4: =H4/2 -> 45.805 | J4: 81.805
A5: 2 | B5: 普定县 | C5: 小学 | D5: 科学 | E5: AS0320220443 | F5: 61 | G5: 30.5 | H5: 85.99 | I5: 42.995 | J5: 73.495
A6: 3 | B6: 普定县 | C6: 小学 | D6: 科学 | E6: AS0320220438 | F6: 53 | G6: 26.5 | H6: 82.38 | I6: 41.19 | J6: 67.69
A7: 4 | B7: 普定县 | C7: 小学 | D7: 科学 | E7: AS0320220440 | F7: 46 | G7: 23 | H7: 84.25 | I7: 42.125 | J7: 65.125
A8: 5 | B8: 普定县 | C8: 小学 | D8: 科学 | E8: AS0320220439 | F8: 41 | G8: 20.5 | H8: 80.8 | I8: 40.4 | J8: 60.9
A9: 6 | B9: 普定县 | C9: 小学 | D9: 科学 | E9: AS0320220442 | F9: 36 | G9: 18 | H9: 84.68 | I9: 42.34 | J9: 60.34
A10: 7 | B10: 普定县 | C10: 小学 | D10: 科学 | E10: AS0320220436 | F10: 36 | G10: 18 | H10: 缺考 | I10: 0 | J10: 18 | K10: 面试缺考
A11: 8 | B11: 普定县 | C11: 小学 | D11: 美术 | E11: AS0320220561 | F11: 62.5 | G11: 31.25 | H11: 88.13 | I11: =H11/2 -> 44.065 | J11: 75.315
A12: 9 | B12: 普定县 | C12: 小学 | D12: 美术 | E12: AS0320220562 | F12: 60 | G12: 30 | H12: 88.87 | I12: 44.435 | J12: 74.435
A13: 10 | B13: 普定县 | C13: 小学 | D13: 美术 | E13: AS0320220559 | F13: 61 | G13: 30.5 | H13: 87.69 | I13: 43.845 | J13: 74.345
A14: 11 | B14: 普定县 | C14: 小学 | D14: 数学 | E14: AS0320220492 | F14: 82 | G14: 41 | H14: 89.1 | I14: 44.55 | J14: 85.55
A15: 12 | B15: 普定县 | C15: 小学 | D15: 数学 | E15: AS0320220489 | F15: 76 | G15: 38 | H15: 85.4 | I15: 42.7 | J15: 80.7
A16: 13 | B16: 普定县 | C16: 小学 | D16: 数学 | E16: AS0320220464 | F16: 75 | G16: 37.5 | H16: 79.31 | I16: 39.655 | J16: 77.155
A17: 14 | B17: 普定县 | C17: 小学 | D17: 数学 | E17: AS0320220479 | F17: 72 | G17: 36 | H17: 80.75 | I17: 40.375 | J17: 76.375
A18: 15 | B18: 普定县 | C18: 小学 | D18: 数学 | E18: AS0320220498 | F18: 70 | G18: 35 | H18: 82.12 | I18: 41.06 | J18: 76.06
A19: 16 | B19: 普定县 | C19: 小学 | D19: 数学 | E19: AS0320220477 | F19: 66 | G19: 33 | H19: 83.06 | I19: 41.53 | J19: 74.53
A20: 17 | B20: 普定县 | C20: 小学 | D20: 数学 | E20: AS0320220496 | F20: 59 | G20: 29.5 | H20: 86.42 | I20: 43.21 | J20: 72.71
A21: 18 | B21: 普定县 | C21: 小学 | D21: 数学 | E21: AS0320220497 | F21: 63 | G21: 31.5 | H21: 81.9 | I21: 40.95 | J21: 72.45
A22: 19 | B22: 普定县 | C22: 小学 | D22: 数学 | E22: AS0320220462 | F22: 62 | G22: 31 | H22: 82.5 | I22: 41.25 | J22: 72.25
A23: 20 | B23: 普定县 | C23: 小学 | D23: 数学 | E23: AS0320220472 | F23: 58 | G23: 29 | H23: 86.38 | I23: 43.19 | J23: 72.19
A24: 21 | B24: 普定县 | C24: 小学 | D24: 数学 | E24: AS0320220506 | F24: 62 | G24: 31 | H24: 78.1 | I24: 39.05 | J24: 70.05
A25: 22 | B25: 普定县 | C25: 小学 | D25: 数学 | E25: AS0320220466 | F25: 57 | G25: 28.5 | H25: 83 | I25: 41.5 | J25: 70
A26: 23 | B26: 普定县 | C26: 小学 | D26: 数学 | E26: AS0320220503 | F26: 66 | G26: 33 | H26: 73.47 | I26: 36.735 | J26: 69.735
A27: 24 | B27: 普定县 | C27: 小学 | D27: 数学 | E27: AS0320220473 | F27: 59 | G27: 29.5 | H27: 79.52 | I27: 39.76 | J27: 69.26
A28: 25 | B28: 普定县 | C28: 小学 | D28: 数学 | E28: AS0320220463 | F28: 54 | G28: 27 | H28: 82.2 | I28: 41.1 | J28: 68.1
A29: 26 | B29: 普定县 | C29: 小学 | D29: 数学 | E29: AS0320220470 | F29: 56 | G29: 28 | H29: 78.28 | I29: 39.14 | J29: 67.14
A30: 27 | B30: 普定县 | C30: 小学 | D30: 数学 | E30: AS0320220476 | F30: 53 | G30: 26.5 | H30: 80.78 | I30: 40.39 | J30: 66.89
A31: 28 | B31: 普定县 | C31: 小学 | D31: 数学 | E31: AS0320220485 | F31: 42 | G31: 21 | H31: 87.41 | I31: 43.705 | J31: 64.705
A32: 29 | B32: 普定县 | C32: 小学 | D32: 数学 | E32: AS0320220482 | F32: 41 | G32: 20.5 | H32: 84.93 | I32: 42.465 | J32: 62.965
A33: 30 | B33: 普定县 | C33: 小学 | D33: 数学 | E33: AS0320220469 | F33: 47 | G33: 23.5 | H33: 78.03 | I33: 39.015 | J33: 62.515
A34: 31 | B34: 普定县 | C34: 小学 | D34: 数学 | E34: AS0320220499 | F34: 46 | G34: 23 | H34: 77.61 | I34: 38.805 | J34: 61.805
A35: 32 | B35: 普定县 | C35: 小学 | D35: 数学 | E35: AS0320220494 | F35: 37 | G35: 18.5 | H35: 80.89 | I35: 40.445 | J35: 58.945
A36: 33 | B36: 普定县 | C36: 小学 | D36: 数学 | E36: AS0320220474 | F36: 38 | G36: 19 | H36: 78.42 | I36: 39.21 | J36: 58.21
A37: 34 | B37: 普定县 | C37: 小学 | D37: 数学 | E37: AS0320220500 | F37: 40 | G37: 20 | H37: 76.23 | I37: 38.115 | J37: 58.115
A38: 35 | B38: 普定县 | C38: 小学 | D38: 数学 | E38: AS0320220468 | F38: 29 | G38: 14.5 | H38: 84.71 | I38: 42.355 | J38: 56.855
A39: 36 | B39: 普定县 | C39: 小学 | D39: 数学 | E39: AS0320220490 | F39: 37 | G39: 18.5 | H39: 75.95 | I39: 37.975 | J39: 56.475
A40: 37 | B40: 普定县 | C40: 小学 | D40: 数学 | E40: AS0320220475 | F40: 36 | G40: 18 | H40: 74 | I40: 37 | J40: 55
A41: 38 | B41: 普定县 | C41: 小学 | D41: 数学 | E41: AS0320220459 | F41: 32 | G41: 16 | H41: 76.02 | I41: 38.01 | J41: 54.01
A42: 39 | B42: 普定县 | C42: 小学 | D42: 数学 | E42: AS0320220491 | F42: 28 | G42: 14 | H42: 77.61 | I42: 38.805 | J42: 52.805
A43: 40 | B43: 普定县 | C43: 小学 | D43: 数学 | E43: AS0320220486 | F43: 53 | G43: 26.5 | H43: 缺考 | I43: 0 | J43: 26.5 | K43: 面试缺考
A44: 41 | B44: 普定县 | C44: 小学 | D44: 数学 | E44: AS0320220510 | F44: 52 | G44: 26 | H44: 缺考 | I44: 0 | J44: 26 | K44: 面试缺考
A45: 42 | B45: 普定县 | C45: 小学 | D45: 数学 | E45: AS0320220495 | F45: 36 | G45: 18 | H45: 缺考 | I45: 0 | J45: 18 | K45: 面试缺考
A46: 43 | B46: 普定县 | C46: 小学 | D46: 数学 | E46: AS0320220504 | F46: 32 | G46: 16 | H46: 缺考 | I46: 0 | J46: 16 | K46: 面试缺考
A47: 44 | B47: 普定县 | C47: 小学 | D47: 数学 | E47: AS0320220507 | F47: 31 | G47: 15.5 | H47: 缺考 | I47: 0 | J47: 15.5 | K47: 面试缺考
A48: 45 | B48: 普定县 | C48: 小学 | D48: 数学 | E48: AS0320220493 | F48: 31 | G48: 15.5 | H48: 缺考 | I48: 0 | J48: 15.5 | K48: 面试缺考
A49: 46 | B49: 普定县 | C49: 小学 | D49: 数学 | E49: AS0320220461 | F49: 28 | G49: 14 | H49: 缺考 | I49: 0 | J49: 14 | K49: 面试缺考
A50: 47 | B50: 普定县 | C50: 小学 | D50: 体育 | E50: AS0320220240 | F50: 72 | G50: 36 | H50: 92.4 | I50: =H50/2 -> 46.2 | J50: 82.2
A51: 48 | B51: 普定县 | C51: 小学 | D51: 体育 | E51: AS0320220245 | F51: 63 | G51: 31.5 | H51: 95.98 | I51: 47.99 | J51: 79.49
A52: 49 | B52: 普定县 | C52: 小学 | D52: 体育 | E52: AS0320220254 | F52: 63 | G52: 31.5 | H52: 93.32 | I52: 46.66 | J52: 78.16
A53: 50 | B53: 普定县 | C53: 小学 | D53: 体育 | E53: AS0320220238 | F53: 66 | G53: 33 | H53: 89 | I53: 44.5 | J53: 77.5
A54: 51 | B54: 普定县 | C54: 小学 | D54: 体育 | E54: AS0320220242 | F54: 59 | G54: 29.5 | H54: 93.52 | I54: 46.76 | J54: 76.26
A55: 52 | B55: 普定县 | C55: 小学 | D55: 体育 | E55: AS0320220241 | F55: 59 | G55: 29.5 | H55: 91.32 | I55: 45.66 | J55: 75.16
A56: 53 | B56: 普定县 | C56: 小学 | D56: 体育 | E56: AS0320220257 | F56: 55 | G56: 27.5 | H56: 86.29 | I56: 43.145 | J56: 70.645
A57: 54 | B57: 普定县 | C57: 小学 | D57: 体育 | E57: AS0320220244 | F57: 53 | G57: 26.5 | H57: 缺考 | I57: 0 | J57: 26.5 | K57: 面试缺考
A58: 55 | B58: 普定县 | C58: 小学 | D58: 体育 | E58: AS0320220252 | F58: 52 | G58: 26 | H58: 缺考 | I58: 0 | J58: 26 | K58: 面试缺考
A59: 56 | B59: 普定县 | C59: 小学 | D59: 体育 | E59: AS0320220258 | F59: 52 | G59: 26 | H59: 缺考 | I59: 0 | J59: 26 | K59: 面试缺考
A60: 57 | B60: 普定县 | C60: 小学 | D60: 心理健康 | E60: AS0320220385 | F60: 67 | G60: 33.5 | H60: 84.6 | I60: =H60/2 -> 42.3 | J60: 75.8
A61: 58 | B61: 普定县 | C61: 小学 | D61: 心理健康 | E61: AS0320220383 | F61: 67 | G61: 33.5 | H61: 82.2 | I61: 41.1 | J61: 74.6
A62: 59 | B62: 普定县 | C62: 小学 | D62: 心理健康 | E62: AS0320220382 | F62: 76 | G62: 38 | H62: 缺考 | I62: 0 | J62: 38 | K62: 面试缺考
A63: 60 | B63: 普定县 | C63: 小学 | D63: 信息技术 | E63: AS0320220520 | F63: 66 | G63: 33 | H63: 92.07 | I63: 46.035 | J63: 79.035
A64: 61 | B64: 普定县 | C64: 小学 | D64: 信息技术 | E64: AS0320220511 | F64: 59 | G64: 29.5 | H64: 90.34 | I64: 45.17 | J64: 74.67
A65: 62 | B65: 普定县 | C65: 小学 | D65: 信息技术 | E65: AS0320220521 | F65: 61 | G65: 30.5 | H65: 85.23 | I65: 42.615 | J65: 73.115
A66: 63 | B66: 普定县 | C66: 小学 | D66: 信息技术 | E66: AS0320220515 | F66: 59 | G66: 29.5 | H66: 83.21 | I66: 41.605 | J66: 71.105
A67: 64 | B67: 普定县 | C67: 小学 | D67: 信息技术 | E67: AS0320220513 | F67: 58 | G67: 29 | H67: 缺考 | I67: 0 | J67: 29 | K67: 面试缺考
A68: 65 | B68: 普定县 | C68: 小学 | D68: 信息技术 | E68: AS0320220518 | F68: 47 | G68: =F68/2 -> 23.5 | H68: 缺考 | I68: 0 | J68: 23.5 | K68: 面试缺考
A69: 66 | B69: 普定县 | C69: 小学 | D69: 信息技术 | E69: AS0320220519 | F69: 47 | G69: 23.5 | H69: 缺考 | I69: 0 | J69: 23.5 | K69: 面试缺考
A70: 67 | B70: 普定县 | C70: 小学 | D70: 音乐 | E70: AS0320220429 | F70: 52 | G70: 26 | H70: 92.47 | I70: =H70/2 -> 46.235 | J70: 72.235
A71: 68 | B71: 普定县 | C71: 小学 | D71: 音乐 | E71: AS0320220434 | F71: 48 | G71: 24 | H71: 94.7 | I71: 47.35 | J71: 71.35
A72: 69 | B72: 普定县 | C72: 小学 | D72: 音乐 | E72: AS0320220432 | F72: 54 | G72: 27 | H72: 84.83 | I72: 42.415 | J72: 69.415
A73: 70 | B73: 普定县 | C73: 小学 | D73: 音乐 | E73: AS0320220431 | F73: 45 | G73: 22.5 | H73: 77.51 | I73: 38.755 | J73: 61.255
A74: 71 | B74: 普定县 | C74: 小学 | D74: 音乐 | E74: AS0320220430 | F74: 17 | G74: 8.5 | H74: 92.99 | I74: 46.495 | J74: 54.995
A75: 72 | B75: 普定县 | C75: 小学 | D75: 音乐 | E75: AS0320220433 | F75: 11 | G75: 5.5 | H75: 缺考 | I75: 0 | J75: 5.5 | K75: 面试缺考
A76: 73 | B76: 普定县 | C76: 小学 | D76: 英语 | E76: AS0320220302 | F76: 81 | G76: 40.5 | H76: 83.08 | I76: =H76/2 -> 41.54 | J76: 82.04
A77: 74 | B77: 普定县 | C77: 小学 | D77: 英语 | E77: AS0320220310 | F77: 76 | G77: 38 | H77: 85.95 | I77: 42.975 | J77: 80.975
A78: 75 | B78: 普定县 | C78: 小学 | D78: 英语 | E78: AS0320220322 | F78: 75 | G78: 37.5 | H78: 84.79 | I78: 42.395 | J78: 79.895
A79: 76 | B79: 普定县 | C79: 小学 | D79: 英语 | E79: AS0320220314 | F79: 78 | G79: 39 | H79: 78.21 | I79: 39.105 | J79: 78.105
A80: 77 | B80: 普定县 | C80: 小学 | D80: 英语 | E80: AS0320220304 | F80: 71 | G80: 35.5 | H80: 84.44 | I80: 42.22 | J80: 77.72
A81: 78 | B81: 普定县 | C81: 小学 | D81: 英语 | E81: AS0320220325 | F81: 72 | G81: 36 | H81: 82.79 | I81: 41.395 | J81: 77.395
A82: 79 | B82: 普定县 | C82: 小学 | D82: 英语 | E82: AS0320220323 | F82: 72 | G82: 36 | H82: 82.43 | I82: 41.215 | J82: 77.215
A83: 80 | B83: 普定县 | C83: 小学 | D83: 英语 | E83: AS0320220305 | F83: 79 | G83: 39.5 | H83: 75.36 | I83: 37.68 | J83: 77.18
A84: 81 | B84: 普定县 | C84: 小学 | D84: 英语 | E84: AS0320220316 | F84: 69 | G84: 34.5 | H84: 84.66 | I84: 42.33 | J84: 76.83
A85: 82 | B85: 普定县 | C85: 小学 | D85: 英语 | E85: AS0320220321 | F85: 80 | G85: 40 | H85: 71.02 | I85: 35.51 | J85: 75.51
A86: 83 | B86: 普定县 | C86: 小学 | D86: 英语 | E86: AS0320220300 | F86: 66 | G86: 33 | H86: 84.05 | I86: 42.025 | J86: 75.025
A87: 84 | B87: 普定县 | C87: 小学 | D87: 英语 | E87: AS0320220301 | F87: 67 | G87: 33.5 | H87: 80.51 | I87: 40.255 | J87: 73.755
A88: 85 | B88: 普定县 | C88: 小学 | D88: 英语 | E88: AS0320220327 | F88: 65 | G88: 32.5 | H88: 82.35 | I88: 41.175 | J88: 73.675
A89: 86 | B89: 普定县 | C89: 小学 | D89: 英语 | E89: AS0320220318 | F89: 65 | G89: 32.5 | H89: 80.9 | I89: 40.45 | J89: 72.95
A90: 87 | B90: 普定县 | C90: 小学 | D90: 英语 | E90: AS0320220326 | F90: 64 | G90: 32 | H90: 76.67 | I90: 38.335 | J90: 70.335
A91: 88 | B91: 普定县 | C91: 小学 | D91: 英语 | E91: AS0320220307 | F91: 66 | G91: 33 | H91: 72.35 | I91: 36.175 | J91: 69.175
A92: 89 | B92: 普定县 | C92: 小学 | D92: 英语 | E92: AS0320220574 | F92: 67 | G92: 33.5 | H92: 71.24 | I92: 35.62 | J92: 69.12
A93: 90 | B93: 普定县 | C93: 小学 | D93: 英语 | E93: AS0320220306 | F93: 64 | G93: 32 | H93: 缺考 | I93: 0 | J93: 32 | K93: 面试缺考
A94: 91 | B94: 普定县 | C94: 小学 | D94: 语文 | E94: AS0320220039 | F94: 77.5 | G94: 38.75 | H94: 89.9 | I94: =H94/2 -> 44.95 | J94: 83.7
A95: 92 | B95: 普定县 | C95: 小学 | D95: 语文 | E95: AS0320220023 | F95: 76 | G95: 38 | H95: 91.1 | I95: 45.55 | J95: 83.55
A96: 93 | B96: 普定县 | C96: 小学 | D96: 语文 | E96: AS0320220124 | F96: 73.5 | G96: 36.75 | H96: 89.91 | I96: 44.955 | J96: 81.705
A97: 94 | B97: 普定县 | C97: 小学 | D97: 语文 | E97: AS0320220098 | F97: 71 | G97: 35.5 | H97: 92.41 | I97: 46.205 | J97: 81.705
A98: 95 | B98: 普定县 | C98: 小学 | D98: 语文 | E98: AS0320220131 | F98: 73 | G98: 36.5 | H98: 88.87 | I98: 44.435 | J98: 80.935
A99: 96 | B99: 普定县 | C99: 小学 | D99: 语文 | E99: AS0320220147 | F99: 72.5 | G99: 36.25 | H99: 89.01 | I99: 44.505 | J99: 80.755
A100: 97 | B100: 普定县 | C100: 小学 | D100: 语文 | E100: AS0320220149 | F100: 69.5 | G100: 34.75 | H100: 91.94 | I100: 45.97 | J100: 80.72
A101: 98 | B101: 普定县 | C101: 小学 | D101: 语文 | E101: AS0320220065 | F101: 69 | G101: 34.5 | H101: 91.46 | I101: 45.73 | J101: 80.23
A102: 99 | B102: 普定县 | C102: 小学 | D102: 语文 | E102: AS0320220195 | F102: 72 | G102: 36 | H102: 88.38 | I102: 44.19 | J102: 80.19
A103: 100 | B103: 普定县 | C103: 小学 | D103: 语文 | E103: AS0320220182 | F103: 68.5 | G103: 34.25 | H103: 91.53 | I103: 45.765 | J103: 80.015
A104: 101 | B104: 普定县 | C104: 小学 | D104: 语文 | E104: AS0320220019 | F104: 69.5 | G104: 34.75 | H104: 90.35 | I104: 45.175 | J104: 79.925
A105: 102 | B105: 普定县 | C105: 小学 | D105: 语文 | E105: AS0320220088 | F105: 70 | G105: 35 | H105: 88.88 | I105: 44.44 | J105: 79.44
A106: 103 | B106: 普定县 | C106: 小学 | D106: 语文 | E106: AS0320220174 | F106: 69 | G106: 34.5 | H106: 89.68 | I106: 44.84 | J106: 79.34
A107: 104 | B107: 普定县 | C107: 小学 | D107: 语文 | E107: AS0320220053 | F107: 70.5 | G107: 35.25 | H107: 88.14 | I107: 44.07 | J107: 79.32
A108: 105 | B108: 普定县 | C108: 小学 | D108: 语文 | E108: AS0320220187 | F108: 68 | G108: 34 | H108: 90.59 | I108: 45.295 | J108: 79.295
A109: 106 | B109: 普定县 | C109: 小学 | D109: 语文 | E109: AS0320220038 | F109: 67 | G109: 33.5 | H109: 90.7 | I109: 45.35 | J109: 78.85
A110: 107 | B110: 普定县 | C110: 小学 | D110: 语文 | E110: AS0320220120 | F110: 70 | G110: 35 | H110: 87.57 | I110: 43.785 | J110: 78.785
A111: 108 | B111: 普定县 | C111: 小学 | D111: 语文 | E111: AS0320220052 | F111: 70.5 | G111: 35.25 | H111: 86.84 | I111: 43.42 | J111: 78.67
A112: 109 | B112: 普定县 | C112: 小学 | D112: 语文 | E112: AS0320220024 | F112: 70.5 | G112: 35.25 | H112: 86.69 | I112: 43.345 | J112: 78.595
A113: 110 | B113: 普定县 | C113: 小学 | D113: 语文 | E113: AS0320220101 | F113: 68 | G113: 34 | H113: 89.03 | I113: 44.515 | J113: 78.515
A114: 111 | B114: 普定县 | C114: 小学 | D114: 语文 | E114: AS0320220205 | F114: 72.5 | G114: 36.25 | H114: 84.44 | I114: 42.22 | J114: 78.47
A115: 112 | B115: 普定县 | C115: 小学 | D115: 语文 | E115: AS0320220115 | F115: 67 | G115: 33.5 | H115: 89.54 | I115: 44.77 | J115: 78.27
A116: 113 | B116: 普定县 | C116: 小学 | D116: 语文 | E116: AS0320220020 | F116: 66.5 | G116: 33.25 | H116: 89.8 | I116: 44.9 | J116: 78.15
A117: 114 | B117: 普定县 | C117: 小学 | D117: 语文 | E117: AS0320220162 | F117: 69 | G117: 34.5 | H117: 86.44 | I117: 43.22 | J117: 77.72
A118: 115 | B118: 普定县 | C118: 小学 | D118: 语文 | E118: AS0320220164 | F118: 66 | G118: 33 | H118: 89.09 | I118: 44.545 | J118: 77.545
A119: 116 | B119: 普定县 | C119: 小学 | D119: 语文 | E119: AS0320220087 | F119: 68 | G119: 34 | H119: 86.84 | I119: 43.42 | J119: 77.42
A120: 117 | B120: 普定县 | C120: 小学 | D120: 语文 | E120: AS0320220137 | F120: 62.5 | G120: 31.25 | H120: 92.27 | I120: 46.135 | J120: 77.385
A121: 118 | B121: 普定县 | C121: 小学 | D121: 语文 | E121: AS0320220148 | F121: 65 | G121: 32.5 | H121: 89.71 | I121: 44.855 | J121: 77.355
A122: 119 | B122: 普定县 | C122: 小学 | D122: 语文 | E122: AS0320220018 | F122: 69 | G122: 34.5 | H122: 85.67 | I122: 42.835 | J122: 77.335
A123: 120 | B123: 普定县 | C123: 小学 | D123: 语文 | E123: AS0320220161 | F123: 64.5 | G123: 32.25 | H123: 90.02 | I123: 45.01 | J123: 77.26
A124: 121 | B124: 普定县 | C124: 小学 | D124: 语文 | E124: AS0320220013 | F124: 66 | G124: 33 | H124: 88.33 | I124: 44.165 | J124: 77.165
A125: 122 | B125: 普定县 | C125: 小学 | D125: 语文 | E125: AS0320220200 | F125: 66.5 | G125: 33.25 | H125: 87.57 | I125: 43.785 | J125: 77.035
A126: 123 | B126: 普定县 | C126: 小学 | D126: 语文 | E126: AS0320220055 | F126: 67 | G126: 33.5 | H126: 87.07 | I126: 43.535 | J126: 77.035
A127: 124 | B127: 普定县 | C127: 小学 | D127: 语文 | E127: AS0320220190 | F127: 63.5 | G127: 31.75 | H127: 90.5 | I127: 45.25 | J127: 77
A128: 125 | B128: 普定县 | C128: 小学 | D128: 语文 | E128: AS0320220166 | F128: 69 | G128: 34.5 | H128: 84.97 | I128: 42.485 | J128: 76.985
A129: 126 | B129: 普定县 | C129: 小学 | D129: 语文 | E129: AS0320220072 | F129: 71.5 | G129: 35.75 | H129: 82.12 | I129: 41.06 | J129: 76.81
A130: 127 | B130: 普定县 | C130: 小学 | D130: 语文 | E130: AS0320220132 | F130: 67 | G130: 33.5 | H130: 86.21 | I130: 43.105 | J130: 76.605
A131: 128 | B131: 普定县 | C131: 小学 | D131: 语文 | E131: AS0320220095 | F131: 63.5 | G131: 31.75 | H131: 89.71 | I131: 44.855 | J131: 76.605
A132: 129 | B132: 普定县 | C132: 小学 | D132: 语文 | E132: AS0320220091 | F132: 67 | G132: =F132/2 -> 33.5 | H132: 86.2 | I132: 43.1 | J132: 76.6
A133: 130 | B133: 普定县 | C133: 小学 | D133: 语文 | E133: AS0320220109 | F133: 68 | G133: 34 | H133: 85.14 | I133: 42.57 | J133: 76.57
A134: 131 | B134: 普定县 | C134: 小学 | D134: 语文 | E134: AS0320220139 | F134: 65.5 | G134: 32.75 | H134: 87.6 | I134: 43.8 | J134: 76.55
A135: 132 | B135: 普定县 | C135: 小学 | D135: 语文 | E135: AS0320220028 | F135: 64 | G135: 32 | H135: 89.02 | I135: 44.51 | J135: 76.51
A136: 133 | B136: 普定县 | C136: 小学 | D136: 语文 | E136: AS0320220027 | F136: 63.5 | G136: 31.75 | H136: 89.37 | I136: 44.685 | J136: 76.435
A137: 134 | B137: 普定县 | C137: 小学 | D137: 语文 | E137: AS0320220046 | F137: 66 | G137: 33 | H137: 86.28 | I137: 43.14 | J137: 76.14
A138: 135 | B138: 普定县 | C138: 小学 | D138: 语文 | E138: AS0320220141 | F138: 64 | G138: 32 | H138: 88.03 | I138: 44.015 | J138: 76.015
A139: 136 | B139: 普定县 | C139: 小学 | D139: 语文 | E139: AS0320220113 | F139: 62 | G139: 31 | H139: 89.6 | I139: 44.8 | J139: 75.8
A140: 137 | B140: 普定县 | C140: 小学 | D140: 语文 | E140: AS0320220170 | F140: 62.5 | G140: 31.25 | H140: 89.08 | I140: 44.54 | J140: 75.79
A141: 138 | B141: 普定县 | C141: 小学 | D141: 语文 | E141: AS0320220186 | F141: 64.5 | G141: 32.25 | H141: 87.06 | I141: 43.53 | J141: 75.78
A142: 139 | B142: 普定县 | C142: 小学 | D142: 语文 | E142: AS0320220026 | F142: 63 | G142: 31.5 | H142: 88.5 | I142: 44.25 | J142: 75.75
A143: 140 | B143: 普定县 | C143: 小学 | D143: 语文 | E143: AS0320220096 | F143: 64 | G143: 32 | H143: 87.36 | I143: 43.68 | J143: 75.68
A144: 141 | B144: 普定县 | C144: 小学 | D144: 语文 | E144: AS0320220034 | F144: 62.5 | G144: 31.25 | H144: 88.24 | I144: 44.12 | J144: 75.37
A145: 142 | B145: 普定县 | C145: 小学 | D145: 语文 | E145: AS0320220130 | F145: 64 | G145: 32 | H145: 86.46 | I145: 43.23 | J145: 75.23
A146: 143 | B146: 普定县 | C146: 小学 | D146: 语文 | E146: AS0320220078 | F146: 65 | G146: 32.5 | H146: 85.34 | I146: 42.67 | J146: 75.17
A147: 144 | B147: 普定县 | C147: 小学 | D147: 语文 | E147: AS0320220146 | F147: 64 | G147: 32 | H147: 86.34 | I147: 43.17 | J147: 75.17
A148: 145 | B148: 普定县 | C148: 小学 | D148: 语文 | E148: AS0320220054 | F148: 63 | G148: 31.5 | H148: 87.33 | I148: 43.665 | J148: 75.165
A149: 146 | B149: 普定县 | C149: 小学 | D149: 语文 | E149: AS0320220057 | F149: 62.5 | G149: 31.25 | H149: 87.79 | I149: 43.895 | J149: 75.145
A150: 147 | B150: 普定县 | C150: 小学 | D150: 语文 | E150: AS0320220084 | F150: 63 | G150: 31.5 | H150: 87.22 | I150: 43.61 | J150: 75.11
A151: 148 | B151: 普定县 | C151: 小学 | D151: 语文 | E151: AS0320220150 | F151: 62 | G151: 31 | H151: 87.72 | I151: 43.86 | J151: 74.86
A152: 149 | B152: 普定县 | C152: 小学 | D152: 语文 | E152: AS0320220156 | F152: 62.5 | G152: 31.25 | H152: 87.09 | I152: 43.545 | J152: 74.795
A153: 150 | B153: 普定县 | C153: 小学 | D153: 语文 | E153: AS0320220029 | F153: 64 | G153: 32 | H153: 85.59 | I153: 42.795 | J153: 74.795
A154: 151 | B154: 普定县 | C154: 小学 | D154: 语文 | E154: AS0320220104 | F154: 63 | G154: 31.5 | H154: 86.28 | I154: 43.14 | J154: 74.64
A155: 152 | B155: 普定县 | C155: 小学 | D155: 语文 | E155: AS0320220201 | F155: 65 | G155: 32.5 | H155: 84.24 | I155: 42.12 | J155: 74.62
A156: 153 | B156: 普定县 | C156: 小学 | D156: 语文 | E156: AS0320220173 | F156: 62.5 | G156: 31.25 | H156: 86.67 | I156: 43.335 | J156: 74.585
A157: 154 | B157: 普定县 | C157: 小学 | D157: 语文 | E157: AS0320220058 | F157: 62.5 | G157: 31.25 | H157: 86.45 | I157: 43.225 | J157: 74.475
A158: 155 | B158: 普定县 | C158: 小学 | D158: 语文 | E158: AS0320220111 | F158: 63.5 | G158: 31.75 | H158: 85.39 | I158: =H158/2 -> 42.695 | J158: 74.445
A159: 156 | B159: 普定县 | C159: 小学 | D159: 语文 | E159: AS0320220044 | F159: 67.5 | G159: 33.75 | H159: 81.31 | I159: 40.655 | J159: 74.405
A160: 157 | B160: 普定县 | C160: 小学 | D160: 语文 | E160: AS0320220128 | F160: 65 | G160: 32.5 | H160: 83.06 | I160: 41.53 | J160: 74.03
A161: 158 | B161: 普定县 | C161: 小学 | D161: 语文 | E161: AS0320220100 | F161: 62 | G161: 31 | H161: 85.69 | I161: 42.845 | J161: 73.845
A162: 159 | B162: 普定县 | C162: 小学 | D162: 语文 | E162: AS0320220165 | F162: 63.5 | G162: 31.75 | H162: 81.55 | I162: 40.775 | J162: 72.525
A163: 160 | B163: 普定县 | C163: 小学 | D163: 语文 | E163: AS0320220134 | F163: 62.5 | G163: 31.25 | H163: 81.75 | I163: 40.875 | J163: 72.125
A164: 161 | B164: 普定县 | C164: 小学 | D164: 语文 | E164: AS0320220183 | F164: 62 | G164: 31 | H164: 79.09 | I164: 39.545 | J164: 70.545
A165: 162 | B165: 普定县 | C165: 小学 | D165: 语文 | E165: AS0320220074 | F165: 67 | G165: 33.5 | H165: 缺考 | I165: 0 | J165: 33.5 | K165: 面试缺考
A166: 163 | B166: 普定县 | C166: 小学 | D166: 语文 | E166: AS0320220119 | F166: 66 | G166: 33 | H166: 缺考 | I166: 0 | J166: 33 | K166: 面试缺考
A167: 164 | B167: 普定县 | C167: 小学 | D167: 语文 | E167: AS0320220210 | F167: 64 | G167: 32 | H167: 缺考 | I167: 0 | J167: 32 | K167: 面试缺考
A168: 165 | B168: 普定县 | C168: 小学 | D168: 语文 | E168: AS0320220198 | F168: 63.5 | G168: 31.75 | H168: 缺考 | I168: 0 | J168: 31.75 | K168: 面试缺考
A169: 166 | B169: 普定县 | C169: 小学 | D169: 语文 | E169: AS0320220010 | F169: 62 | G169: 31 | H169: 缺考 | I169: 0 | J169: 31 | K169: 面试缺考
A170: 167 | B170: 普定县 | C170: 小学 | D170: 政治 | E170: AS0320220417 | F170: 81 | G170: 40.5 | H170: 87.04 | I170: =H170/2 -> 43.52 | J170: 84.02
A171: 168 | B171: 普定县 | C171: 小学 | D171: 政治 | E171: AS0320220416 | F171: 76 | G171: 38 | H171: 90.82 | I171: 45.41 | J171: 83.41
A172: 169 | B172: 普定县 | C172: 小学 | D172: 政治 | E172: AS0320220422 | F172: 73 | G172: 36.5 | H172: 89.9 | I172: 44.95 | J172: 81.45
A173: 170 | B173: 普定县 | C173: 小学 | D173: 政治 | E173: AS0320220407 | F173: 70 | G173: 35 | H173: 90.76 | I173: 45.38 | J173: 80.38
A174: 171 | B174: 普定县 | C174: 小学 | D174: 政治 | E174: AS0320220410 | F174: 75 | G174: 37.5 | H174: 84.3 | I174: 42.15 | J174: 79.65
A175: 172 | B175: 普定县 | C175: 小学 | D175: 政治 | E175: AS0320220423 | F175: 75 | G175: 37.5 | H175: 84 | I175: 42 | J175: 79.5
A176: 173 | B176: 普定县 | C176: 初中 | D176: 地理 | E176: AS0320220553 | F176: 87.5 | G176: 43.75 | H176: 90.2 | I176: 45.1 | J176: 88.85
A177: 174 | B177: 普定县 | C177: 初中 | D177: 地理 | E177: AS0320220552 | F177: 74 | G177: 37 | H177: 87.24 | I177: 43.62 | J177: 80.62
A178: 175 | B178: 普定县 | C178: 初中 | D178: 地理 | E178: AS0320220554 | F178: 72.5 | G178: 36.25 | H178: 85.05 | I178: 42.525 | J178: 78.775
A179: 176 | B179: 普定县 | C179: 初中 | D179: 历史 | E179: AS0320220532 | F179: 68 | G179: 34 | H179: 91.52 | I179: 45.76 | J179: 79.76
A180: 177 | B180: 普定县 | C180: 初中 | D180: 历史 | E180: AS0320220533 | F180: 67 | G180: 33.5 | H180: 90.46 | I180: 45.23 | J180: 78.73
A181: 178 | B181: 普定县 | C181: 初中 | D181: 历史 | E181: AS0320220527 | F181: 65 | G181: 32.5 | H181: 92.42 | I181: 46.21 | J181: 78.71
A182: 179 | B182: 普定县 | C182: 初中 | D182: 历史 | E182: AS0320220534 | F182: 65 | G182: 32.5 | H182: 91.02 | I182: 45.51 | J182: 78.01
A183: 180 | B183: 普定县 | C183: 初中 | D183: 历史 | E183: AS0320220543 | F183: 64 | G183: 32 | H183: 89.8 | I183: 44.9 | J183: 76.9
A184: 181 | B184: 普定县 | C184: 初中 | D184: 历史 | E184: AS0320220530 | F184: 60 | G184: 30 | H184: 90 | I184: 45 | J184: 75
A185: 182 | B185: 普定县 | C185: 初中 | D185: 生物 | E185: AS0320220371 | F185: 78 | G185: 39 | H185: 92.95 | I185: 46.475 | J185: 85.475
A186: 183 | B186: 普定县 | C186: 初中 | D186: 生物 | E186: AS0320220370 | F186: 72 | G186: 36 | H186: 91.73 | I186: 45.865 | J186: 81.865
A187: 184 | B187: 普定县 | C187: 初中 | D187: 生物 | E187: AS0320220353 | F187: 72 | G187: 36 | H187: 89.84 | I187: 44.92 | J187: 80.92
A188: 185 | B188: 普定县 | C188: 初中 | D188: 生物 | E188: AS0320220351 | F188: 73 | G188: 36.5 | H188: 88.74 | I188: 44.37 | J188: 80.87
A189: 186 | B189: 普定县 | C189: 初中 | D189: 生物 | E189: AS0320220334 | F189: 68 | G189: 34 | H189: 89.49 | I189: 44.745 | J189: 78.745
A190: 187 | B190: 普定县 | C190: 初中 | D190: 生物 | E190: AS0320220331 | F190: 72 | G190: 36 | H190: 83.4 | I190: 41.7 | J190: 77.7
A191: 188 | B191: 普定县 | C191: 初中 | D191: 生物 | E191: AS0320220338 | F191: 72 | G191: 36 | H191: 82.27 | I191: 41.135 | J191: 77.135
A192: 189 | B192: 普定县 | C192: 初中 | D192: 生物 | E192: AS0320220363 | F192: 69 | G192: 34.5 | H192: 84.65 | I192: 42.325 | J192: 76.825
A193: 190 | B193: 普定县 | C193: 初中 | D193: 生物 | E193: AS0320220346 | F193: 68 | G193: 34 | H193: 84.53 | I193: 42.265 | J193: 76.265
A194: 191 | B194: 普定县 | C194: 初中 | D194: 数学 | E194: AS0320220456 | F194: 80 | G194: 40 | H194: 90.97 | I194: 45.485 | J194: 85.485
A195: 192 | B195: 普定县 | C195: 初中 | D195: 数学 | E195: AS0320220453 | F195: 78 | G195: 39 | H195: 87.64 | I195: 43.82 | J195: 82.82
A196: 193 | B196: 普定县 | C196: 初中 | D196: 数学 | E196: AS0320220447 | F196: 77 | G196: =F196/2 -> 38.5 | H196: 86.29 | I196: 43.145 | J196: 81.645
A197: 194 | B197: 普定县 | C197: 初中 | D197: 数学 | E197: AS0320220454 | F197: 66 | G197: 33 | H197: 85.66 | I197: 42.83 | J197: 75.83
A198: 195 | B198: 普定县 | C198: 初中 | D198: 数学 | E198: AS0320220458 | F198: 65 | G198: 32.5 | H198: 83.89 | I198: 41.945 | J198: 74.445
A199: 196 | B199: 普定县 | C199: 初中 | D199: 数学 | E199: AS0320220457 | F199: 64 | G199: 32 | H199: 84.53 | I199: 42.265 | J199: 74.265
A200: 197 | B200: 普定县 | C200: 初中 | D200: 数学 | E200: AS0320220449 | F200: 57 | G200: 28.5 | H200: 80.21 | I200: 40.105 | J200: 68.605
... 54 more rows

Sheet 镇宁县
A1: 附件1： 镇宁县2022年“特岗计划”教师招聘总成绩统计情况表
A2: 序号 | B2: 报考县区 | C2: 报考学段 | D2: 报考学科 | E2: 报考片区 | F2: 笔试准考证号 | G2: 笔试得分 | H2: 折算成绩(占总成绩50%） | I2: 面试得分 | J2: 折算成绩(占总成绩50%） | K2: 总成绩 | L2: 备注
A3: 1 | B3: 镇宁 | C3: 初中 | D3: 语文 | F3: AS0420220012 | G3: 76.5 | H3: =G3*0.5 -> 38.25 | I3: 68.53 | J3: =I3*0.5 -> 34.265 | K3: =H3+J3 -> 72.515
A4: 2 | B4: 镇宁 | C4: 小学 | D4: 政治 | F4: AS0420222923 | G4: 65 | H4: 32.5 | I4: 77.75 | J4: 38.875 | K4: 71.375
A5: 3 | B5: 镇宁 | C5: 小学 | D5: 政治 | F5: AS0420222958 | G5: 68.5 | H5: 34.25 | I5: 82.95 | J5: 41.475 | K5: 75.725
A6: 4 | B6: 镇宁 | C6: 小学 | D6: 政治 | F6: AS0420222898 | G6: 75 | H6: 37.5 | I6: 80.81 | J6: 40.405 | K6: 77.905
A7: 5 | B7: 镇宁 | C7: 小学 | D7: 政治 | F7: AS0420222868 | G7: 67 | H7: 33.5 | I7: 85.82 | J7: 42.91 | K7: 76.41
A8: 6 | B8: 镇宁 | C8: 小学 | D8: 政治 | F8: AS0420222916 | G8: 68 | H8: 34 | I8: 83.07 | J8: 41.535 | K8: 75.535
A9: 7 | B9: 镇宁 | C9: 小学 | D9: 政治 | F9: AS0420222952 | G9: 67.5 | H9: 33.75 | I9: 71.13 | J9: 35.565 | K9: 69.315
A10: 8 | B10: 镇宁 | C10: 小学 | D10: 政治 | F10: AS0420222834 | G10: 72 | H10: 36 | I10: 75.40 | J10: 37.7 | K10: 73.7
A11: 9 | B11: 镇宁 | C11: 小学 | D11: 政治 | F11: AS0420222877 | G11: 62 | H11: 31 | I11: 80.66 | J11: 40.33 | K11: 71.33
A12: 10 | B12: 镇宁 | C12: 初中 | D12: 语文 | F12: AS0420220005 | G12: 74 | H12: 37 | I12: 82.27 | J12: 41.135 | K12: 78.135
A13: 11 | B13: 镇宁 | C13: 小学 | D13: 政治 | F13: AS0420222853 | G13: 71 | H13: 35.5 | I13: 84.49 | J13: 42.245 | K13: 77.745
A14: 12 | B14: 镇宁 | C14: 初中 | D14: 语文 | F14: AS0420220001 | G14: 62.5 | H14: 31.25 | I14: 68.81 | J14: 34.405 | K14: 65.655
A15: 13 | B15: 镇宁 | C15: 小学 | D15: 政治 | F15: AS0420222897 | G15: 65 | H15: 32.5 | I15: 76.48 | J15: 38.24 | K15: 70.74
A16: 14 | B16: 镇宁 | C16: 小学 | D16: 政治 | F16: AS0420222831 | G16: 62 | H16: 31 | I16: 79.25 | J16: 39.625 | K16: 70.625
A17: 15 | B17: 镇宁 | C17: 小学 | D17: 政治 | F17: AS0420222872 | G17: 64 | H17: 32 | I17: 77.94 | J17: 38.97 | K17: 70.97
A18: 16 | B18: 镇宁 | C18: 小学 | D18: 政治 | F18: AS0420222832 | G18: 68.5 | H18: 34.25 | I18: 84.33 | J18: 42.165 | K18: 76.415
A19: 17 | B19: 镇宁 | C19: 初中 | D19: 语文 | F19: AS0420220013 | G19: 65.5 | H19: 32.75 | I19: 79.76 | J19: 39.88 | K19: 72.63
A20: 18 | B20: 镇宁 | C20: 小学 | D20: 政治 | F20: AS0420222927 | G20: 66 | H20: 33 | I20: 83.00 | J20: 41.5 | K20: 74.5
A21: 19 | B21: 镇宁 | C21: 初中 | D21: 语文 | F21: AS0420220009 | G21: 68 | H21: 34 | I21: 76.55 | J21: 38.275 | K21: 72.275
A22: 20 | B22: 镇宁 | C22: 小学 | D22: 政治 | F22: AS0420222861 | G22: 71 | H22: 35.5 | I22: 84.24 | J22: 42.12 | K22: 77.62
A23: 21 | B23: 镇宁 | C23: 初中 | D23: 语文 | F23: AS0420220010 | G23: 71 | H23: 35.5 | I23: 80.30 | J23: 40.15 | K23: 75.65
A24: 22 | B24: 镇宁 | C24: 小学 | D24: 政治 | F24: AS0420222821 | G24: 68 | H24: 34 | I24: 74.50 | J24: 37.25 | K24: 71.25
A25: 23 | B25: 镇宁 | C25: 小学 | D25: 政治 | F25: AS0420222859 | G25: 69 | H25: 34.5 | I25: 73.90 | J25: 36.95 | K25: 71.45
A26: 24 | B26: 镇宁 | C26: 初中 | D26: 语文 | F26: AS0420220003 | G26: 72.5 | H26: 36.25 | I26: 79.93 | J26: 39.965 | K26: 76.215
A27: 25 | B27: 镇宁 | C27: 小学 | D27: 政治 | F27: AS0420222843 | G27: 66.5 | H27: 33.25 | I27: 76.39 | J27: 38.195 | K27: 71.445
A28: 26 | B28: 镇宁 | C28: 小学 | D28: 政治 | F28: AS0420222890 | G28: 68.5 | H28: 34.25 | I28: 79.93 | J28: 39.965 | K28: 74.215
A29: 27 | B29: 镇宁 | C29: 初中 | D29: 语文 | F29: AS0420220002 | G29: 71.5 | H29: 35.75 | I29: 70.87 | J29: 35.435 | K29: 71.185
A30: 28 | B30: 镇宁 | C30: 小学 | D30: 政治 | F30: AS0420222885 | G30: 63 | H30: 31.5 | I30: 80.10 | J30: 40.05 | K30: 71.55
A31: 29 | B31: 镇宁 | C31: 初中 | D31: 语文 | F31: AS0420220004 | G31: 64.5 | H31: 32.25 | I31: 76.95 | J31: 38.475 | K31: 70.725
A32: 30 | B32: 镇宁 | C32: 小学 | D32: 政治 | F32: AS0420222842 | G32: 71.5 | H32: 35.75 | I32: 81.50 | J32: 40.75 | K32: 76.5
A33: 31 | B33: 镇宁 | C33: 小学 | D33: 政治 | F33: AS0420222864 | G33: 62.5 | H33: 31.25 | I33: 81.51 | J33: 40.755 | K33: 72.005
A34: 32 | B34: 镇宁 | C34: 初中 | D34: 语文 | F34: AS0420220007 | G34: 68 | H34: 34 | I34: 83.97 | J34: 41.985 | K34: 75.985
A35: 33 | B35: 镇宁 | C35: 小学 | D35: 政治 | F35: AS0420222942 | G35: 70 | H35: 35 | I35: 72.28 | J35: 36.14 | K35: 71.14
A36: 34 | B36: 镇宁 | C36: 初中 | D36: 语文 | F36: AS0420220011 | G36: 67.5 | H36: 33.75 | I36: 81.95 | J36: 40.975 | K36: 74.725
A37: 35 | B37: 镇宁 | C37: 初中 | D37: 语文 | F37: AS0420220016 | G37: 50 | H37: 25 | I37: 72.54 | J37: 36.27 | K37: 61.27
A38: 36 | B38: 镇宁 | C38: 小学 | D38: 政治 | F38: AS0420222939 | G38: 64 | H38: 32 | I38: 77 | J38: 38.5 | K38: 70.5
A39: 37 | B39: 镇宁 | C39: 初中 | D39: 语文 | F39: AS0420220008 | G39: 73 | H39: 36.5 | I39: 75.33 | J39: 37.665 | K39: 74.165
A40: 38 | B40: 镇宁 | C40: 小学 | D40: 政治 | F40: AS0420222933 | G40: 72 | H40: 36 | I40: 81.51 | J40: 40.755 | K40: 76.755
A41: 39 | B41: 镇宁 | C41: 小学 | D41: 政治 | F41: AS0420222903 | G41: 70 | H41: 35 | I41: 77.22 | J41: 38.61 | K41: 73.61
A42: 40 | B42: 镇宁 | C42: 初中 | D42: 语文 | F42: AS0420220014 | G42: 65.5 | H42: 32.75 | I42: 76.66 | J42: 38.33 | K42: 71.08
A43: 41 | B43: 镇宁 | C43: 小学 | D43: 政治 | F43: AS0420222828 | G43: 63 | H43: 31.5 | I43: 83.08 | J43: 41.54 | K43: 73.04
A44: 42 | B44: 镇宁 | C44: 小学 | D44: 政治 | F44: AS0420222820 | G44: 73.5 | H44: 36.75 | I44: 82.08 | J44: 41.04 | K44: 77.79
A45: 43 | B45: 镇宁 | C45: 初中 | D45: 语文 | F45: AS0420220006 | G45: 69 | H45: 34.5 | I45: 76.83 | J45: 38.415 | K45: 72.915
A46: 44 | B46: 镇宁 | C46: 小学 | D46: 政治 | F46: AS0420222823 | G46: 63.5 | H46: 31.75 | I46: 80.59 | J46: 40.295 | K46: 72.045
A47: 45 | B47: 镇宁 | C47: 小学 | D47: 政治 | F47: AS0420222871 | G47: 67.5 | H47: 33.75 | I47: 81.28 | J47: 40.64 | K47: 74.39
A48: 46 | B48: 镇宁 | C48: 小学 | D48: 政治 | F48: AS0420222962 | G48: 64 | H48: 32 | I48: 72.80 | J48: 36.4 | K48: 68.4
A49: 47 | B49: 镇宁 | C49: 小学 | D49: 政治 | F49: AS0420222837 | G49: 69 | H49: 34.5 | I49: 70.16 | J49: 35.08 | K49: 69.58
A50: 48 | B50: 镇宁 | C50: 小学 | D50: 政治 | F50: AS0420222940 | G50: 69 | H50: 34.5 | I50: 79.36 | J50: 39.68 | K50: 74.18
A51: 49 | B51: 镇宁 | C51: 小学 | D51: 政治 | F51: AS0420222870 | G51: 69 | H51: 34.5 | I51: 79.81 | J51: 39.905 | K51: 74.405
A52: 50 | B52: 镇宁 | C52: 小学 | D52: 政治 | F52: AS0420222862 | G52: 63 | H52: 31.5 | I52: 73.75 | J52: 36.875 | K52: 68.375
A53: 51 | B53: 镇宁 | C53: 小学 | D53: 政治 | F53: AS0420222907 | G53: 70 | H53: 35 | I53: 77.52 | J53: 38.76 | K53: 73.76
A54: 52 | B54: 镇宁 | C54: 小学 | D54: 政治 | F54: AS0420222867 | G54: 63 | H54: 31.5 | I54: 75.63 | J54: 37.815 | K54: 69.315
A55: 53 | B55: 镇宁 | C55: 初中 | D55: 语文 | F55: AS0420220018 | G55: 61.5 | H55: 30.75 | I55: 缺考 | J55: 0 | K55: 30.75 | L55: 面试缺考
A56: 54 | B56: 镇宁 | C56: 初中 | D56: 语文 | F56: AS0420220015 | G56: 46.5 | H56: 23.25 | I56: 缺考 | J56: 0 | K56: 23.25 | L56: 面试缺考
A57: 55 | B57: 镇宁 | C57: 初中 | D57: 语文 | F57: AS0420220017 | G57: 34 | H57: 17 | I57: 缺考 | J57: 0 | K57: 17 | L57: 面试缺考
A58: 56 | B58: 镇宁 | C58: 小学 | D58: 政治 | F58: AS0420222937 | G58: 65 | H58: 32.5 | I58: 缺考 | J58: 0 | K58: 32.5 | L58: 面试缺考
A59: 57 | B59: 镇宁 | C59: 小学 | D59: 政治 | F59: AS0420222825 | G59: 64 | H59: 32 | I59: 缺考 | J59: 0 | K59: 32 | L59: 面试缺考
A60: 58 | B60: 镇宁 | C60: 小学 | D60: 政治 | F60: AS0420222905 | G60: 64 | H60: 32 | I60: 缺考 | J60: 0 | K60: 32 | L60: 面试缺考
A61: 59 | B61: 镇宁 | C61: 小学 | D61: 政治 | F61: AS0420222854 | G61: 63 | H61: 31.5 | I61: 缺考 | J61: 0 | K61: 31.5 | L61: 面试缺考
A62: 60 | B62: 镇宁 | C62: 小学 | D62: 政治 | F62: AS0420222830 | G62: 62 | H62: 31 | I62: 缺考 | J62: 0 | K62: 31 | L62: 面试缺考
A63: 61 | B63: 镇宁 | C63: 小学 | D63: 政治 | F63: AS0420222835 | G63: 62 | H63: 31 | I63: 缺考 | J63: 0 | K63: 31 | L63: 面试缺考
A64: 62 | B64: 镇宁 | C64: 小学 | D64: 政治 | F64: AS0420222840 | G64: 62 | H64: 31 | I64: 缺考 | J64: 0 | K64: 31 | L64: 面试缺考
A65: 63 | B65: 镇宁 | C65: 小学 | D65: 政治 | F65: AS0420222869 | G65: 62 | H65: 31 | I65: 缺考 | J65: 0 | K65: 31 | L65: 面试缺考
A66: 64 | B66: 镇宁 | C66: 小学 | D66: 政治 | F66: AS0420222891 | G66: 62 | H66: 31 | I66: 缺考 | J66: 0 | K66: 31 | L66: 面试缺考
A67: 65 | B67: 镇宁 | C67: 小学 | D67: 政治 | F67: AS0420222925 | G67: 62 | H67: =G67*0.5 -> 31 | I67: 缺考 | J67: 0 | K67: =H67+J67 -> 31 | L67: 面试缺考
A68: 66 | B68: 镇宁 | C68: 小学 | D68: 语文 | E68: 1片区 | F68: AS0420220179 | G68: 63.5 | H68: 31.75 | I68: 74.65 | J68: =I68*0.5 -> 37.325 | K68: 69.075
A69: 67 | B69: 镇宁 | C69: 小学 | D69: 语文 | E69: 1片区 | F69: AS0420220036 | G69: 64.5 | H69: 32.25 | I69: 70.09 | J69: 35.045 | K69: 67.295
A70: 68 | B70: 镇宁 | C70: 小学 | D70: 语文 | E70: 1片区 | F70: AS0420220053 | G70: 71.5 | H70: 35.75 | I70: 82.25 | J70: 41.125 | K70: 76.875
A71: 69 | B71: 镇宁 | C71: 小学 | D71: 语文 | E71: 1片区 | F71: AS0420220106 | G71: 64.5 | H71: 32.25 | I71: 82.05 | J71: 41.025 | K71: 73.275
A72: 70 | B72: 镇宁 | C72: 小学 | D72: 语文 | E72: 1片区 | F72: AS0420220026 | G72: 63.5 | H72: 31.75 | I72: 84.95 | J72: 42.475 | K72: 74.225
A73: 71 | B73: 镇宁 | C73: 小学 | D73: 语文 | E73: 1片区 | F73: AS0420220042 | G73: 70.5 | H73: 35.25 | I73: 89.83 | J73: 44.915 | K73: 80.165
A74: 72 | B74: 镇宁 | C74: 小学 | D74: 语文 | E74: 1片区 | F74: AS0420220114 | G74: 63 | H74: 31.5 | I74: 81.79 | J74: 40.895 | K74: 72.395
A75: 73 | B75: 镇宁 | C75: 小学 | D75: 语文 | E75: 1片区 | F75: AS0420220143 | G75: 64 | H75: 32 | I75: 77.98 | J75: 38.99 | K75: 70.99
A76: 74 | B76: 镇宁 | C76: 小学 | D76: 语文 | E76: 1片区 | F76: AS0420220172 | G76: 67 | H76: 33.5 | I76: 70.69 | J76: 35.345 | K76: 68.845
A77: 75 | B77: 镇宁 | C77: 小学 | D77: 语文 | E77: 1片区 | F77: AS0420220021 | G77: 69.5 | H77: 34.75 | I77: 84.24 | J77: 42.12 | K77: 76.87
A78: 76 | B78: 镇宁 | C78: 小学 | D78: 语文 | E78: 1片区 | F78: AS0420220057 | G78: 72 | H78: 36 | I78: 83.70 | J78: 41.85 | K78: 77.85
A79: 77 | B79: 镇宁 | C79: 小学 | D79: 语文 | E79: 1片区 | F79: AS0420220035 | G79: 78.5 | H79: 39.25 | I79: 87.90 | J79: 43.95 | K79: 83.2
A80: 78 | B80: 镇宁 | C80: 小学 | D80: 语文 | E80: 1片区 | F80: AS0420220020 | G80: 80.5 | H80: 40.25 | I80: 86.22 | J80: 43.11 | K80: 83.36
A81: 79 | B81: 镇宁 | C81: 小学 | D81: 语文 | E81: 1片区 | F81: AS0420220142 | G81: 63 | H81: 31.5 | I81: 84.61 | J81: 42.305 | K81: 73.805
A82: 80 | B82: 镇宁 | C82: 小学 | D82: 语文 | E82: 1片区 | F82: AS0420220132 | G82: 68 | H82: 34 | I82: 84.25 | J82: 42.125 | K82: 76.125
A83: 81 | B83: 镇宁 | C83: 小学 | D83: 语文 | E83: 1片区 | F83: AS0420220065 | G83: 64 | H83: 32 | I83: 83.98 | J83: 41.99 | K83: 73.99
A84: 82 | B84: 镇宁 | C84: 小学 | D84: 语文 | E84: 1片区 | F84: AS0420220174 | G84: 63 | H84: 31.5 | I84: 76.94 | J84: 38.47 | K84: 69.97
A85: 83 | B85: 镇宁 | C85: 小学 | D85: 语文 | E85: 1片区 | F85: AS0420220063 | G85: 69.5 | H85: 34.75 | I85: 88.59 | J85: 44.295 | K85: 79.045
A86: 84 | B86: 镇宁 | C86: 小学 | D86: 语文 | E86: 1片区 | F86: AS0420220148 | G86: 68.7 | H86: 34.35 | I86: 85.79 | J86: 42.895 | K86: 77.245
A87: 85 | B87: 镇宁 | C87: 小学 | D87: 语文 | E87: 1片区 | F87: AS0420220136 | G87: 63 | H87: 31.5 | I87: 78.66 | J87: 39.33 | K87: 70.83
A88: 86 | B88: 镇宁 | C88: 小学 | D88: 语文 | E88: 1片区 | F88: AS0420220123 | G88: 66 | H88: 33 | I88: 79.82 | J88: 39.91 | K88: 72.91
A89: 87 | B89: 镇宁 | C89: 小学 | D89: 语文 | E89: 1片区 | F89: AS0420220181 | G89: 65 | H89: 32.5 | I89: 76.03 | J89: 38.015 | K89: 70.515
A90: 88 | B90: 镇宁 | C90: 小学 | D90: 语文 | E90: 1片区 | F90: AS0420220153 | G90: 64.5 | H90: 32.25 | I90: 69.31 | J90: 34.655 | K90: 66.905
A91: 89 | B91: 镇宁 | C91: 小学 | D91: 语文 | E91: 1片区 | F91: AS0420220056 | G91: 64 | H91: 32 | I91: 82.27 | J91: 41.135 | K91: 73.135
A92: 90 | B92: 镇宁 | C92: 小学 | D92: 语文 | E92: 1片区 | F92: AS0420220047 | G92: 64 | H92: 32 | I92: 82.82 | J92: 41.41 | K92: 73.41
A93: 91 | B93: 镇宁 | C93: 小学 | D93: 语文 | E93: 1片区 | F93: AS0420220117 | G93: 63.5 | H93: 31.75 | I93: 83.39 | J93: 41.695 | K93: 73.445
A94: 92 | B94: 镇宁 | C94: 小学 | D94: 语文 | E94: 1片区 | F94: AS0420220082 | G94: 69.5 | H94: 34.75 | I94: 86.67 | J94: 43.335 | K94: 78.085
A95: 93 | B95: 镇宁 | C95: 小学 | D95: 语文 | E95: 1片区 | F95: AS0420220137 | G95: 68 | H95: 34 | I95: 82.98 | J95: 41.49 | K95: 75.49
A96: 94 | B96: 镇宁 | C96: 小学 | D96: 语文 | E96: 1片区 | F96: AS0420220144 | G96: 68.5 | H96: 34.25 | I96: 90.32 | J96: 45.16 | K96: 79.41
A97: 95 | B97: 镇宁 | C97: 小学 | D97: 语文 | E97: 1片区 | F97: AS0420220127 | G97: 72 | H97: 36 | I97: 85.65 | J97: 42.825 | K97: 78.825
A98: 96 | B98: 镇宁 | C98: 小学 | D98: 语文 | E98: 1片区 | F98: AS0420220031 | G98: 76.5 | H98: 38.25 | I98: 88.00 | J98: 44 | K98: 82.25
A99: 97 | B99: 镇宁 | C99: 小学 | D99: 语文 | E99: 1片区 | F99: AS0420220113 | G99: 69 | H99: 34.5 | I99: 86.45 | J99: 43.225 | K99: 77.725
A100: 98 | B100: 镇宁 | C100: 小学 | D100: 语文 | E100: 1片区 | F100: AS0420220058 | G100: 69 | H100: 34.5 | I100: 86.35 | J100: 43.175 | K100: 77.675
A101: 99 | B101: 镇宁 | C101: 小学 | D101: 语文 | E101: 1片区 | F101: AS0420220049 | G101: 69 | H101: 34.5 | I101: 84.16 | J101: 42.08 | K101: 76.58
A102: 100 | B102: 镇宁 | C102: 小学 | D102: 语文 | E102: 1片区 | F102: AS0420220019 | G102: 69 | H102: 34.5 | I102: 86.56 | J102: 43.28 | K102: 77.78
A103: 101 | B103: 镇宁 | C103: 小学 | D103: 语文 | E103: 1片区 | F103: AS0420220167 | G103: 68 | H103: 34 | I103: 84.73 | J103: 42.365 | K103: 76.365
A104: 102 | B104: 镇宁 | C104: 小学 | D104: 语文 | E104: 1片区 | F104: AS0420220101 | G104: 65 | H104: 32.5 | I104: 75.99 | J104: 37.995 | K104: 70.495
A105: 103 | B105: 镇宁 | C105: 小学 | D105: 语文 | E105: 1片区 | F105: AS0420220103 | G105: 65.5 | H105: 32.75 | I105: 76.09 | J105: 38.045 | K105: 70.795
A106: 104 | B106: 镇宁 | C106: 小学 | D106: 语文 | E106: 1片区 | F106: AS0420220081 | G106: 73.5 | H106: 36.75 | I106: 81.93 | J106: 40.965 | K106: 77.715
A107: 105 | B107: 镇宁 | C107: 小学 | D107: 语文 | E107: 1片区 | F107: AS0420220159 | G107: 64.5 | H107: 32.25 | I107: 85.85 | J107: 42.925 | K107: 75.175
A108: 106 | B108: 镇宁 | C108: 小学 | D108: 语文 | E108: 1片区 | F108: AS0420220129 | G108: 66.2 | H108: 33.1 | I108: 87.40 | J108: 43.7 | K108: 76.8
A109: 107 | B109: 镇宁 | C109: 小学 | D109: 语文 | E109: 1片区 | F109: AS0420220029 | G109: 72 | H109: 36 | I109: 85.52 | J109: 42.76 | K109: 78.76
A110: 108 | B110: 镇宁 | C110: 小学 | D110: 语文 | E110: 1片区 | F110: AS0420220131 | G110: 72.5 | H110: 36.25 | I110: 90.25 | J110: 45.125 | K110: 81.375
A111: 109 | B111: 镇宁 | C111: 小学 | D111: 语文 | E111: 1片区 | F111: AS0420220084 | G111: 67 | H111: 33.5 | I111: 85.66 | J111: 42.83 | K111: 76.33
A112: 110 | B112: 镇宁 | C112: 小学 | D112: 语文 | E112: 1片区 | F112: AS0420220034 | G112: 66.5 | H112: 33.25 | I112: 82.49 | J112: 41.245 | K112: 74.495
A113: 111 | B113: 镇宁 | C113: 小学 | D113: 语文 | E113: 1片区 | F113: AS0420220140 | G113: 67.5 | H113: 33.75 | I113: 87.41 | J113: 43.705 | K113: 77.455
A114: 112 | B114: 镇宁 | C114: 小学 | D114: 语文 | E114: 1片区 | F114: AS0420220108 | G114: 66.5 | H114: 33.25 | I114: 83.27 | J114: 41.635 | K114: 74.885
A115: 113 | B115: 镇宁 | C115: 小学 | D115: 语文 | E115: 1片区 | F115: AS0420220022 | G115: 64.5 | H115: 32.25 | I115: 85.92 | J115: 42.96 | K115: 75.21
A116: 114 | B116: 镇宁 | C116: 小学 | D116: 语文 | E116: 1片区 | F116: AS0420220048 | G116: 64 | H116: 32 | I116: 81.32 | J116: 40.66 | K116: 72.66
A117: 115 | B117: 镇宁 | C117: 小学 | D117: 语文 | E117: 1片区 | F117: AS0420220054 | G117: 71.5 | H117: 35.75 | I117: 84.31 | J117: 42.155 | K117: 77.905
A118: 116 | B118: 镇宁 | C118: 小学 | D118: 语文 | E118: 1片区 | F118: AS0420220089 | G118: 67 | H118: 33.5 | I118: 82.99 | J118: 41.495 | K118: 74.995
A119: 117 | B119: 镇宁 | C119: 小学 | D119: 语文 | E119: 1片区 | F119: AS0420220182 | G119: 66 | H119: 33 | I119: 64.75 | J119: 32.375 | K119: 65.375
A120: 118 | B120: 镇宁 | C120: 小学 | D120: 语文 | E120: 1片区 | F120: AS0420220121 | G120: 64 | H120: 32 | I120: 缺考 | J120: 0 | K120: 32 | L120: 面试缺考
A121: 119 | B121: 镇宁 | C121: 小学 | D121: 语文 | E121: 1片区 | F121: AS0420220156 | G121: 64 | H121: 32 | I121: 缺考 | J121: 0 | K121: 32 | L121: 面试缺考
A122: 120 | B122: 镇宁 | C122: 小学 | D122: 语文 | E122: 1片区 | F122: AS0420220158 | G122: 64 | H122: 32 | I122: 缺考 | J122: 0 | K122: 32 | L122: 面试缺考
A123: 121 | B123: 镇宁 | C123: 小学 | D123: 语文 | E123: 1片区 | F123: AS0420220169 | G123: 63 | H123: 31.5 | I123: 缺考 | J123: 0 | K123: 31.5 | L123: 面试缺考
A124: 122 | B124: 镇宁 | C124: 小学 | D124: 语文 | E124: 1片区 | F124: AS0420220085 | G124: 65 | H124: 32.5 | I124: 缺考 | J124: 0 | K124: 32.5 | L124: 面试缺考
A125: 123 | B125: 镇宁 | C125: 小学 | D125: 语文 | E125: 1片区 | F125: AS0420220028 | G125: 65 | H125: 32.5 | I125: 缺考 | J125: 0 | K125: 32.5 | L125: 面试缺考
A126: 124 | B126: 镇宁 | C126: 小学 | D126: 语文 | E126: 2片区 | F126: AS0420220320 | G126: 74.5 | H126: 37.25 | I126: 69.52 | J126: 34.76 | K126: 72.01
A127: 125 | B127: 镇宁 | C127: 小学 | D127: 语文 | E127: 2片区 | F127: AS0420220386 | G127: 66.5 | H127: 33.25 | I127: 75.61 | J127: 37.805 | K127: 71.055
A128: 126 | B128: 镇宁 | C128: 小学 | D128: 语文 | E128: 2片区 | F128: AS0420220339 | G128: 76 | H128: 38 | I128: 85.52 | J128: 42.76 | K128: 80.76
A129: 127 | B129: 镇宁 | C129: 小学 | D129: 语文 | E129: 2片区 | F129: AS0420220199 | G129: 69.5 | H129: 34.75 | I129: 85.64 | J129: 42.82 | K129: 77.57
A130: 128 | B130: 镇宁 | C130: 小学 | D130: 语文 | E130: 2片区 | F130: AS0420220340 | G130: 68 | H130: 34 | I130: 89.16 | J130: 44.58 | K130: 78.58
A131: 129 | B131: 镇宁 | C131: 小学 | D131: 语文 | E131: 2片区 | F131: AS0420220193 | G131: 70.5 | H131: =G131*0.5 -> 35.25 | I131: 87.97 | J131: =I131*0.5 -> 43.985 | K131: =H131+J131 -> 79.235
A132: 130 | B132: 镇宁 | C132: 小学 | D132: 语文 | E132: 2片区 | F132: AS0420220204 | G132: 67.5 | H132: 33.75 | I132: 89.21 | J132: 44.605 | K132: 78.355
A133: 131 | B133: 镇宁 | C133: 小学 | D133: 语文 | E133: 2片区 | F133: AS0420220261 | G133: 70.5 | H133: 35.25 | I133: 87.96 | J133: 43.98 | K133: 79.23
A134: 132 | B134: 镇宁 | C134: 小学 | D134: 语文 | E134: 2片区 | F134: AS0420220312 | G134: 69.5 | H134: 34.75 | I134: 84.42 | J134: 42.21 | K134: 76.96
A135: 133 | B135: 镇宁 | C135: 小学 | D135: 语文 | E135: 2片区 | F135: AS0420220377 | G135: 66.5 | H135: 33.25 | I135: 83.14 | J135: 41.57 | K135: 74.82
A136: 134 | B136: 镇宁 | C136: 小学 | D136: 语文 | E136: 2片区 | F136: AS0420220325 | G136: 69 | H136: 34.5 | I136: 81.58 | J136: 40.79 | K136: 75.29
A137: 135 | B137: 镇宁 | C137: 小学 | D137: 语文 | E137: 2片区 | F137: AS0420220232 | G137: 76.5 | H137: 38.25 | I137: 80.61 | J137: 40.305 | K137: 78.555
A138: 136 | B138: 镇宁 | C138: 小学 | D138: 语文 | E138: 2片区 | F138: AS0420220239 | G138: 66.5 | H138: 33.25 | I138: 79.61 | J138: 39.805 | K138: 73.055
A139: 137 | B139: 镇宁 | C139: 小学 | D139: 语文 | E139: 2片区 | F139: AS0420220187 | G139: 69 | H139: 34.5 | I139: 74.95 | J139: 37.475 | K139: 71.975
A140: 138 | B140: 镇宁 | C140: 小学 | D140: 语文 | E140: 2片区 | F140: AS0420220393 | G140: 70 | H140: 35 | I140: 84.84 | J140: 42.42 | K140: 77.42
A141: 139 | B141: 镇宁 | C141: 小学 | D141: 语文 | E141: 2片区 | F141: AS0420220308 | G141: 67 | H141: 33.5 | I141: 71.12 | J141: 35.56 | K141: 69.06
A142: 140 | B142: 镇宁 | C142: 小学 | D142: 语文 | E142: 2片区 | F142: AS0420220309 | G142: 71 | H142: 35.5 | I142: 72.13 | J142: 36.065 | K142: 71.565
A143: 141 | B143: 镇宁 | C143: 小学 | D143: 语文 | E143: 2片区 | F143: AS0420220351 | G143: 72.5 | H143: 36.25 | I143: 76.87 | J143: 38.435 | K143: 74.685
A144: 142 | B144: 镇宁 | C144: 小学 | D144: 语文 | E144: 2片区 | F144: AS0420220300 | G144: 68 | H144: 34 | I144: 82.12 | J144: 41.06 | K144: 75.06
A145: 143 | B145: 镇宁 | C145: 小学 | D145: 语文 | E145: 2片区 | F145: AS0420220196 | G145: 67 | H145: 33.5 | I145: 83.25 | J145: 41.625 | K145: 75.125
A146: 144 | B146: 镇宁 | C146: 小学 | D146: 语文 | E146: 2片区 | F146: AS0420220243 | G146: 69 | H146: 34.5 | I146: 73.90 | J146: 36.95 | K146: 71.45
A147: 145 | B147: 镇宁 | C147: 小学 | D147: 语文 | E147: 2片区 | F147: AS0420220219 | G147: 73 | H147: 36.5 | I147: 89.93 | J147: 44.965 | K147: 81.465
A148: 146 | B148: 镇宁 | C148: 小学 | D148: 语文 | E148: 2片区 | F148: AS0420220231 | G148: 67 | H148: 33.5 | I148: 80.29 | J148: 40.145 | K148: 73.645
A149: 147 | B149: 镇宁 | C149: 小学 | D149: 语文 | E149: 2片区 | F149: AS0420220344 | G149: 71 | H149: 35.5 | I149: 83.25 | J149: 41.625 | K149: 77.125
A150: 148 | B150: 镇宁 | C150: 小学 | D150: 语文 | E150: 2片区 | F150: AS0420220365 | G150: 66.5 | H150: 33.25 | I150: 78.26 | J150: 39.13 | K150: 72.38
A151: 149 | B151: 镇宁 | C151: 小学 | D151: 语文 | E151: 2片区 | F151: AS0420220376 | G151: 68.5 | H151: 34.25 | I151: 77.72 | J151: 38.86 | K151: 73.11
A152: 150 | B152: 镇宁 | C152: 小学 | D152: 语文 | E152: 2片区 | F152: AS0420220389 | G152: 72.5 | H152: 36.25 | I152: 76.44 | J152: 38.22 | K152: 74.47
A153: 151 | B153: 镇宁 | C153: 小学 | D153: 语文 | E153: 2片区 | F153: AS0420220185 | G153: 72.5 | H153: 36.25 | I153: 88.49 | J153: 44.245 | K153: 80.495
A154: 152 | B154: 镇宁 | C154: 小学 | D154: 语文 | E154: 2片区 | F154: AS0420220363 | G154: 74 | H154: 37 | I154: 83.52 | J154: 41.76 | K154: 78.76
A155: 153 | B155: 镇宁 | C155: 小学 | D155: 语文 | E155: 2片区 | F155: AS0420220249 | G155: 68 | H155: 34 | I155: 80.67 | J155: 40.335 | K155: 74.335
A156: 154 | B156: 镇宁 | C156: 小学 | D156: 语文 | E156: 2片区 | F156: AS0420220356 | G156: 69 | H156: 34.5 | I156: 81.61 | J156: 40.805 | K156: 75.305
A157: 155 | B157: 镇宁 | C157: 小学 | D157: 语文 | E157: 2片区 | F157: AS0420220234 | G157: 67 | H157: 33.5 | I157: 81.02 | J157: 40.51 | K157: 74.01
A158: 156 | B158: 镇宁 | C158: 小学 | D158: 语文 | E158: 2片区 | F158: AS0420220326 | G158: 70.5 | H158: 35.25 | I158: 79.16 | J158: 39.58 | K158: 74.83
A159: 157 | B159: 镇宁 | C159: 小学 | D159: 语文 | E159: 2片区 | F159: AS0420220194 | G159: 74 | H159: 37 | I159: 85.42 | J159: 42.71 | K159: 79.71
A160: 158 | B160: 镇宁 | C160: 小学 | D160: 语文 | E160: 2片区 | F160: AS0420220242 | G160: 67 | H160: 33.5 | I160: 79.99 | J160: 39.995 | K160: 73.495
A161: 159 | B161: 镇宁 | C161: 小学 | D161: 语文 | E161: 2片区 | F161: AS0420220246 | G161: 67.5 | H161: 33.75 | I161: 90.45 | J161: 45.225 | K161: 78.975
A162: 160 | B162: 镇宁 | C162: 小学 | D162: 语文 | E162: 2片区 | F162: AS0420220331 | G162: 75 | H162: 37.5 | I162: 88.12 | J162: 44.06 | K162: 81.56
A163: 161 | B163: 镇宁 | C163: 小学 | D163: 语文 | E163: 2片区 | F163: AS0420220218 | G163: 77.5 | H163: 38.75 | I163: 85.54 | J163: 42.77 | K163: 81.52
A164: 162 | B164: 镇宁 | C164: 小学 | D164: 语文 | E164: 2片区 | F164: AS0420220333 | G164: 70.5 | H164: 35.25 | I164: 83.15 | J164: 41.575 | K164: 76.825
A165: 163 | B165: 镇宁 | C165: 小学 | D165: 语文 | E165: 2片区 | F165: AS0420220273 | G165: 67 | H165: 33.5 | I165: 81.01 | J165: 40.505 | K165: 74.005
A166: 164 | B166: 镇宁 | C166: 小学 | D166: 语文 | E166: 2片区 | F166: AS0420220379 | G166: 70.5 | H166: 35.25 | I166: 84.65 | J166: 42.325 | K166: 77.575
A167: 165 | B167: 镇宁 | C167: 小学 | D167: 语文 | E167: 2片区 | F167: AS0420220353 | G167: 70.2 | H167: 35.1 | I167: 87.63 | J167: 43.815 | K167: 78.915
A168: 166 | B168: 镇宁 | C168: 小学 | D168: 语文 | E168: 2片区 | F168: AS0420220197 | G168: 65.5 | H168: 32.75 | I168: 79.58 | J168: 39.79 | K168: 72.54
A169: 167 | B169: 镇宁 | C169: 小学 | D169: 语文 | E169: 2片区 | F169: AS0420220264 | G169: 66.5 | H169: 33.25 | I169: 80.41 | J169: 40.205 | K169: 73.455
A170: 168 | B170: 镇宁 | C170: 小学 | D170: 语文 | E170: 2片区 | F170: AS0420220201 | G170: 69.5 | H170: 34.75 | I170: 78.86 | J170: 39.43 | K170: 74.18
A171: 169 | B171: 镇宁 | C171: 小学 | D171: 语文 | E171: 2片区 | F171: AS0420220310 | G171: 67.5 | H171: 33.75 | I171: 77.97 | J171: 38.985 | K171: 72.735
A172: 170 | B172: 镇宁 | C172: 小学 | D172: 语文 | E172: 2片区 | F172: AS0420220214 | G172: 73 | H172: 36.5 | I172: 82.60 | J172: 41.3 | K172: 77.8
A173: 171 | B173: 镇宁 | C173: 小学 | D173: 语文 | E173: 2片区 | F173: AS0420220245 | G173: 71.5 | H173: 35.75 | I173: 87.30 | J173: 43.65 | K173: 79.4
A174: 172 | B174: 镇宁 | C174: 小学 | D174: 语文 | E174: 2片区 | F174: AS0420220349 | G174: 66.2 | H174: 33.1 | I174: 81.06 | J174: 40.53 | K174: 73.63
A175: 173 | B175: 镇宁 | C175: 小学 | D175: 语文 | E175: 2片区 | F175: AS0420220222 | G175: 76.5 | H175: 38.25 | I175: 82.34 | J175: 41.17 | K175: 79.42
A176: 174 | B176: 镇宁 | C176: 小学 | D176: 语文 | E176: 2片区 | F176: AS0420220279 | G176: 66 | H176: 33 | I176: 83.20 | J176: 41.6 | K176: 74.6
A177: 175 | B177: 镇宁 | C177: 小学 | D177: 语文 | E177: 2片区 | F177: AS0420220302 | G177: 65.5 | H177: 32.75 | I177: 78.13 | J177: 39.065 | K177: 71.815
A178: 176 | B178: 镇宁 | C178: 小学 | D178: 语文 | E178: 2片区 | F178: AS0420220200 | G178: 69 | H178: 34.5 | I178: 79.72 | J178: 39.86 | K178: 74.36
A179: 177 | B179: 镇宁 | C179: 小学 | D179: 语文 | E179: 2片区 | F179: AS0420220332 | G179: 76 | H179: 38 | I179: 83.47 | J179: 41.735 | K179: 79.735
A180: 178 | B180: 镇宁 | C180: 小学 | D180: 语文 | E180: 2片区 | F180: AS0420220366 | G180: 69.5 | H180: 34.75 | I180: 84.79 | J180: 42.395 | K180: 77.145
A181: 179 | B181: 镇宁 | C181: 小学 | D181: 语文 | E181: 2片区 | F181: AS0420220267 | G181: 69 | H181: 34.5 | I181: 84.63 | J181: 42.315 | K181: 76.815
A182: 180 | B182: 镇宁 | C182: 小学 | D182: 语文 | E182: 2片区 | F182: AS0420220327 | G182: 72 | H182: 36 | I182: 缺考 | J182: 0 | K182: 36 | L182: 面试缺考
A183: 181 | B183: 镇宁 | C183: 小学 | D183: 语文 | E183: 2片区 | F183: AS0420220294 | G183: 69 | H183: 34.5 | I183: 缺考 | J183: 0 | K183: 34.5 | L183: 面试缺考
A184: 182 | B184: 镇宁 | C184: 小学 | D184: 语文 | E184: 2片区 | F184: AS0420220257 | G184: 66.5 | H184: 33.25 | I184: 缺考 | J184: 0 | K184: 33.25 | L184: 面试缺考
A185: 183 | B185: 镇宁 | C185: 小学 | D185: 语文 | E185: 2片区 | F185: AS0420220319 | G185: 66.5 | H185: 33.25 | I185: 缺考 | J185: 0 | K185: 33.25 | L185: 面试缺考
A186: 184 | B186: 镇宁 | C186: 小学 | D186: 语文 | E186: 2片区 | F186: AS0420220188 | G186: 65.5 | H186: 32.75 | I186: 缺考 | J186: 0 | K186: 32.75 | L186: 面试缺考
A187: 185 | B187: 镇宁 | C187: 小学 | D187: 语文 | E187: 2片区 | F187: AS0420220205 | G187: 65.5 | H187: 32.75 | I187: 缺考 | J187: 0 | K187: 32.75 | L187: 面试缺考
A188: 186 | B188: 镇宁 | C188: 小学 | D188: 语文 | E188: 2片区 | F188: AS0420220248 | G188: 65.5 | H188: 32.75 | I188: 缺考 | J188: 0 | K188: 32.75 | L188: 面试缺考
A189: 187 | B189: 镇宁 | C189: 小学 | D189: 语文 | E189: 2片区 | F189: AS0420220266 | G189: 65.5 | H189: 32.75 | I189: 缺考 | J189: 0 | K189: 32.75 | L189: 面试缺考
A190: 188 | B190: 镇宁 | C190: 小学 | D190: 语文 | E190: 3片区 | F190: AS0420220485 | G190: 73.5 | H190: 36.75 | I190: 79.04 | J190: 39.52 | K190: 76.27
A191: 189 | B191: 镇宁 | C191: 小学 | D191: 语文 | E191: 3片区 | F191: AS0420220498 | G191: 70.5 | H191: 35.25 | I191: 82.66 | J191: 41.33 | K191: 76.58
A192: 190 | B192: 镇宁 | C192: 小学 | D192: 语文 | E192: 3片区 | F192: AS0420220550 | G192: 72 | H192: 36 | I192: 83.92 | J192: 41.96 | K192: 77.96
A193: 191 | B193: 镇宁 | C193: 小学 | D193: 语文 | E193: 3片区 | F193: AS0420220705 | G193: 73 | H193: 36.5 | I193: 78.04 | J193: 39.02 | K193: 75.52
A194: 192 | B194: 镇宁 | C194: 小学 | D194: 语文 | E194: 3片区 | F194: AS0420220659 | G194: 68.5 | H194: 34.25 | I194: 85.17 | J194: 42.585 | K194: 76.835
A195: 193 | B195: 镇宁 | C195: 小学 | D195: 语文 | E195: 3片区 | F195: AS0420220536 | G195: 71.5 | H195: =G195*0.5 -> 35.75 | I195: 82.94 | J195: =I195*0.5 -> 41.47 | K195: =H195+J195 -> 77.22
A196: 194 | B196: 镇宁 | C196: 小学 | D196: 语文 | E196: 3片区 | F196: AS0420220621 | G196: 79 | H196: 39.5 | I196: 85.59 | J196: 42.795 | K196: 82.295
A197: 195 | B197: 镇宁 | C197: 小学 | D197: 语文 | E197: 3片区 | F197: AS0420220525 | G197: 73.5 | H197: 36.75 | I197: 76.95 | J197: 38.475 | K197: 75.225
A198: 196 | B198: 镇宁 | C198: 小学 | D198: 语文 | E198: 3片区 | F198: AS0420220526 | G198: 68 | H198: 34 | I198: 86.76 | J198: 43.38 | K198: 77.38
A199: 197 | B199: 镇宁 | C199: 小学 | D199: 语文 | E199: 3片区 | F199: AS0420220636 | G199: 69.5 | H199: 34.75 | I199: 85.16 | J199: 42.58 | K199: 77.33
A200: 198 | B200: 镇宁 | C200: 小学 | D200: 语文 | E200: 3片区 | F200: AS0420220611 | G200: 74.5 | H200: 37.25 | I200: 85.71 | J200: 42.855 | K200: 80.105
... 610 more rows

Sheet 关岭县
A1: 附件1
A2: 关岭县2022年“特岗计划”教师招聘总成绩统计情况表
A3: 序号 | B3: 报考县区 | C3: 报考学段 | D3: 报考学科 | E3: 报考片区 | F3: 笔试准考证号 | G3: 笔试得分 | H3: 折算成绩(占总成绩50%） | I3: 面试得分 | J3: 折算成绩(占总成绩50%） | K3: 总成绩 | L3: 备注
A4: 1 | B4: 关岭县 | C4: 小学 | D4: 语文 | E4: 一片区 | F4: AS0520222226 | G4: 76.00 | H4: 38.00 | I4: 89.06 | J4: 44.53 | K4: 82.53
A5: 2 | B5: 关岭县 | C5: 小学 | D5: 语文 | E5: 一片区 | F5: AS0520222127 | G5: 74.00 | H5: 37.00 | I5: 89.44 | J5: 44.72 | K5: 81.72
A6: 3 | B6: 关岭县 | C6: 小学 | D6: 语文 | E6: 一片区 | F6: AS0520221941 | G6: 71.00 | H6: 35.50 | I6: 91.66 | J6: 45.83 | K6: 81.33
A7: 4 | B7: 关岭县 | C7: 小学 | D7: 语文 | E7: 一片区 | F7: AS0520222294 | G7: 70.00 | H7: 35.00 | I7: 92.24 | J7: 46.12 | K7: 81.12
A8: 5 | B8: 关岭县 | C8: 小学 | D8: 语文 | E8: 一片区 | F8: AS0520222109 | G8: 71.00 | H8: 35.50 | I8: 89.82 | J8: 44.91 | K8: 80.41
A9: 6 | B9: 关岭县 | C9: 小学 | D9: 语文 | E9: 一片区 | F9: AS0520221660 | G9: 73.00 | H9: 36.50 | I9: 87.34 | J9: 43.67 | K9: 80.17
A10: 7 | B10: 关岭县 | C10: 小学 | D10: 语文 | E10: 一片区 | F10: AS0520222070 | G10: 68.00 | H10: 34.00 | I10: 91.96 | J10: 45.98 | K10: 79.98
A11: 8 | B11: 关岭县 | C11: 小学 | D11: 语文 | E11: 一片区 | F11: AS0520222015 | G11: 72.00 | H11: 36.00 | I11: 87.42 | J11: 43.71 | K11: 79.71
A12: 9 | B12: 关岭县 | C12: 小学 | D12: 语文 | E12: 一片区 | F12: AS0520221683 | G12: 71.00 | H12: 35.50 | I12: 88.24 | J12: 44.12 | K12: 79.62
A13: 10 | B13: 关岭县 | C13: 小学 | D13: 语文 | E13: 一片区 | F13: AS0520221816 | G13: 67.00 | H13: 33.50 | I13: 91.62 | J13: 45.81 | K13: 79.31
A14: 11 | B14: 关岭县 | C14: 小学 | D14: 语文 | E14: 一片区 | F14: AS0520222227 | G14: 68.00 | H14: 34.00 | I14: 90.04 | J14: 45.02 | K14: 79.02
A15: 12 | B15: 关岭县 | C15: 小学 | D15: 语文 | E15: 一片区 | F15: AS0520221687 | G15: 66.00 | H15: 33.00 | I15: 91.72 | J15: 45.86 | K15: 78.86
A16: 13 | B16: 关岭县 | C16: 小学 | D16: 语文 | E16: 一片区 | F16: AS0520222146 | G16: 67.00 | H16: 33.50 | I16: 90.70 | J16: 45.35 | K16: 78.85
A17: 14 | B17: 关岭县 | C17: 小学 | D17: 语文 | E17: 一片区 | F17: AS0520221529 | G17: 67.00 | H17: 33.50 | I17: 90.48 | J17: 45.24 | K17: 78.74
A18: 15 | B18: 关岭县 | C18: 小学 | D18: 语文 | E18: 一片区 | F18: AS0520221701 | G18: 68.00 | H18: 34.00 | I18: 89.26 | J18: 44.63 | K18: 78.63
A19: 16 | B19: 关岭县 | C19: 小学 | D19: 语文 | E19: 一片区 | F19: AS0520221785 | G19: 70.00 | H19: 35.00 | I19: 87.20 | J19: 43.60 | K19: 78.60
A20: 17 | B20: 关岭县 | C20: 小学 | D20: 语文 | E20: 一片区 | F20: AS0520222239 | G20: 70.00 | H20: 35.00 | I20: 87.04 | J20: 43.52 | K20: 78.52
A21: 18 | B21: 关岭县 | C21: 小学 | D21: 语文 | E21: 一片区 | F21: AS0520221803 | G21: 69.00 | H21: 34.50 | I21: 88.02 | J21: 44.01 | K21: 78.51
A22: 19 | B22: 关岭县 | C22: 小学 | D22: 语文 | E22: 一片区 | F22: AS0520222290 | G22: 68.00 | H22: 34.00 | I22: 88.78 | J22: 44.39 | K22: 78.39
A23: 20 | B23: 关岭县 | C23: 小学 | D23: 语文 | E23: 一片区 | F23: AS0520221797 | G23: 66.00 | H23: 33.00 | I23: 90.76 | J23: 45.38 | K23: 78.38
A24: 21 | B24: 关岭县 | C24: 小学 | D24: 语文 | E24: 一片区 | F24: AS0520222295 | G24: 66.00 | H24: 33.00 | I24: 90.50 | J24: 45.25 | K24: 78.25
A25: 22 | B25: 关岭县 | C25: 小学 | D25: 语文 | E25: 一片区 | F25: AS0520221783 | G25: 67.00 | H25: 33.50 | I25: 89.50 | J25: 44.75 | K25: 78.25
A26: 23 | B26: 关岭县 | C26: 小学 | D26: 语文 | E26: 一片区 | F26: AS0520221657 | G26: 75.00 | H26: 37.50 | I26: 80.80 | J26: 40.40 | K26: 77.90
A27: 24 | B27: 关岭县 | C27: 小学 | D27: 语文 | E27: 一片区 | F27: AS0520222052 | G27: 67.00 | H27: 33.50 | I27: 88.72 | J27: 44.36 | K27: 77.86
A28: 25 | B28: 关岭县 | C28: 小学 | D28: 语文 | E28: 一片区 | F28: AS0520221496 | G28: 68.00 | H28: 34.00 | I28: 87.44 | J28: 43.72 | K28: 77.72
A29: 26 | B29: 关岭县 | C29: 小学 | D29: 语文 | E29: 一片区 | F29: AS0520222144 | G29: 66.00 | H29: 33.00 | I29: 89.24 | J29: 44.62 | K29: 77.62
A30: 27 | B30: 关岭县 | C30: 小学 | D30: 语文 | E30: 一片区 | F30: AS0520221716 | G30: 68.00 | H30: 34.00 | I30: 87.08 | J30: 43.54 | K30: 77.54
A31: 28 | B31: 关岭县 | C31: 小学 | D31: 语文 | E31: 一片区 | F31: AS0520221709 | G31: 67.00 | H31: 33.50 | I31: 87.76 | J31: 43.88 | K31: 77.38
A32: 29 | B32: 关岭县 | C32: 小学 | D32: 语文 | E32: 一片区 | F32: AS0520222251 | G32: 69.00 | H32: 34.50 | I32: 85.64 | J32: 42.82 | K32: 77.32
A33: 30 | B33: 关岭县 | C33: 小学 | D33: 语文 | E33: 一片区 | F33: AS0520221839 | G33: 67.00 | H33: 33.50 | I33: 87.22 | J33: 43.61 | K33: 77.11
A34: 31 | B34: 关岭县 | C34: 小学 | D34: 语文 | E34: 一片区 | F34: AS0520222131 | G34: 69.00 | H34: 34.50 | I34: 85.12 | J34: 42.56 | K34: 77.06
A35: 32 | B35: 关岭县 | C35: 小学 | D35: 语文 | E35: 一片区 | F35: AS0520222222 | G35: 65.00 | H35: 32.50 | I35: 89.06 | J35: 44.53 | K35: 77.03
A36: 33 | B36: 关岭县 | C36: 小学 | D36: 语文 | E36: 一片区 | F36: AS0520222157 | G36: 66.00 | H36: 33.00 | I36: 87.66 | J36: 43.83 | K36: 76.83
A37: 34 | B37: 关岭县 | C37: 小学 | D37: 语文 | E37: 一片区 | F37: AS0520221753 | G37: 69.00 | H37: 34.50 | I37: 84.42 | J37: 42.21 | K37: 76.71
A38: 35 | B38: 关岭县 | C38: 小学 | D38: 语文 | E38: 一片区 | F38: AS0520221991 | G38: 65.00 | H38: 32.50 | I38: 88.08 | J38: 44.04 | K38: 76.54
A39: 36 | B39: 关岭县 | C39: 小学 | D39: 语文 | E39: 一片区 | F39: AS0520222219 | G39: 68.00 | H39: 34.00 | I39: 84.70 | J39: 42.35 | K39: 76.35
A40: 37 | B40: 关岭县 | C40: 小学 | D40: 语文 | E40: 一片区 | F40: AS0520221603 | G40: 67.00 | H40: 33.50 | I40: 85.44 | J40: 42.72 | K40: 76.22
A41: 38 | B41: 关岭县 | C41: 小学 | D41: 语文 | E41: 一片区 | F41: AS0520221482 | G41: 67.00 | H41: 33.50 | I41: 85.38 | J41: 42.69 | K41: 76.19
A42: 39 | B42: 关岭县 | C42: 小学 | D42: 语文 | E42: 一片区 | F42: AS0520221467 | G42: 69.00 | H42: 34.50 | I42: 83.24 | J42: 41.62 | K42: 76.12
A43: 40 | B43: 关岭县 | C43: 小学 | D43: 语文 | E43: 一片区 | F43: AS0520221727 | G43: 66.00 | H43: 33.00 | I43: 86.22 | J43: 43.11 | K43: 76.11
A44: 41 | B44: 关岭县 | C44: 小学 | D44: 语文 | E44: 一片区 | F44: AS0520222142 | G44: 70.00 | H44: 35.00 | I44: 82.10 | J44: 41.05 | K44: 76.05
A45: 42 | B45: 关岭县 | C45: 小学 | D45: 语文 | E45: 一片区 | F45: AS0520221718 | G45: 65.00 | H45: 32.50 | I45: 86.98 | J45: 43.49 | K45: 75.99
A46: 43 | B46: 关岭县 | C46: 小学 | D46: 语文 | E46: 一片区 | F46: AS0520221896 | G46: 65.00 | H46: 32.50 | I46: 86.94 | J46: 43.47 | K46: 75.97
A47: 44 | B47: 关岭县 | C47: 小学 | D47: 语文 | E47: 一片区 | F47: AS0520222060 | G47: 65.00 | H47: 32.50 | I47: 86.76 | J47: 43.38 | K47: 75.88
A48: 45 | B48: 关岭县 | C48: 小学 | D48: 语文 | E48: 一片区 | F48: AS0520221684 | G48: 67.00 | H48: 33.50 | I48: 84.28 | J48: 42.14 | K48: 75.64
A49: 46 | B49: 关岭县 | C49: 小学 | D49: 语文 | E49: 一片区 | F49: AS0520222105 | G49: 68.00 | H49: 34.00 | I49: 83.18 | J49: 41.59 | K49: 75.59
A50: 47 | B50: 关岭县 | C50: 小学 | D50: 语文 | E50: 一片区 | F50: AS0520222188 | G50: 67.00 | H50: 33.50 | I50: 83.78 | J50: 41.89 | K50: 75.39
A51: 48 | B51: 关岭县 | C51: 小学 | D51: 语文 | E51: 一片区 | F51: AS0520222276 | G51: 67.00 | H51: 33.50 | I51: 83.42 | J51: 41.71 | K51: 75.21
A52: 49 | B52: 关岭县 | C52: 小学 | D52: 语文 | E52: 一片区 | F52: AS0520221636 | G52: 66.00 | H52: 33.00 | I52: 83.88 | J52: 41.94 | K52: 74.94
A53: 50 | B53: 关岭县 | C53: 小学 | D53: 语文 | E53: 一片区 | F53: AS0520221634 | G53: 67.00 | H53: 33.50 | I53: 82.52 | J53: 41.26 | K53: 74.76
A54: 51 | B54: 关岭县 | C54: 小学 | D54: 语文 | E54: 一片区 | F54: AS0520221631 | G54: 67.00 | H54: 33.50 | I54: 82.24 | J54: 41.12 | K54: 74.62
A55: 52 | B55: 关岭县 | C55: 小学 | D55: 语文 | E55: 一片区 | F55: AS0520222133 | G55: 68.00 | H55: 34.00 | I55: 80.72 | J55: 40.36 | K55: 74.36
A56: 53 | B56: 关岭县 | C56: 小学 | D56: 语文 | E56: 一片区 | F56: AS0520222282 | G56: 65.00 | H56: 32.50 | I56: 83.08 | J56: 41.54 | K56: 74.04
A57: 54 | B57: 关岭县 | C57: 小学 | D57: 语文 | E57: 一片区 | F57: AS0520221505 | G57: 68.00 | H57: 34.00 | I57: 79.46 | J57: 39.73 | K57: 73.73
A58: 55 | B58: 关岭县 | C58: 小学 | D58: 语文 | E58: 一片区 | F58: AS0520221842 | G58: 67.00 | H58: 33.50 | I58: 78.66 | J58: 39.33 | K58: 72.83
A59: 56 | B59: 关岭县 | C59: 小学 | D59: 语文 | E59: 一片区 | F59: AS0520221625 | G59: 65.00 | H59: 32.50 | I59: 79.82 | J59: 39.91 | K59: 72.41
A60: 57 | B60: 关岭县 | C60: 小学 | D60: 语文 | E60: 一片区 | F60: AS0520221490 | G60: 67.00 | H60: 33.50 | I60: 77.76 | J60: 38.88 | K60: 72.38
A61: 58 | B61: 关岭县 | C61: 小学 | D61: 语文 | E61: 一片区 | F61: AS0520221549 | G61: 65.00 | H61: 32.50 | I61: 缺考 | J61: 0.00 | K61: 32.50 | L61: 面试缺考
A62: 59 | B62: 关岭县 | C62: 小学 | D62: 语文 | E62: 二片区 | F62: AS0520222168 | G62: 77.00 | H62: 38.50 | I62: 89.52 | J62: 44.76 | K62: 83.26
A63: 60 | B63: 关岭县 | C63: 小学 | D63: 语文 | E63: 二片区 | F63: AS0520221752 | G63: 75.00 | H63: 37.50 | I63: 90.02 | J63: 45.01 | K63: 82.51
A64: 61 | B64: 关岭县 | C64: 小学 | D64: 语文 | E64: 二片区 | F64: AS0520221564 | G64: 74.00 | H64: 37.00 | I64: 90.40 | J64: 45.20 | K64: 82.20
A65: 62 | B65: 关岭县 | C65: 小学 | D65: 语文 | E65: 二片区 | F65: AS0520221664 | G65: 73.00 | H65: 36.50 | I65: 90.16 | J65: 45.08 | K65: 81.58
A66: 63 | B66: 关岭县 | C66: 小学 | D66: 语文 | E66: 二片区 | F66: AS0520221815 | G66: 72.00 | H66: 36.00 | I66: 89.94 | J66: 44.97 | K66: 80.97
A67: 64 | B67: 关岭县 | C67: 小学 | D67: 语文 | E67: 二片区 | F67: AS0520222218 | G67: 69.00 | H67: 34.50 | I67: 92.80 | J67: 46.40 | K67: 80.90
A68: 65 | B68: 关岭县 | C68: 小学 | D68: 语文 | E68: 二片区 | F68: AS0520222029 | G68: 68.00 | H68: 34.00 | I68: 92.96 | J68: 46.48 | K68: 80.48
A69: 66 | B69: 关岭县 | C69: 小学 | D69: 语文 | E69: 二片区 | F69: AS0520222125 | G69: 66.00 | H69: 33.00 | I69: 93.56 | J69: 46.78 | K69: 79.78
A70: 67 | B70: 关岭县 | C70: 小学 | D70: 语文 | E70: 二片区 | F70: AS0520222283 | G70: 69.00 | H70: 34.50 | I70: 90.28 | J70: 45.14 | K70: 79.64
A71: 68 | B71: 关岭县 | C71: 小学 | D71: 语文 | E71: 二片区 | F71: AS0520222158 | G71: 71.00 | H71: 35.50 | I71: 87.92 | J71: 43.96 | K71: 79.46
A72: 69 | B72: 关岭县 | C72: 小学 | D72: 语文 | E72: 二片区 | F72: AS0520221558 | G72: 71.00 | H72: 35.50 | I72: 87.24 | J72: 43.62 | K72: 79.12
A73: 70 | B73: 关岭县 | C73: 小学 | D73: 语文 | E73: 二片区 | F73: AS0520222054 | G73: 65.00 | H73: 32.50 | I73: 92.48 | J73: 46.24 | K73: 78.74
A74: 71 | B74: 关岭县 | C74: 小学 | D74: 语文 | E74: 二片区 | F74: AS0520222209 | G74: 71.00 | H74: 35.50 | I74: 86.24 | J74: 43.12 | K74: 78.62
A75: 72 | B75: 关岭县 | C75: 小学 | D75: 语文 | E75: 二片区 | F75: AS0520221970 | G75: 65.00 | H75: 32.50 | I75: 91.98 | J75: 45.99 | K75: 78.49
A76: 73 | B76: 关岭县 | C76: 小学 | D76: 语文 | E76: 二片区 | F76: AS0520222289 | G76: 69.00 | H76: 34.50 | I76: 87.40 | J76: 43.70 | K76: 78.20
A77: 74 | B77: 关岭县 | C77: 小学 | D77: 语文 | E77: 二片区 | F77: AS0520221775 | G77: 65.00 | H77: 32.50 | I77: 91.34 | J77: 45.67 | K77: 78.17
A78: 75 | B78: 关岭县 | C78: 小学 | D78: 语文 | E78: 二片区 | F78: AS0520221889 | G78: 66.00 | H78: 33.00 | I78: 90.28 | J78: 45.14 | K78: 78.14
A79: 76 | B79: 关岭县 | C79: 小学 | D79: 语文 | E79: 二片区 | F79: AS0520221601 | G79: 66.00 | H79: 33.00 | I79: 90.16 | J79: 45.08 | K79: 78.08
A80: 77 | B80: 关岭县 | C80: 小学 | D80: 语文 | E80: 二片区 | F80: AS0520221771 | G80: 67.00 | H80: 33.50 | I80: 88.90 | J80: 44.45 | K80: 77.95
A81: 78 | B81: 关岭县 | C81: 小学 | D81: 语文 | E81: 二片区 | F81: AS0520222203 | G81: 68.00 | H81: 34.00 | I81: 87.64 | J81: 43.82 | K81: 77.82
A82: 79 | B82: 关岭县 | C82: 小学 | D82: 语文 | E82: 二片区 | F82: AS0520222073 | G82: 66.00 | H82: 33.00 | I82: 88.86 | J82: 44.43 | K82: 77.43
A83: 80 | B83: 关岭县 | C83: 小学 | D83: 语文 | E83: 二片区 | F83: AS0520221643 | G83: 68.00 | H83: 34.00 | I83: 86.62 | J83: 43.31 | K83: 77.31
A84: 81 | B84: 关岭县 | C84: 小学 | D84: 语文 | E84: 二片区 | F84: AS0520221514 | G84: 65.00 | H84: 32.50 | I84: 89.54 | J84: 44.77 | K84: 77.27
A85: 82 | B85: 关岭县 | C85: 小学 | D85: 语文 | E85: 二片区 | F85: AS0520222047 | G85: 68.00 | H85: 34.00 | I85: 86.36 | J85: 43.18 | K85: 77.18
A86: 83 | B86: 关岭县 | C86: 小学 | D86: 语文 | E86: 二片区 | F86: AS0520221741 | G86: 74.00 | H86: 37.00 | I86: 80.18 | J86: 40.09 | K86: 77.09
A87: 84 | B87: 关岭县 | C87: 小学 | D87: 语文 | E87: 二片区 | F87: AS0520221729 | G87: 68.00 | H87: 34.00 | I87: 86.16 | J87: 43.08 | K87: 77.08
A88: 85 | B88: 关岭县 | C88: 小学 | D88: 语文 | E88: 二片区 | F88: AS0520222244 | G88: 67.00 | H88: 33.50 | I88: 87.16 | J88: 43.58 | K88: 77.08
A89: 86 | B89: 关岭县 | C89: 小学 | D89: 语文 | E89: 二片区 | F89: AS0520222135 | G89: 66.00 | H89: 33.00 | I89: 87.82 | J89: 43.91 | K89: 76.91
A90: 87 | B90: 关岭县 | C90: 小学 | D90: 语文 | E90: 二片区 | F90: AS0520221993 | G90: 64.00 | H90: 32.00 | I90: 89.76 | J90: 44.88 | K90: 76.88
A91: 88 | B91: 关岭县 | C91: 小学 | D91: 语文 | E91: 二片区 | F91: AS0520221954 | G91: 64.00 | H91: 32.00 | I91: 89.70 | J91: 44.85 | K91: 76.85
A92: 89 | B92: 关岭县 | C92: 小学 | D92: 语文 | E92: 二片区 | F92: AS0520222245 | G92: 64.00 | H92: 32.00 | I92: 89.50 | J92: 44.75 | K92: 76.75
A93: 90 | B93: 关岭县 | C93: 小学 | D93: 语文 | E93: 二片区 | F93: AS0520221723 | G93: 64.00 | H93: 32.00 | I93: 89.34 | J93: 44.67 | K93: 76.67
A94: 91 | B94: 关岭县 | C94: 小学 | D94: 语文 | E94: 二片区 | F94: AS0520222210 | G94: 69.00 | H94: 34.50 | I94: 83.82 | J94: 41.91 | K94: 76.41
A95: 92 | B95: 关岭县 | C95: 小学 | D95: 语文 | E95: 二片区 | F95: AS0520222293 | G95: 64.00 | H95: 32.00 | I95: 88.62 | J95: 44.31 | K95: 76.31
A96: 93 | B96: 关岭县 | C96: 小学 | D96: 语文 | E96: 二片区 | F96: AS0520221509 | G96: 64.00 | H96: 32.00 | I96: 85.86 | J96: 42.93 | K96: 74.93
A97: 94 | B97: 关岭县 | C97: 小学 | D97: 语文 | E97: 二片区 | F97: AS0520222256 | G97: 66.00 | H97: 33.00 | I97: 83.18 | J97: 41.59 | K97: 74.59
A98: 95 | B98: 关岭县 | C98: 小学 | D98: 语文 | E98: 二片区 | F98: AS0520221946 | G98: 66.00 | H98: 33.00 | I98: 82.38 | J98: 41.19 | K98: 74.19
A99: 96 | B99: 关岭县 | C99: 小学 | D99: 语文 | E99: 二片区 | F99: AS0520221807 | G99: 69.00 | H99: 34.50 | I99: 76.26 | J99: 38.13 | K99: 72.63
A100: 97 | B100: 关岭县 | C100: 小学 | D100: 语文 | E100: 二片区 | F100: AS0520221582 | G100: 66.00 | H100: 33.00 | I100: 70.36 | J100: 35.18 | K100: 68.18
A101: 98 | B101: 关岭县 | C101: 小学 | D101: 语文 | E101: 二片区 | F101: AS0520222162 | G101: 64.00 | H101: 32.00 | I101: 缺考 | J101: 0.00 | K101: 32.00 | L101: 面试缺考
A102: 99 | B102: 关岭县 | C102: 小学 | D102: 语文 | E102: 三片区 | F102: AS0520221469 | G102: 74.00 | H102: 37.00 | I102: 86.32 | J102: 43.16 | K102: 80.16
A103: 100 | B103: 关岭县 | C103: 小学 | D103: 语文 | E103: 三片区 | F103: AS0520221812 | G103: 69.00 | H103: 34.50 | I103: 91.30 | J103: 45.65 | K103: 80.15
A104: 101 | B104: 关岭县 | C104: 小学 | D104: 语文 | E104: 三片区 | F104: AS0520222249 | G104: 69.00 | H104: 34.50 | I104: 90.44 | J104: 45.22 | K104: 79.72
A105: 102 | B105: 关岭县 | C105: 小学 | D105: 语文 | E105: 三片区 | F105: AS0520221642 | G105: 75.00 | H105: 37.50 | I105: 83.44 | J105: 41.72 | K105: 79.22
A106: 103 | B106: 关岭县 | C106: 小学 | D106: 语文 | E106: 三片区 | F106: AS0520221810 | G106: 67.00 | H106: 33.50 | I106: 90.80 | J106: 45.40 | K106: 78.90
A107: 104 | B107: 关岭县 | C107: 小学 | D107: 语文 | E107: 三片区 | F107: AS0520221798 | G107: 66.00 | H107: 33.00 | I107: 90.24 | J107: 45.12 | K107: 78.12
A108: 105 | B108: 关岭县 | C108: 小学 | D108: 语文 | E108: 三片区 | F108: AS0520222108 | G108: 73.00 | H108: 36.50 | I108: 82.98 | J108: 41.49 | K108: 77.99
A109: 106 | B109: 关岭县 | C109: 小学 | D109: 语文 | E109: 三片区 | F109: AS0520221887 | G109: 66.00 | H109: 33.00 | I109: 89.76 | J109: 44.88 | K109: 77.88
A110: 107 | B110: 关岭县 | C110: 小学 | D110: 语文 | E110: 三片区 | F110: AS0520221888 | G110: 65.00 | H110: 32.50 | I110: 90.58 | J110: 45.29 | K110: 77.79
A111: 108 | B111: 关岭县 | C111: 小学 | D111: 语文 | E111: 三片区 | F111: AS0520221971 | G111: 65.00 | H111: 32.50 | I111: 90.20 | J111: 45.10 | K111: 77.60
A112: 109 | B112: 关岭县 | C112: 小学 | D112: 语文 | E112: 三片区 | F112: AS0520222207 | G112: 66.00 | H112: 33.00 | I112: 88.90 | J112: 44.45 | K112: 77.45
A113: 110 | B113: 关岭县 | C113: 小学 | D113: 语文 | E113: 三片区 | F113: AS0520222177 | G113: 67.00 | H113: 33.50 | I113: 87.46 | J113: 43.73 | K113: 77.23
A114: 111 | B114: 关岭县 | C114: 小学 | D114: 语文 | E114: 三片区 | F114: AS0520222013 | G114: 69.00 | H114: 34.50 | I114: 85.42 | J114: 42.71 | K114: 77.21
A115: 112 | B115: 关岭县 | C115: 小学 | D115: 语文 | E115: 三片区 | F115: AS0520221641 | G115: 68.00 | H115: 34.00 | I115: 85.92 | J115: 42.96 | K115: 76.96
A116: 113 | B116: 关岭县 | C116: 小学 | D116: 语文 | E116: 三片区 | F116: AS0520221742 | G116: 71.00 | H116: 35.50 | I116: 82.90 | J116: 41.45 | K116: 76.95
A117: 114 | B117: 关岭县 | C117: 小学 | D117: 语文 | E117: 三片区 | F117: AS0520221569 | G117: 64.00 | H117: 32.00 | I117: 89.44 | J117: 44.72 | K117: 76.72
A118: 115 | B118: 关岭县 | C118: 小学 | D118: 语文 | E118: 三片区 | F118: AS0520222160 | G118: 64.00 | H118: 32.00 | I118: 89.18 | J118: 44.59 | K118: 76.59
A119: 116 | B119: 关岭县 | C119: 小学 | D119: 语文 | E119: 三片区 | F119: AS0520222117 | G119: 67.00 | H119: 33.50 | I119: 86.10 | J119: 43.05 | K119: 76.55
A120: 117 | B120: 关岭县 | C120: 小学 | D120: 语文 | E120: 三片区 | F120: AS0520221792 | G120: 65.00 | H120: 32.50 | I120: 88.06 | J120: 44.03 | K120: 76.53
A121: 118 | B121: 关岭县 | C121: 小学 | D121: 语文 | E121: 三片区 | F121: AS0520221876 | G121: 68.00 | H121: 34.00 | I121: 85.02 | J121: 42.51 | K121: 76.51
A122: 119 | B122: 关岭县 | C122: 小学 | D122: 语文 | E122: 三片区 | F122: AS0520222205 | G122: 67.00 | H122: 33.50 | I122: 85.86 | J122: 42.93 | K122: 76.43
A123: 120 | B123: 关岭县 | C123: 小学 | D123: 语文 | E123: 三片区 | F123: AS0520221575 | G123: 66.00 | H123: 33.00 | I123: 86.44 | J123: 43.22 | K123: 76.22
A124: 121 | B124: 关岭县 | C124: 小学 | D124: 语文 | E124: 三片区 | F124: AS0520221676 | G124: 67.00 | H124: 33.50 | I124: 85.24 | J124: 42.62 | K124: 76.12
A125: 122 | B125: 关岭县 | C125: 小学 | D125: 语文 | E125: 三片区 | F125: AS0520222154 | G125: 67.00 | H125: 33.50 | I125: 84.80 | J125: 42.40 | K125: 75.90
A126: 123 | B126: 关岭县 | C126: 小学 | D126: 语文 | E126: 三片区 | F126: AS0520222223 | G126: 65.00 | H126: 32.50 | I126: 86.78 | J126: 43.39 | K126: 75.89
A127: 124 | B127: 关岭县 | C127: 小学 | D127: 语文 | E127: 三片区 | F127: AS0520221972 | G127: 68.00 | H127: 34.00 | I127: 83.44 | J127: 41.72 | K127: 75.72
A128: 125 | B128: 关岭县 | C128: 小学 | D128: 语文 | E128: 三片区 | F128: AS0520221527 | G128: 64.00 | H128: 32.00 | I128: 87.24 | J128: 43.62 | K128: 75.62
A129: 126 | B129: 关岭县 | C129: 小学 | D129: 语文 | E129: 三片区 | F129: AS0520221681 | G129: 65.00 | H129: 32.50 | I129: 85.06 | J129: 42.53 | K129: 75.03
A130: 127 | B130: 关岭县 | C130: 小学 | D130: 语文 | E130: 三片区 | F130: AS0520221834 | G130: 64.00 | H130: 32.00 | I130: 86.04 | J130: 43.02 | K130: 75.02
A131: 128 | B131: 关岭县 | C131: 小学 | D131: 语文 | E131: 三片区 | F131: AS0520221964 | G131: 64.00 | H131: 32.00 | I131: 85.48 | J131: 42.74 | K131: 74.74
A132: 129 | B132: 关岭县 | C132: 小学 | D132: 语文 | E132: 三片区 | F132: AS0520221560 | G132: 65.00 | H132: 32.50 | I132: 84.40 | J132: 42.20 | K132: 74.70
A133: 130 | B133: 关岭县 | C133: 小学 | D133: 语文 | E133: 三片区 | F133: AS0520222259 | G133: 65.00 | H133: 32.50 | I133: 84.36 | J133: 42.18 | K133: 74.68
A134: 131 | B134: 关岭县 | C134: 小学 | D134: 语文 | E134: 三片区 | F134: AS0520221644 | G134: 68.00 | H134: 34.00 | I134: 81.24 | J134: 40.62 | K134: 74.62
A135: 132 | B135: 关岭县 | C135: 小学 | D135: 语文 | E135: 三片区 | F135: AS0520221774 | G135: 65.00 | H135: 32.50 | I135: 83.54 | J135: 41.77 | K135: 74.27
A136: 133 | B136: 关岭县 | C136: 小学 | D136: 语文 | E136: 三片区 | F136: AS0520221791 | G136: 64.00 | H136: 32.00 | I136: 83.42 | J136: 41.71 | K136: 73.71
A137: 134 | B137: 关岭县 | C137: 小学 | D137: 语文 | E137: 三片区 | F137: AS0520221914 | G137: 64.00 | H137: 32.00 | I137: 83.12 | J137: 41.56 | K137: 73.56
A138: 135 | B138: 关岭县 | C138: 小学 | D138: 语文 | E138: 三片区 | F138: AS0520222228 | G138: 64.00 | H138: 32.00 | I138: 81.56 | J138: 40.78 | K138: 72.78
A139: 136 | B139: 关岭县 | C139: 小学 | D139: 语文 | E139: 三片区 | F139: AS0520221666 | G139: 65.00 | H139: 32.50 | I139: 80.46 | J139: 40.23 | K139: 72.73
A140: 137 | B140: 关岭县 | C140: 小学 | D140: 语文 | E140: 三片区 | F140: AS0520221661 | G140: 66.00 | H140: 33.00 | I140: 缺考 | J140: 0.00 | K140: 33.00 | L140: 面试缺考
A141: 138 | B141: 关岭县 | C141: 小学 | D141: 语文 | E141: 三片区 | F141: AS0520221658 | G141: 64.00 | H141: 32.00 | I141: 缺考 | J141: 0.00 | K141: 32.00 | L141: 面试缺考
A142: 139 | B142: 关岭县 | C142: 小学 | D142: 语文 | E142: 四片区 | F142: AS0520222030 | G142: 70.00 | H142: 35.00 | I142: 87.48 | J142: 43.74 | K142: 78.74
A143: 140 | B143: 关岭县 | C143: 小学 | D143: 语文 | E143: 四片区 | F143: AS0520221811 | G143: 70.00 | H143: 35.00 | I143: 87.06 | J143: 43.53 | K143: 78.53
A144: 141 | B144: 关岭县 | C144: 小学 | D144: 语文 | E144: 四片区 | F144: AS0520221511 | G144: 71.00 | H144: 35.50 | I144: 85.48 | J144: 42.74 | K144: 78.24
A145: 142 | B145: 关岭县 | C145: 小学 | D145: 语文 | E145: 四片区 | F145: AS0520222155 | G145: 70.00 | H145: 35.00 | I145: 86.14 | J145: 43.07 | K145: 78.07
A146: 143 | B146: 关岭县 | C146: 小学 | D146: 语文 | E146: 四片区 | F146: AS0520222043 | G146: 70.00 | H146: 35.00 | I146: 85.08 | J146: 42.54 | K146: 77.54
A147: 144 | B147: 关岭县 | C147: 小学 | D147: 语文 | E147: 四片区 | F147: AS0520221790 | G147: 68.00 | H147: 34.00 | I147: 87.02 | J147: 43.51 | K147: 77.51
A148: 145 | B148: 关岭县 | C148: 小学 | D148: 语文 | E148: 四片区 | F148: AS0520221823 | G148: 67.00 | H148: 33.50 | I148: 87.60 | J148: 43.80 | K148: 77.30
A149: 146 | B149: 关岭县 | C149: 小学 | D149: 语文 | E149: 四片区 | F149: AS0520222138 | G149: 71.00 | H149: 35.50 | I149: 83.56 | J149: 41.78 | K149: 77.28
A150: 147 | B150: 关岭县 | C150: 小学 | D150: 语文 | E150: 四片区 | F150: AS0520221778 | G150: 66.00 | H150: 33.00 | I150: 88.10 | J150: 44.05 | K150: 77.05
A151: 148 | B151: 关岭县 | C151: 小学 | D151: 语文 | E151: 四片区 | F151: AS0520222126 | G151: 69.00 | H151: 34.50 | I151: 84.16 | J151: 42.08 | K151: 76.58
A152: 149 | B152: 关岭县 | C152: 小学 | D152: 语文 | E152: 四片区 | F152: AS0520222220 | G152: 69.00 | H152: 34.50 | I152: 83.28 | J152: 41.64 | K152: 76.14
A153: 150 | B153: 关岭县 | C153: 小学 | D153: 语文 | E153: 四片区 | F153: AS0520221618 | G153: 67.00 | H153: 33.50 | I153: 85.08 | J153: 42.54 | K153: 76.04
A154: 151 | B154: 关岭县 | C154: 小学 | D154: 语文 | E154: 四片区 | F154: AS0520221608 | G154: 69.00 | H154: 34.50 | I154: 82.08 | J154: 41.04 | K154: 75.54
A155: 152 | B155: 关岭县 | C155: 小学 | D155: 语文 | E155: 四片区 | F155: AS0520222271 | G155: 63.00 | H155: 31.50 | I155: 87.94 | J155: 43.97 | K155: 75.47
A156: 153 | B156: 关岭县 | C156: 小学 | D156: 语文 | E156: 四片区 | F156: AS0520222121 | G156: 68.00 | H156: 34.00 | I156: 82.80 | J156: 41.40 | K156: 75.40
A157: 154 | B157: 关岭县 | C157: 小学 | D157: 语文 | E157: 四片区 | F157: AS0520222206 | G157: 69.00 | H157: 34.50 | I157: 81.72 | J157: 40.86 | K157: 75.36
A158: 155 | B158: 关岭县 | C158: 小学 | D158: 语文 | E158: 四片区 | F158: AS0520221512 | G158: 67.00 | H158: 33.50 | I158: 83.66 | J158: 41.83 | K158: 75.33
A159: 156 | B159: 关岭县 | C159: 小学 | D159: 语文 | E159: 四片区 | F159: AS0520222190 | G159: 63.00 | H159: 31.50 | I159: 87.48 | J159: 43.74 | K159: 75.24
A160: 157 | B160: 关岭县 | C160: 小学 | D160: 语文 | E160: 四片区 | F160: AS0520221769 | G160: 64.00 | H160: 32.00 | I160: 86.46 | J160: 43.23 | K160: 75.23
A161: 158 | B161: 关岭县 | C161: 小学 | D161: 语文 | E161: 四片区 | F161: AS0520221857 | G161: 64.00 | H161: 32.00 | I161: 85.86 | J161: 42.93 | K161: 74.93
A162: 159 | B162: 关岭县 | C162: 小学 | D162: 语文 | E162: 四片区 | F162: AS0520221796 | G162: 63.00 | H162: 31.50 | I162: 86.62 | J162: 43.31 | K162: 74.81
A163: 160 | B163: 关岭县 | C163: 小学 | D163: 语文 | E163: 四片区 | F163: AS0520222130 | G163: 63.00 | H163: 31.50 | I163: 86.28 | J163: 43.14 | K163: 74.64
A164: 161 | B164: 关岭县 | C164: 小学 | D164: 语文 | E164: 四片区 | F164: AS0520221744 | G164: 65.00 | H164: 32.50 | I164: 84.06 | J164: 42.03 | K164: 74.53
A165: 162 | B165: 关岭县 | C165: 小学 | D165: 语文 | E165: 四片区 | F165: AS0520222184 | G165: 67.00 | H165: 33.50 | I165: 81.92 | J165: 40.96 | K165: 74.46
A166: 163 | B166: 关岭县 | C166: 小学 | D166: 语文 | E166: 四片区 | F166: AS0520221485 | G166: 68.00 | H166: 34.00 | I166: 80.58 | J166: 40.29 | K166: 74.29
A167: 164 | B167: 关岭县 | C167: 小学 | D167: 语文 | E167: 四片区 | F167: AS0520221882 | G167: 63.00 | H167: 31.50 | I167: 84.96 | J167: 42.48 | K167: 73.98
A168: 165 | B168: 关岭县 | C168: 小学 | D168: 语文 | E168: 四片区 | F168: AS0520222263 | G168: 63.00 | H168: 31.50 | I168: 84.58 | J168: 42.29 | K168: 73.79
A169: 166 | B169: 关岭县 | C169: 小学 | D169: 语文 | E169: 四片区 | F169: AS0520222124 | G169: 64.00 | H169: 32.00 | I169: 82.42 | J169: 41.21 | K169: 73.21
A170: 167 | B170: 关岭县 | C170: 小学 | D170: 语文 | E170: 四片区 | F170: AS0520221948 | G170: 65.00 | H170: 32.50 | I170: 79.64 | J170: 39.82 | K170: 72.32
A171: 168 | B171: 关岭县 | C171: 小学 | D171: 语文 | E171: 四片区 | F171: AS0520221680 | G171: 63.00 | H171: 31.50 | I171: 81.46 | J171: 40.73 | K171: 72.23
A172: 169 | B172: 关岭县 | C172: 小学 | D172: 语文 | E172: 四片区 | F172: AS0520221904 | G172: 64.00 | H172: 32.00 | I172: 80.16 | J172: 40.08 | K172: 72.08
A173: 170 | B173: 关岭县 | C173: 小学 | D173: 语文 | E173: 四片区 | F173: AS0520221497 | G173: 65.00 | H173: 32.50 | I173: 78.20 | J173: 39.10 | K173: 71.60
A174: 171 | B174: 关岭县 | C174: 小学 | D174: 语文 | E174: 四片区 | F174: AS0520221900 | G174: 64.00 | H174: 32.00 | I174: 77.92 | J174: 38.96 | K174: 70.96
A175: 172 | B175: 关岭县 | C175: 小学 | D175: 语文 | E175: 四片区 | F175: AS0520221794 | G175: 65.00 | H175: 32.50 | I175: 76.30 | J175: 38.15 | K175: 70.65
A176: 173 | B176: 关岭县 | C176: 小学 | D176: 语文 | E176: 四片区 | F176: AS0520222062 | G176: 66.00 | H176: 33.00 | I176: 缺考 | J176: 0.00 | K176: 33.00 | L176: 面试缺考
A177: 174 | B177: 关岭县 | C177: 小学 | D177: 语文 | E177: 四片区 | F177: AS0520221597 | G177: 63.00 | H177: 31.50 | I177: 缺考 | J177: 0.00 | K177: 31.50 | L177: 面试缺考
A178: 175 | B178: 关岭县 | C178: 小学 | D178: 语文 | E178: 四片区 | F178: AS0520221766 | G178: 63.00 | H178: 31.50 | I178: 缺考 | J178: 0.00 | K178: 31.50 | L178: 面试缺考
A179: 176 | B179: 关岭县 | C179: 小学 | D179: 数学 | E179: 一片区 | F179: AS0520220184 | G179: 79.00 | H179: 39.50 | I179: 80.30 | J179: 40.15 | K179: 79.65
A180: 177 | B180: 关岭县 | C180: 小学 | D180: 数学 | E180: 一片区 | F180: AS0520220215 | G180: 76.00 | H180: 38.00 | I180: 78.92 | J180: 39.46 | K180: 77.46
A181: 178 | B181: 关岭县 | C181: 小学 | D181: 数学 | E181: 一片区 | F181: AS0520220223 | G181: 66.00 | H181: 33.00 | I181: 86.82 | J181: 43.41 | K181: 76.41
A182: 179 | B182: 关岭县 | C182: 小学 | D182: 数学 | E182: 一片区 | F182: AS0520220213 | G182: 70.00 | H182: 35.00 | I182: 82.80 | J182: 41.40 | K182: 76.40
A183: 180 | B183: 关岭县 | C183: 小学 | D183: 数学 | E183: 一片区 | F183: AS0520220224 | G183: 67.00 | H183: 33.50 | I183: 80.18 | J183: 40.09 | K183: 73.59
A184: 181 | B184: 关岭县 | C184: 小学 | D184: 数学 | E184: 一片区 | F184: AS0520220204 | G184: 66.00 | H184: 33.00 | I184: 80.48 | J184: 40.24 | K184: 73.24
A185: 182 | B185: 关岭县 | C185: 小学 | D185: 数学 | E185: 一片区 | F185: AS0520220236 | G185: 66.00 | H185: 33.00 | I185: 79.74 | J185: 39.87 | K185: 72.87
A186: 183 | B186: 关岭县 | C186: 小学 | D186: 数学 | E186: 一片区 | F186: AS0520220179 | G186: 61.00 | H186: 30.50 | I186: 84.30 | J186: 42.15 | K186: 72.65
A187: 184 | B187: 关岭县 | C187: 小学 | D187: 数学 | E187: 一片区 | F187: AS0520220191 | G187: 63.00 | H187: 31.50 | I187: 80.94 | J187: 40.47 | K187: 71.97
A188: 185 | B188: 关岭县 | C188: 小学 | D188: 数学 | E188: 一片区 | F188: AS0520220238 | G188: 59.00 | H188: 29.50 | I188: 84.36 | J188: 42.18 | K188: 71.68
A189: 186 | B189: 关岭县 | C189: 小学 | D189: 数学 | E189: 一片区 | F189: AS0520220241 | G189: 65.00 | H189: 32.50 | I189: 78.30 | J189: 39.15 | K189: 71.65
A190: 187 | B190: 关岭县 | C190: 小学 | D190: 数学 | E190: 一片区 | F190: AS0520220228 | G190: 56.00 | H190: 28.00 | I190: 87.22 | J190: 43.61 | K190: 71.61
A191: 188 | B191: 关岭县 | C191: 小学 | D191: 数学 | E191: 一片区 | F191: AS0520220244 | G191: 64.00 | H191: 32.00 | I191: 79.20 | J191: 39.60 | K191: 71.60
A192: 189 | B192: 关岭县 | C192: 小学 | D192: 数学 | E192: 一片区 | F192: AS0520220212 | G192: 54.00 | H192: 27.00 | I192: 88.12 | J192: 44.06 | K192: 71.06
A193: 190 | B193: 关岭县 | C193: 小学 | D193: 数学 | E193: 一片区 | F193: AS0520220182 | G193: 64.00 | H193: 32.00 | I193: 77.50 | J193: 38.75 | K193: 70.75
A194: 191 | B194: 关岭县 | C194: 小学 | D194: 数学 | E194: 一片区 | F194: AS0520220181 | G194: 60.00 | H194: 30.00 | I194: 81.24 | J194: 40.62 | K194: 70.62
A195: 192 | B195: 关岭县 | C195: 小学 | D195: 数学 | E195: 一片区 | F195: AS0520220188 | G195: 58.00 | H195: 29.00 | I195: 83.04 | J195: 41.52 | K195: 70.52
A196: 193 | B196: 关岭县 | C196: 小学 | D196: 数学 | E196: 一片区 | F196: AS0520220216 | G196: 55.00 | H196: 27.50 | I196: 85.14 | J196: 42.57 | K196: 70.07
A197: 194 | B197: 关岭县 | C197: 小学 | D197: 数学 | E197: 一片区 | F197: AS0520220214 | G197: 55.00 | H197: 27.50 | I197: 85.12 | J197: 42.56 | K197: 70.06
A198: 195 | B198: 关岭县 | C198: 小学 | D198: 数学 | E198: 一片区 | F198: AS0520220220 | G198: 57.00 | H198: 28.50 | I198: 82.74 | J198: 41.37 | K198: 69.87
A199: 196 | B199: 关岭县 | C199: 小学 | D199: 数学 | E199: 一片区 | F199: AS0520220203 | G199: 57.00 | H199: 28.50 | I199: 81.86 | J199: 40.93 | K199: 69.43
A200: 197 | B200: 关岭县 | C200: 小学 | D200: 数学 | E200: 一片区 | F200: AS0520220230 | G200: 52.00 | H200: 26.00 | I200: 85.04 | J200: 42.52 | K200: 68.52
... 534 more rows

Sheet 紫云县
A1: 附件1 紫云县2022年“特岗计划”教师招聘总成绩统计情况表
A2: 序号 | B2: 报考县区 | C2: 报考学段 | D2: 报考学科 | E2: 笔试准考证号 | F2: 笔试得分 | G2: 折算成绩(占总成绩50%） | H2: 面试得分 | I2: 折算成绩(占总成绩50%） | J2: 总成绩 | K2: 备注
A3: 1 | B3: 紫云 | C3: 初中 | D3: 语文 | E3: AS0620220001 | F3: 77 | G3: 38.50 | H3: 79.67 | I3: 39.84 | J3: 78.34
A4: 2 | B4: 紫云 | C4: 初中 | D4: 语文 | E4: AS0620220003 | F4: 74 | G4: 37.00 | H4: 75 | I4: 37.50 | J4: 74.50
A5: 3 | B5: 紫云 | C5: 初中 | D5: 语文 | E5: AS0620220006 | F5: 82 | G5: 41.00 | H5: 80.03 | I5: 40.02 | J5: 81.02
A6: 4 | B6: 紫云 | C6: 初中 | D6: 语文 | E6: AS0620220008 | F6: 72 | G6: 36.00 | H6: 81.5 | I6: 40.75 | J6: 76.75
A7: 5 | B7: 紫云 | C7: 初中 | D7: 语文 | E7: AS0620220010 | F7: 73 | G7: 36.50 | H7: 84.47 | I7: 42.24 | J7: 78.74
A8: 6 | B8: 紫云 | C8: 初中 | D8: 语文 | E8: AS0620220012 | F8: 75 | G8: 37.50 | H8: 84.83 | I8: 42.42 | J8: 79.92
A9: 7 | B9: 紫云 | C9: 初中 | D9: 语文 | E9: AS0620220013 | F9: 75 | G9: 37.50 | H9: 74.67 | I9: 37.34 | J9: 74.84
A10: 8 | B10: 紫云 | C10: 初中 | D10: 语文 | E10: AS0620220015 | F10: 78 | G10: 39.00 | H10: 83 | I10: 41.50 | J10: 80.50
A11: 9 | B11: 紫云 | C11: 初中 | D11: 语文 | E11: AS0620220018 | F11: 74 | G11: 37.00 | H11: 83.17 | I11: 41.59 | J11: 78.59
A12: 10 | B12: 紫云 | C12: 初中 | D12: 语文 | E12: AS0620220019 | F12: 81 | G12: 40.50 | H12: 84.8 | I12: 42.40 | J12: 82.90
A13: 11 | B13: 紫云 | C13: 初中 | D13: 语文 | E13: AS0620220023 | F13: 72 | G13: 36.00 | H13: 81.33 | I13: 40.67 | J13: 76.67
A14: 12 | B14: 紫云 | C14: 初中 | D14: 语文 | E14: AS0620220034 | F14: 77 | G14: 38.50 | H14: 83.17 | I14: 41.59 | J14: 80.09
A15: 13 | B15: 紫云 | C15: 初中 | D15: 语文 | E15: AS0620220035 | F15: 78 | G15: 39.00 | H15: 83.5 | I15: 41.75 | J15: 80.75
A16: 14 | B16: 紫云 | C16: 初中 | D16: 语文 | E16: AS0620220036 | F16: 74 | G16: 37.00 | H16: 84.67 | I16: 42.34 | J16: 79.34
A17: 15 | B17: 紫云 | C17: 初中 | D17: 语文 | E17: AS0620220038 | F17: 77 | G17: 38.50 | H17: 82 | I17: 41.00 | J17: 79.50
A18: 16 | B18: 紫云 | C18: 初中 | D18: 语文 | E18: AS0620220039 | F18: 72 | G18: 36.00 | H18: 83.5 | I18: 41.75 | J18: 77.75
A19: 17 | B19: 紫云 | C19: 初中 | D19: 语文 | E19: AS0620220042 | F19: 76 | G19: 38.00 | H19: 83.17 | I19: 41.59 | J19: 79.59
A20: 18 | B20: 紫云 | C20: 初中 | D20: 语文 | E20: AS0620220045 | F20: 74 | G20: 37.00 | H20: 77.93 | I20: 38.97 | J20: 75.97
A21: 19 | B21: 紫云 | C21: 初中 | D21: 语文 | E21: AS0620220048 | F21: 78 | G21: 39.00 | H21: 83.5 | I21: 41.75 | J21: 80.75
A22: 20 | B22: 紫云 | C22: 初中 | D22: 语文 | E22: AS0620220051 | F22: 72 | G22: 36.00 | H22: 75.67 | I22: 37.84 | J22: 73.84
A23: 21 | B23: 紫云 | C23: 初中 | D23: 语文 | E23: AS0620220053 | F23: 87 | G23: 43.50 | H23: 83.03 | I23: 41.52 | J23: 85.02
A24: 22 | B24: 紫云 | C24: 初中 | D24: 语文 | E24: AS0620220056 | F24: 72 | G24: 36.00 | H24: 80.5 | I24: 40.25 | J24: 76.25
A25: 23 | B25: 紫云 | C25: 初中 | D25: 语文 | E25: AS0620220057 | F25: 80 | G25: 40.00 | H25: 82.83 | I25: 41.42 | J25: 81.42
A26: 24 | B26: 紫云 | C26: 初中 | D26: 语文 | E26: AS0620220061 | F26: 77 | G26: 38.50 | H26: 83.4 | I26: 41.70 | J26: 80.20
A27: 25 | B27: 紫云 | C27: 初中 | D27: 语文 | E27: AS0620220064 | F27: 86 | G27: 43.00 | H27: 82.33 | I27: 41.17 | J27: 84.17
A28: 26 | B28: 紫云 | C28: 初中 | D28: 语文 | E28: AS0620220067 | F28: 83 | G28: 41.50 | H28: 84.83 | I28: 42.42 | J28: 83.92
A29: 27 | B29: 紫云 | C29: 初中 | D29: 语文 | E29: AS0620220068 | F29: 75 | G29: 37.50 | H29: 84.33 | I29: 42.17 | J29: 79.67
A30: 28 | B30: 紫云 | C30: 初中 | D30: 语文 | E30: AS0620220071 | F30: 76 | G30: 38.00 | H30: 81.33 | I30: 40.67 | J30: 78.67
A31: 29 | B31: 紫云 | C31: 初中 | D31: 语文 | E31: AS0620220074 | F31: 78 | G31: 39.00 | H31: 78.83 | I31: 39.42 | J31: 78.42
A32: 30 | B32: 紫云 | C32: 初中 | D32: 语文 | E32: AS0620220077 | F32: 77 | G32: 38.50 | H32: 85 | I32: 42.50 | J32: 81.00
A33: 31 | B33: 紫云 | C33: 初中 | D33: 语文 | E33: AS0620220078 | F33: 78 | G33: 39.00 | H33: 82.77 | I33: 41.39 | J33: 80.39
A34: 32 | B34: 紫云 | C34: 初中 | D34: 语文 | E34: AS0620220082 | F34: 73 | G34: 36.50 | H34: 84.6 | I34: 42.30 | J34: 78.80
A35: 33 | B35: 紫云 | C35: 初中 | D35: 语文 | E35: AS0620220088 | F35: 81 | G35: 40.50 | H35: 85.07 | I35: 42.54 | J35: 83.04
A36: 34 | B36: 紫云 | C36: 初中 | D36: 语文 | E36: AS0620220090 | F36: 84 | G36: 42.00 | H36: 82.17 | I36: 41.09 | J36: 83.09
A37: 35 | B37: 紫云 | C37: 初中 | D37: 语文 | E37: AS0620220092 | F37: 82 | G37: 41.00 | H37: 83.83 | I37: 41.92 | J37: 82.92
A38: 36 | B38: 紫云 | C38: 初中 | D38: 语文 | E38: AS0620220093 | F38: 81 | G38: 40.50 | H38: 80.17 | I38: 40.09 | J38: 80.59
A39: 37 | B39: 紫云 | C39: 初中 | D39: 语文 | E39: AS0620220094 | F39: 81 | G39: 40.50 | H39: 82.27 | I39: 41.14 | J39: 81.64
A40: 38 | B40: 紫云 | C40: 初中 | D40: 语文 | E40: AS0620220097 | F40: 74 | G40: 37.00 | H40: 85.9 | I40: 42.95 | J40: 79.95
A41: 39 | B41: 紫云 | C41: 初中 | D41: 语文 | E41: AS0620220098 | F41: 75 | G41: 37.50 | H41: 缺考 | I41: 0.00 | J41: 37.50 | K41: 面试缺考
A42: 40 | B42: 紫云 | C42: 初中 | D42: 语文 | E42: AS0620220099 | F42: 76 | G42: 38.00 | H42: 82.5 | I42: 41.25 | J42: 79.25
A43: 41 | B43: 紫云 | C43: 初中 | D43: 语文 | E43: AS0620220100 | F43: 74 | G43: 37.00 | H43: 84.17 | I43: 42.09 | J43: 79.09
A44: 42 | B44: 紫云 | C44: 初中 | D44: 语文 | E44: AS0620220104 | F44: 77 | G44: 38.50 | H44: 82.6 | I44: 41.30 | J44: 79.80
A45: 43 | B45: 紫云 | C45: 初中 | D45: 语文 | E45: AS0620220107 | F45: 80 | G45: 40.00 | H45: 79.83 | I45: 39.92 | J45: 79.92
A46: 44 | B46: 紫云 | C46: 初中 | D46: 语文 | E46: AS0620220110 | F46: 72 | G46: 36.00 | H46: 缺考 | I46: 0.00 | J46: 36.00 | K46: 面试缺考
A47: 45 | B47: 紫云 | C47: 初中 | D47: 语文 | E47: AS0620220114 | F47: 77 | G47: 38.50 | H47: 85.1 | I47: 42.55 | J47: 81.05
A48: 46 | B48: 紫云 | C48: 初中 | D48: 语文 | E48: AS0620220115 | F48: 75 | G48: 37.50 | H48: 83.67 | I48: 41.84 | J48: 79.34
A49: 47 | B49: 紫云 | C49: 小学 | D49: 语文 | E49: AS0620220118 | F49: 66 | G49: 33.00 | H49: 缺考 | I49: 0.00 | J49: 33.00 | K49: 面试缺考
A50: 48 | B50: 紫云 | C50: 小学 | D50: 语文 | E50: AS0620220120 | F50: 78 | G50: 39.00 | H50: 83.43 | I50: 41.72 | J50: 80.72
A51: 49 | B51: 紫云 | C51: 小学 | D51: 语文 | E51: AS0620220124 | F51: 75 | G51: 37.50 | H51: 87 | I51: 43.50 | J51: 81.00
A52: 50 | B52: 紫云 | C52: 小学 | D52: 语文 | E52: AS0620220127 | F52: 72 | G52: 36.00 | H52: 86.93 | I52: 43.47 | J52: 79.47
A53: 51 | B53: 紫云 | C53: 小学 | D53: 语文 | E53: AS0620220128 | F53: 70 | G53: 35.00 | H53: 87.18 | I53: 43.59 | J53: 78.59
A54: 52 | B54: 紫云 | C54: 小学 | D54: 语文 | E54: AS0620220132 | F54: 72 | G54: 36.00 | H54: 85.3 | I54: 42.65 | J54: 78.65
A55: 53 | B55: 紫云 | C55: 小学 | D55: 语文 | E55: AS0620220133 | F55: 65 | G55: 32.50 | H55: 82.93 | I55: 41.47 | J55: 73.97
A56: 54 | B56: 紫云 | C56: 小学 | D56: 语文 | E56: AS0620220137 | F56: 70 | G56: 35.00 | H56: 84.77 | I56: 42.39 | J56: 77.39
A57: 55 | B57: 紫云 | C57: 小学 | D57: 语文 | E57: AS0620220138 | F57: 65 | G57: 32.50 | H57: 82.57 | I57: 41.29 | J57: 73.79
A58: 56 | B58: 紫云 | C58: 小学 | D58: 语文 | E58: AS0620220142 | F58: 69 | G58: 34.50 | H58: 86.33 | I58: 43.17 | J58: 77.67
A59: 57 | B59: 紫云 | C59: 小学 | D59: 语文 | E59: AS0620220143 | F59: 68 | G59: 34.00 | H59: 86.63 | I59: 43.32 | J59: 77.32
A60: 58 | B60: 紫云 | C60: 小学 | D60: 语文 | E60: AS0620220148 | F60: 66 | G60: 33.00 | H60: 84.83 | I60: 42.42 | J60: 75.42
A61: 59 | B61: 紫云 | C61: 小学 | D61: 语文 | E61: AS0620220149 | F61: 65 | G61: 32.50 | H61: 74.5 | I61: 37.25 | J61: 69.75
A62: 60 | B62: 紫云 | C62: 小学 | D62: 语文 | E62: AS0620220153 | F62: 73 | G62: 36.50 | H62: 80.53 | I62: 40.27 | J62: 76.77
A63: 61 | B63: 紫云 | C63: 小学 | D63: 语文 | E63: AS0620220155 | F63: 69 | G63: 34.50 | H63: 80.33 | I63: 40.17 | J63: 74.67
A64: 62 | B64: 紫云 | C64: 小学 | D64: 语文 | E64: AS0620220159 | F64: 65 | G64: 32.50 | H64: 86.07 | I64: 43.04 | J64: 75.54
A65: 63 | B65: 紫云 | C65: 小学 | D65: 语文 | E65: AS0620220163 | F65: 66 | G65: 33.00 | H65: 85.6 | I65: 42.80 | J65: 75.80
A66: 64 | B66: 紫云 | C66: 小学 | D66: 语文 | E66: AS0620220165 | F66: 65 | G66: 32.50 | H66: 85 | I66: 42.50 | J66: 75.00
A67: 65 | B67: 紫云 | C67: 小学 | D67: 语文 | E67: AS0620220166 | F67: 68 | G67: 34.00 | H67: 84.47 | I67: 42.24 | J67: 76.24
A68: 66 | B68: 紫云 | C68: 小学 | D68: 语文 | E68: AS0620220167 | F68: 81 | G68: 40.50 | H68: 83.17 | I68: 41.59 | J68: 82.09
A69: 67 | B69: 紫云 | C69: 小学 | D69: 语文 | E69: AS0620220168 | F69: 71 | G69: 35.50 | H69: 82.5 | I69: 41.25 | J69: 76.75
A70: 68 | B70: 紫云 | C70: 小学 | D70: 语文 | E70: AS0620220169 | F70: 69 | G70: 34.50 | H70: 80.5 | I70: 40.25 | J70: 74.75
A71: 69 | B71: 紫云 | C71: 小学 | D71: 语文 | E71: AS0620220171 | F71: 73 | G71: 36.50 | H71: 83.9 | I71: 41.95 | J71: 78.45
A72: 70 | B72: 紫云 | C72: 小学 | D72: 语文 | E72: AS0620220180 | F72: 80 | G72: 40.00 | H72: 83.07 | I72: 41.54 | J72: 81.54
A73: 71 | B73: 紫云 | C73: 初中 | D73: 数学 | E73: AS0620220181 | F73: 91 | G73: 45.50 | H73: 82.67 | I73: 41.34 | J73: 86.84
A74: 72 | B74: 紫云 | C74: 初中 | D74: 数学 | E74: AS0620220182 | F74: 54 | G74: 27.00 | H74: 77.02 | I74: 38.51 | J74: 65.51
A75: 73 | B75: 紫云 | C75: 初中 | D75: 数学 | E75: AS0620220183 | F75: 57 | G75: 28.50 | H75: 缺考 | I75: 0.00 | J75: 28.50 | K75: 面试缺考
A76: 74 | B76: 紫云 | C76: 初中 | D76: 数学 | E76: AS0620220185 | F76: 67 | G76: 33.50 | H76: 缺考 | I76: 0.00 | J76: 33.50 | K76: 面试缺考
A77: 75 | B77: 紫云 | C77: 初中 | D77: 数学 | E77: AS0620220186 | F77: 81 | G77: 40.50 | H77: 80.24 | I77: 40.12 | J77: 80.62
A78: 76 | B78: 紫云 | C78: 初中 | D78: 数学 | E78: AS0620220187 | F78: 74 | G78: 37.00 | H78: 83.88 | I78: 41.94 | J78: 78.94
A79: 77 | B79: 紫云 | C79: 初中 | D79: 数学 | E79: AS0620220188 | F79: 68 | G79: 34.00 | H79: 73.33 | I79: 36.67 | J79: 70.67
A80: 78 | B80: 紫云 | C80: 初中 | D80: 数学 | E80: AS0620220189 | F80: 73 | G80: 36.50 | H80: 缺考 | I80: 0.00 | J80: 36.50 | K80: 面试缺考
A81: 79 | B81: 紫云 | C81: 初中 | D81: 数学 | E81: AS0620220191 | F81: 74 | G81: 37.00 | H81: 80.04 | I81: 40.02 | J81: 77.02
A82: 80 | B82: 紫云 | C82: 初中 | D82: 数学 | E82: AS0620220192 | F82: 74 | G82: 37.00 | H82: 84.15 | I82: 42.08 | J82: 79.08
A83: 81 | B83: 紫云 | C83: 初中 | D83: 数学 | E83: AS0620220193 | F83: 70 | G83: 35.00 | H83: 74.3 | I83: 37.15 | J83: 72.15
A84: 82 | B84: 紫云 | C84: 初中 | D84: 数学 | E84: AS0620220195 | F84: 83 | G84: 41.50 | H84: 80.44 | I84: 40.22 | J84: 81.72
A85: 83 | B85: 紫云 | C85: 初中 | D85: 数学 | E85: AS0620220196 | F85: 59 | G85: 29.50 | H85: 缺考 | I85: 0.00 | J85: 29.50 | K85: 面试缺考
A86: 84 | B86: 紫云 | C86: 初中 | D86: 数学 | E86: AS0620220197 | F86: 81 | G86: 40.50 | H86: 73.03 | I86: 36.52 | J86: 77.02
A87: 85 | B87: 紫云 | C87: 初中 | D87: 数学 | E87: AS0620220198 | F87: 76 | G87: 38.00 | H87: 80 | I87: 40.00 | J87: 78.00
A88: 86 | B88: 紫云 | C88: 初中 | D88: 数学 | E88: AS0620220199 | F88: 74 | G88: 37.00 | H88: 74 | I88: 37.00 | J88: 74.00
A89: 87 | B89: 紫云 | C89: 初中 | D89: 数学 | E89: AS0620220200 | F89: 53 | G89: 26.50 | H89: 缺考 | I89: 0.00 | J89: 26.50 | K89: 面试缺考
A90: 88 | B90: 紫云 | C90: 初中 | D90: 数学 | E90: AS0620220201 | F90: 75 | G90: 37.50 | H90: 67.45 | I90: 33.73 | J90: 71.23
A91: 89 | B91: 紫云 | C91: 初中 | D91: 数学 | E91: AS0620220204 | F91: 68 | G91: 34.00 | H91: 缺考 | I91: 0.00 | J91: 34.00 | K91: 面试缺考
A92: 90 | B92: 紫云 | C92: 初中 | D92: 数学 | E92: AS0620220206 | F92: 70 | G92: 35.00 | H92: 81.77 | I92: 40.89 | J92: 75.89
A93: 91 | B93: 紫云 | C93: 初中 | D93: 数学 | E93: AS0620220208 | F93: 64 | G93: 32.00 | H93: 缺考 | I93: 0.00 | J93: 32.00 | K93: 面试缺考
A94: 92 | B94: 紫云 | C94: 初中 | D94: 数学 | E94: AS0620220209 | F94: 68 | G94: 34.00 | H94: 78.68 | I94: 39.34 | J94: 73.34
A95: 93 | B95: 紫云 | C95: 初中 | D95: 数学 | E95: AS0620220210 | F95: 56 | G95: 28.00 | H95: 缺考 | I95: 0.00 | J95: 28.00 | K95: 面试缺考
A96: 94 | B96: 紫云 | C96: 初中 | D96: 数学 | E96: AS0620220211 | F96: 62 | G96: 31.00 | H96: 缺考 | I96: 0.00 | J96: 31.00 | K96: 面试缺考
A97: 95 | B97: 紫云 | C97: 初中 | D97: 数学 | E97: AS0620220212 | F97: 59 | G97: 29.50 | H97: 缺考 | I97: 0.00 | J97: 29.50 | K97: 面试缺考
A98: 96 | B98: 紫云 | C98: 初中 | D98: 数学 | E98: AS0620220213 | F98: 69 | G98: 34.50 | H98: 76.81 | I98: 38.41 | J98: 72.91
A99: 97 | B99: 紫云 | C99: 初中 | D99: 数学 | E99: AS0620220214 | F99: 67 | G99: 33.50 | H99: 75.17 | I99: 37.59 | J99: 71.09
A100: 98 | B100: 紫云 | C100: 初中 | D100: 数学 | E100: AS0620220215 | F100: 63 | G100: 31.50 | H100: 68.34 | I100: 34.17 | J100: 65.67
A101: 99 | B101: 紫云 | C101: 初中 | D101: 数学 | E101: AS0620220216 | F101: 62 | G101: 31.00 | H101: 缺考 | I101: 0.00 | J101: 31.00 | K101: 面试缺考
A102: 100 | B102: 紫云 | C102: 初中 | D102: 数学 | E102: AS0620220219 | F102: 74 | G102: 37.00 | H102: 76.92 | I102: 38.46 | J102: 75.46
A103: 101 | B103: 紫云 | C103: 初中 | D103: 数学 | E103: AS0620220220 | F103: 60 | G103: 30.00 | H103: 缺考 | I103: 0.00 | J103: 30.00 | K103: 面试缺考
A104: 102 | B104: 紫云 | C104: 初中 | D104: 数学 | E104: AS0620220222 | F104: 49 | G104: 24.50 | H104: 缺考 | I104: 0.00 | J104: 24.50 | K104: 面试缺考
A105: 103 | B105: 紫云 | C105: 初中 | D105: 数学 | E105: AS0620220223 | F105: 77 | G105: 38.50 | H105: 81.36 | I105: 40.68 | J105: 79.18
A106: 104 | B106: 紫云 | C106: 初中 | D106: 数学 | E106: AS0620220224 | F106: 61 | G106: 30.50 | H106: 0 | I106: 0.00 | J106: 30.50 | K106: 面试缺考
A107: 105 | B107: 紫云 | C107: 初中 | D107: 数学 | E107: AS0620220225 | F107: 74 | G107: 37.00 | H107: 76.53 | I107: 38.27 | J107: 75.27
A108: 106 | B108: 紫云 | C108: 初中 | D108: 数学 | E108: AS0620220226 | F108: 72 | G108: 36.00 | H108: 81.34 | I108: 40.67 | J108: 76.67
A109: 107 | B109: 紫云 | C109: 初中 | D109: 数学 | E109: AS0620220227 | F109: 68 | G109: 34.00 | H109: 82.43 | I109: 41.22 | J109: 75.22
A110: 108 | B110: 紫云 | C110: 初中 | D110: 数学 | E110: AS0620220228 | F110: 77 | G110: 38.50 | H110: 75.67 | I110: 37.84 | J110: 76.34
A111: 109 | B111: 紫云 | C111: 初中 | D111: 数学 | E111: AS0620220229 | F111: 72 | G111: 36.00 | H111: 73 | I111: 36.50 | J111: 72.50
A112: 110 | B112: 紫云 | C112: 初中 | D112: 数学 | E112: AS0620220231 | F112: 54 | G112: 27.00 | H112: 63.14 | I112: 31.57 | J112: 58.57
A113: 111 | B113: 紫云 | C113: 初中 | D113: 数学 | E113: AS0620220232 | F113: 68 | G113: 34.00 | H113: 85.43 | I113: 42.72 | J113: 76.72
A114: 112 | B114: 紫云 | C114: 初中 | D114: 数学 | E114: AS0620220233 | F114: 65 | G114: 32.50 | H114: 70 | I114: 35.00 | J114: 67.50
A115: 113 | B115: 紫云 | C115: 初中 | D115: 数学 | E115: AS0620220234 | F115: 52 | G115: 26.00 | H115: 缺考 | I115: 0.00 | J115: 26.00 | K115: 面试缺考
A116: 114 | B116: 紫云 | C116: 初中 | D116: 数学 | E116: AS0620220235 | F116: 62 | G116: 31.00 | H116: 67.24 | I116: 33.62 | J116: 64.62
A117: 115 | B117: 紫云 | C117: 初中 | D117: 数学 | E117: AS0620220236 | F117: 60 | G117: 30.00 | H117: 缺考 | I117: 0.00 | J117: 30.00 | K117: 面试缺考
A118: 116 | B118: 紫云 | C118: 初中 | D118: 数学 | E118: AS0620220237 | F118: 74 | G118: 37.00 | H118: 70.48 | I118: 35.24 | J118: 72.24
A119: 117 | B119: 紫云 | C119: 初中 | D119: 数学 | E119: AS0620220238 | F119: 84 | G119: 42.00 | H119: 84.37 | I119: 42.19 | J119: 84.19
A120: 118 | B120: 紫云 | C120: 初中 | D120: 数学 | E120: AS0620220239 | F120: 80 | G120: 40.00 | H120: 84.46 | I120: 42.23 | J120: 82.23
A121: 119 | B121: 紫云 | C121: 初中 | D121: 数学 | E121: AS0620220240 | F121: 59 | G121: 29.50 | H121: 缺考 | I121: 0.00 | J121: 29.50 | K121: 面试缺考
A122: 120 | B122: 紫云 | C122: 小学 | D122: 数学 | E122: AS0620220242 | F122: 68 | G122: 34.00 | H122: 80 | I122: 40.00 | J122: 74.00
A123: 121 | B123: 紫云 | C123: 小学 | D123: 数学 | E123: AS0620220245 | F123: 72 | G123: 36.00 | H123: 82.83 | I123: 41.42 | J123: 77.42
A124: 122 | B124: 紫云 | C124: 小学 | D124: 数学 | E124: AS0620220246 | F124: 82 | G124: 41.00 | H124: 81.5 | I124: 40.75 | J124: 81.75
A125: 123 | B125: 紫云 | C125: 小学 | D125: 数学 | E125: AS0620220248 | F125: 72 | G125: 36.00 | H125: 85.5 | I125: 42.75 | J125: 78.75
A126: 124 | B126: 紫云 | C126: 小学 | D126: 数学 | E126: AS0620220250 | F126: 69 | G126: 34.50 | H126: 82.34 | I126: 41.17 | J126: 75.67
A127: 125 | B127: 紫云 | C127: 小学 | D127: 数学 | E127: AS0620220252 | F127: 65 | G127: 32.50 | H127: 缺考 | I127: 0.00 | J127: 32.50 | K127: 面试缺考
A128: 126 | B128: 紫云 | C128: 小学 | D128: 数学 | E128: AS0620220253 | F128: 59 | G128: 29.50 | H128: 缺考 | I128: 0.00 | J128: 29.50 | K128: 面试缺考
A129: 127 | B129: 紫云 | C129: 小学 | D129: 数学 | E129: AS0620220260 | F129: 79 | G129: 39.50 | H129: 82.33 | I129: 41.17 | J129: 80.67
A130: 128 | B130: 紫云 | C130: 小学 | D130: 数学 | E130: AS0620220262 | F130: 78 | G130: 39.00 | H130: 76.5 | I130: 38.25 | J130: 77.25
A131: 129 | B131: 紫云 | C131: 小学 | D131: 数学 | E131: AS0620220263 | F131: 66 | G131: 33.00 | H131: 缺考 | I131: 0.00 | J131: 33.00 | K131: 面试缺考
A132: 130 | B132: 紫云 | C132: 小学 | D132: 数学 | E132: AS0620220264 | F132: 58 | G132: 29.00 | H132: 缺考 | I132: 0.00 | J132: 29.00 | K132: 面试缺考
A133: 131 | B133: 紫云 | C133: 小学 | D133: 数学 | E133: AS0620220265 | F133: 70 | G133: 35.00 | H133: 84.67 | I133: 42.34 | J133: 77.34
A134: 132 | B134: 紫云 | C134: 小学 | D134: 数学 | E134: AS0620220267 | F134: 57 | G134: 28.50 | H134: 83.02 | I134: 41.51 | J134: 70.01
A135: 133 | B135: 紫云 | C135: 小学 | D135: 数学 | E135: AS0620220274 | F135: 71 | G135: 35.50 | H135: 85 | I135: 42.50 | J135: 78.00
A136: 134 | B136: 紫云 | C136: 小学 | D136: 数学 | E136: AS0620220275 | F136: 64 | G136: 32.00 | H136: 81.93 | I136: 40.97 | J136: 72.97
A137: 135 | B137: 紫云 | C137: 小学 | D137: 数学 | E137: AS0620220276 | F137: 68 | G137: 34.00 | H137: 82.97 | I137: 41.49 | J137: 75.49
A138: 136 | B138: 紫云 | C138: 小学 | D138: 数学 | E138: AS0620220278 | F138: 66 | G138: 33.00 | H138: 80.83 | I138: 40.42 | J138: 73.42
A139: 137 | B139: 紫云 | C139: 小学 | D139: 数学 | E139: AS0620220281 | F139: 76 | G139: 38.00 | H139: 83.17 | I139: 41.59 | J139: 79.59
A140: 138 | B140: 紫云 | C140: 小学 | D140: 数学 | E140: AS0620220284 | F140: 74 | G140: 37.00 | H140: 82.67 | I140: 41.34 | J140: 78.34
A141: 139 | B141: 紫云 | C141: 小学 | D141: 数学 | E141: AS0620220286 | F141: 66 | G141: 33.00 | H141: 79.83 | I141: 39.92 | J141: 72.92
A142: 140 | B142: 紫云 | C142: 小学 | D142: 数学 | E142: AS0620220287 | F142: 64 | G142: 32.00 | H142: 83.33 | I142: 41.67 | J142: 73.67
A143: 141 | B143: 紫云 | C143: 小学 | D143: 数学 | E143: AS0620220293 | F143: 57 | G143: 28.50 | H143: 78.67 | I143: 39.34 | J143: 67.84
A144: 142 | B144: 紫云 | C144: 小学 | D144: 数学 | E144: AS0620220295 | F144: 72 | G144: 36.00 | H144: 83.6 | I144: 41.80 | J144: 77.80
A145: 143 | B145: 紫云 | C145: 初中 | D145: 数学 | E145: AS0620220301 | F145: 61 | G145: 30.50 | H145: 缺考 | I145: 0.00 | J145: 30.50 | K145: 面试缺考
A146: 144 | B146: 紫云 | C146: 初中 | D146: 数学 | E146: AS0620220302 | F146: 51 | G146: 25.50 | H146: 缺考 | I146: 0.00 | J146: 25.50 | K146: 面试缺考
A147: 145 | B147: 紫云 | C147: 初中 | D147: 数学 | E147: AS0620220303 | F147: 55 | G147: 27.50 | H147: 70.39 | I147: 35.20 | J147: 62.70
A148: 146 | B148: 紫云 | C148: 初中 | D148: 数学 | E148: AS0620220304 | F148: 64 | G148: 32.00 | H148: 缺考 | I148: 0.00 | J148: 32.00 | K148: 面试缺考
A149: 147 | B149: 紫云 | C149: 初中 | D149: 数学 | E149: AS0620220305 | F149: 78 | G149: 39.00 | H149: 84.23 | I149: 42.12 | J149: 81.12
A150: 148 | B150: 紫云 | C150: 初中 | D150: 数学 | E150: AS0620220306 | F150: 66 | G150: 33.00 | H150: 65.63 | I150: 32.82 | J150: 65.82
A151: 149 | B151: 紫云 | C151: 初中 | D151: 数学 | E151: AS0620220307 | F151: 60 | G151: 30.00 | H151: 缺考 | I151: 0.00 | J151: 30.00 | K151: 面试缺考
A152: 150 | B152: 紫云 | C152: 初中 | D152: 数学 | E152: AS0620220308 | F152: 71 | G152: 35.50 | H152: 75.72 | I152: 37.86 | J152: 73.36
A153: 151 | B153: 紫云 | C153: 小学 | D153: 数学 | E153: AS0620220309 | F153: 68 | G153: 34.00 | H153: 84.33 | I153: 42.17 | J153: 76.17
A154: 152 | B154: 紫云 | C154: 小学 | D154: 数学 | E154: AS0620220310 | F154: 68 | G154: 34.00 | H154: 81.77 | I154: 40.89 | J154: 74.89
A155: 153 | B155: 紫云 | C155: 小学 | D155: 数学 | E155: AS0620220314 | F155: 67 | G155: 33.50 | H155: 82.5 | I155: 41.25 | J155: 74.75
A156: 154 | B156: 紫云 | C156: 小学 | D156: 数学 | E156: AS0620220316 | F156: 77 | G156: 38.50 | H156: 80.43 | I156: 40.22 | J156: 78.72
A157: 155 | B157: 紫云 | C157: 小学 | D157: 数学 | E157: AS0620220322 | F157: 69 | G157: 34.50 | H157: 85 | I157: 42.50 | J157: 77.00
A158: 156 | B158: 紫云 | C158: 小学 | D158: 数学 | E158: AS0620220324 | F158: 60 | G158: 30.00 | H158: 缺考 | I158: 0.00 | J158: 30.00 | K158: 面试缺考
A159: 157 | B159: 紫云 | C159: 小学 | D159: 数学 | E159: AS0620220328 | F159: 78 | G159: 39.00 | H159: 82.67 | I159: 41.34 | J159: 80.34
A160: 158 | B160: 紫云 | C160: 初中 | D160: 信息技术 | E160: AS0620220331 | F160: 48 | G160: 24.00 | H160: 79.33 | I160: 39.67 | J160: 63.67
A161: 159 | B161: 紫云 | C161: 初中 | D161: 信息技术 | E161: AS0620220333 | F161: 64 | G161: 32.00 | H161: 86 | I161: 43.00 | J161: 75.00
A162: 160 | B162: 紫云 | C162: 初中 | D162: 信息技术 | E162: AS0620220335 | F162: 51 | G162: 25.50 | H162: 缺考 | I162: 0.00 | J162: 25.50 | K162: 面试缺考
A163: 161 | B163: 紫云 | C163: 初中 | D163: 信息技术 | E163: AS0620220337 | F163: 55 | G163: 27.50 | H163: 缺考 | I163: 0.00 | J163: 27.50 | K163: 面试缺考
A164: 162 | B164: 紫云 | C164: 初中 | D164: 信息技术 | E164: AS0620220338 | F164: 45 | G164: 22.50 | H164: 缺考 | I164: 0.00 | J164: 22.50 | K164: 面试缺考
A165: 163 | B165: 紫云 | C165: 初中 | D165: 信息技术 | E165: AS0620220339 | F165: 65 | G165: 32.50 | H165: 80.67 | I165: 40.34 | J165: 72.84
A166: 164 | B166: 紫云 | C166: 小学 | D166: 信息技术 | E166: AS0620220342 | F166: 61 | G166: 30.50 | H166: 82.67 | I166: 41.34 | J166: 71.84
A167: 165 | B167: 紫云 | C167: 小学 | D167: 信息技术 | E167: AS0620220343 | F167: 50 | G167: 25.00 | H167: 77 | I167: 38.50 | J167: 63.50
A168: 166 | B168: 紫云 | C168: 小学 | D168: 信息技术 | E168: AS0620220345 | F168: 61 | G168: 30.50 | H168: 83.67 | I168: 41.84 | J168: 72.34
A169: 167 | B169: 紫云 | C169: 小学 | D169: 信息技术 | E169: AS0620220346 | F169: 47 | G169: 23.50 | H169: 74.33 | I169: 37.17 | J169: 60.67
A170: 168 | B170: 紫云 | C170: 小学 | D170: 信息技术 | E170: AS0620220349 | F170: 53 | G170: 26.50 | H170: 74.67 | I170: 37.34 | J170: 63.84
A171: 169 | B171: 紫云 | C171: 小学 | D171: 信息技术 | E171: AS0620220350 | F171: 43 | G171: 21.50 | H171: 缺考 | I171: 0.00 | J171: 21.50 | K171: 面试缺考
A172: 170 | B172: 紫云 | C172: 小学 | D172: 科学 | E172: AS0620220352 | F172: 84 | G172: 42.00 | H172: 84.67 | I172: 42.34 | J172: 84.34
A173: 171 | B173: 紫云 | C173: 小学 | D173: 科学 | E173: AS0620220353 | F173: 25 | G173: 12.50 | H173: 缺考 | I173: 0.00 | J173: 12.50 | K173: 面试缺考
A174: 172 | B174: 紫云 | C174: 小学 | D174: 科学 | E174: AS0620220354 | F174: 40 | G174: 20.00 | H174: 缺考 | I174: 0.00 | J174: 20.00 | K174: 面试缺考
A175: 173 | B175: 紫云 | C175: 小学 | D175: 科学 | E175: AS0620220356 | F175: 40 | G175: 20.00 | H175: 84.83 | I175: 42.42 | J175: 62.42
A176: 174 | B176: 紫云 | C176: 小学 | D176: 科学 | E176: AS0620220357 | F176: 29 | G176: 14.50 | H176: 79.67 | I176: 39.84 | J176: 54.34
A177: 175 | B177: 紫云 | C177: 小学 | D177: 科学 | E177: AS0620220358 | F177: 60 | G177: 30.00 | H177: 81.17 | I177: 40.59 | J177: 70.59
A178: 176 | B178: 紫云 | C178: 小学 | D178: 科学 | E178: AS0620220359 | F178: 30 | G178: 15.00 | H178: 缺考 | I178: 0.00 | J178: 15.00 | K178: 面试缺考
A179: 177 | B179: 紫云 | C179: 小学 | D179: 科学 | E179: AS0620220360 | F179: 55 | G179: 27.50 | H179: 86 | I179: 43.00 | J179: 70.50
A180: 178 | B180: 紫云 | C180: 初中 | D180: 英语 | E180: AS0620220362 | F180: 75.5 | G180: 37.75 | H180: 75.13 | I180: 37.57 | J180: 75.32
A181: 179 | B181: 紫云 | C181: 初中 | D181: 英语 | E181: AS0620220365 | F181: 77 | G181: 38.50 | H181: 80.17 | I181: 40.09 | J181: 78.59
A182: 180 | B182: 紫云 | C182: 初中 | D182: 英语 | E182: AS0620220366 | F182: 80.5 | G182: 40.25 | H182: 71.63 | I182: 35.82 | J182: 76.07
A183: 181 | B183: 紫云 | C183: 初中 | D183: 英语 | E183: AS0620220367 | F183: 79 | G183: 39.50 | H183: 80 | I183: 40.00 | J183: 79.50
A184: 182 | B184: 紫云 | C184: 初中 | D184: 英语 | E184: AS0620220368 | F184: 77.5 | G184: 38.75 | H184: 82.73 | I184: 41.37 | J184: 80.12
A185: 183 | B185: 紫云 | C185: 初中 | D185: 英语 | E185: AS0620220369 | F185: 78 | G185: 39.00 | H185: 73.07 | I185: 36.54 | J185: 75.54
A186: 184 | B186: 紫云 | C186: 初中 | D186: 英语 | E186: AS0620220372 | F186: 80.5 | G186: 40.25 | H186: 72.67 | I186: 36.34 | J186: 76.59
A187: 185 | B187: 紫云 | C187: 初中 | D187: 英语 | E187: AS0620220380 | F187: 75.5 | G187: 37.75 | H187: 74.53 | I187: 37.27 | J187: 75.02
A188: 186 | B188: 紫云 | C188: 初中 | D188: 英语 | E188: AS0620220381 | F188: 81.5 | G188: 40.75 | H188: 71.93 | I188: 35.97 | J188: 76.72
A189: 187 | B189: 紫云 | C189: 初中 | D189: 英语 | E189: AS0620220382 | F189: 78 | G189: 39.00 | H189: 73.93 | I189: 36.97 | J189: 75.97
A190: 188 | B190: 紫云 | C190: 初中 | D190: 英语 | E190: AS0620220389 | F190: 82.5 | G190: 41.25 | H190: 82.6 | I190: 41.30 | J190: 82.55
A191: 189 | B191: 紫云 | C191: 初中 | D191: 英语 | E191: AS0620220393 | F191: 79.5 | G191: 39.75 | H191: 缺考 | I191: 0.00 | J191: 39.75 | K191: 面试缺考
A192: 190 | B192: 紫云 | C192: 初中 | D192: 英语 | E192: AS0620220394 | F192: 77.5 | G192: 38.75 | H192: 缺考 | I192: 0.00 | J192: 38.75 | K192: 面试缺考
A193: 191 | B193: 紫云 | C193: 初中 | D193: 英语 | E193: AS0620220395 | F193: 81 | G193: 40.50 | H193: 74.29 | I193: 37.15 | J193: 77.65
A194: 192 | B194: 紫云 | C194: 初中 | D194: 英语 | E194: AS0620220398 | F194: 77 | G194: 38.50 | H194: 66.67 | I194: 33.34 | J194: 71.84
A195: 193 | B195: 紫云 | C195: 初中 | D195: 英语 | E195: AS0620220399 | F195: 77.5 | G195: 38.75 | H195: 71.33 | I195: 35.67 | J195: 74.42
A196: 194 | B196: 紫云 | C196: 初中 | D196: 英语 | E196: AS0620220400 | F196: 81.5 | G196: 40.75 | H196: 66 | I196: 33.00 | J196: 73.75
A197: 195 | B197: 紫云 | C197: 初中 | D197: 英语 | E197: AS0620220404 | F197: 77.5 | G197: 38.75 | H197: 缺考 | I197: 0.00 | J197: 38.75 | K197: 面试缺考
A198: 196 | B198: 紫云 | C198: 初中 | D198: 英语 | E198: AS0620220405 | F198: 75 | G198: 37.50 | H198: 82.5 | I198: 41.25 | J198: 78.75
A199: 197 | B199: 紫云 | C199: 初中 | D199: 英语 | E199: AS0620220406 | F199: 81.5 | G199: 40.75 | H199: 79 | I199: 39.50 | J199: 80.25
A200: 198 | B200: 紫云 | C200: 初中 | D200: 英语 | E200: AS0620220407 | F200: 82 | G200: 41.00 | H200: 72.93 | I200: 36.47 | J200: 77.47
... 204 more rows

Sheet 开发区
A1: 附件1 经济技术开发区2022年“特岗计划”教师招聘总成绩统计情况表
A2: 序号 | B2: 报考县区 | C2: 报考学段 | D2: 报考学科 | E2: 笔试准考证号 | F2: 笔试得分 | G2: 折算成绩(占总成绩50%） | H2: 面试得分 | I2: 折算成绩(占总成绩50%） | J2: 总成绩 | K2: 备注
A3: 1 | B3: 安顺经济技术开发区 | C3: 小学 | D3: 美术 | E3: AS0720220008 | F3: 68 | G3: =F3*0.5 -> 34 | H3: 85.8 | I3: =H3*0.5 -> 42.9 | J3: =G3+I3 -> 76.9
A4: 2 | B4: 安顺经济技术开发区 | C4: 小学 | D4: 美术 | E4: AS0720220001 | F4: 63 | G4: 31.5 | H4: 93.2 | I4: 46.6 | J4: 78.1
A5: 3 | B5: 安顺经济技术开发区 | C5: 小学 | D5: 美术 | E5: AS0720220020 | F5: 62 | G5: 31 | H5: 88.8 | I5: 44.4 | J5: 75.4
A6: 4 | B6: 安顺经济技术开发区 | C6: 小学 | D6: 数学 | E6: AS0720220029 | F6: 83 | G6: 41.5 | H6: 79.8 | I6: 39.9 | J6: 81.4
A7: 5 | B7: 安顺经济技术开发区 | C7: 小学 | D7: 数学 | E7: AS0720220025 | F7: 75 | G7: 37.5 | H7: 87.8 | I7: 43.9 | J7: 81.4
A8: 6 | B8: 安顺经济技术开发区 | C8: 小学 | D8: 数学 | E8: AS0720220026 | F8: 73 | G8: 36.5 | H8: 缺考 | I8: 0 | J8: 36.5 | K8: 面试缺考
A9: 7 | B9: 安顺经济技术开发区 | C9: 初中 | D9: 数学 | E9: AS0720220030 | F9: 51 | G9: 25.5 | H9: 83.4 | I9: =H9*0.5 -> 41.7 | J9: =G9+I9 -> 67.2
A10: 8 | B10: 安顺经济技术开发区 | C10: 小学 | D10: 体育 | E10: AS0720220037 | F10: 68 | G10: 34 | H10: 86.8 | I10: 43.4 | J10: 77.4
A11: 9 | B11: 安顺经济技术开发区 | C11: 小学 | D11: 体育 | E11: AS0720220035 | F11: 52 | G11: 26 | H11: 缺考 | I11: 0 | J11: 26 | K11: 面试缺考
A12: 10 | B12: 安顺经济技术开发区 | C12: 小学 | D12: 体育 | E12: AS0720220033 | F12: 40.5 | G12: 20.25 | H12: 缺考 | I12: 0 | J12: 20.25 | K12: 面试缺考
A13: 11 | B13: 安顺经济技术开发区 | C13: 初中 | D13: 体育 | E13: AS0720220043 | F13: 66.5 | G13: 33.25 | H13: 91 | I13: 45.5 | J13: 78.75
A14: 12 | B14: 安顺经济技术开发区 | C14: 初中 | D14: 体育 | E14: AS0720220044 | F14: 55 | G14: 27.5 | H14: 87 | I14: 43.5 | J14: 71
A15: 13 | B15: 安顺经济技术开发区 | C15: 初中 | D15: 体育 | E15: AS0720220041 | F15: 52.5 | G15: 26.25 | H15: 92.4 | I15: 46.2 | J15: 72.45
A16: 14 | B16: 安顺经济技术开发区 | C16: 小学 | D16: 音乐 | E16: AS0720220057 | F16: 78 | G16: 39 | H16: 90.4 | I16: 45.2 | J16: 84.2
A17: 15 | B17: 安顺经济技术开发区 | C17: 小学 | D17: 音乐 | E17: AS0720220050 | F17: 69.5 | G17: 34.75 | H17: 90.4 | I17: 45.2 | J17: 79.95
A18: 16 | B18: 安顺经济技术开发区 | C18: 小学 | D18: 音乐 | E18: AS0720220053 | F18: 58.5 | G18: 29.25 | H18: 86.4 | I18: 43.2 | J18: 72.45
A19: 17 | B19: 安顺经济技术开发区 | C19: 小学 | D19: 语文 | E19: AS0720220062 | F19: 71 | G19: 35.5 | H19: 92.2 | I19: 46.1 | J19: 81.6
A20: 18 | B20: 安顺经济技术开发区 | C20: 小学 | D20: 语文 | E20: AS0720220067 | F20: 67 | G20: 33.5 | H20: 85 | I20: 42.5 | J20: 76
A21: 19 | B21: 安顺经济技术开发区 | C21: 小学 | D21: 语文 | E21: AS0720220063 | F21: 66 | G21: 33 | H21: 86.8 | I21: 43.4 | J21: 76.4
A22: 20 | B22: 安顺经济技术开发区 | C22: 小学 | D22: 语文 | E22: AS0720220081 | F22: 66 | G22: 33 | H22: 87.6 | I22: 43.8 | J22: 76.8
A23: 21 | B23: 安顺经济技术开发区 | C23: 小学 | D23: 语文 | E23: AS0720220058 | F23: 64 | G23: 32 | H23: 缺考 | I23: 0 | J23: 32 | K23: 面试缺考
A24: 22 | B24: 安顺经济技术开发区 | C24: 小学 | D24: 语文 | E24: AS0720220078 | F24: 63 | G24: 31.5 | H24: 82.8 | I24: =H24*0.5 -> 41.4 | J24: =G24+I24 -> 72.9
A25: 23 | B25: 安顺经济技术开发区 | C25: 小学 | D25: 语文 | E25: AS0720220093 | F25: 63 | G25: 31.5 | H25: 83.8 | I25: 41.9 | J25: 73.4
A26: 24 | B26: 安顺经济技术开发区 | C26: 小学 | D26: 语文 | E26: AS0720220095 | F26: 61 | G26: 30.5 | H26: 89.4 | I26: 44.7 | J26: 75.2
A27: 25 | B27: 安顺经济技术开发区 | C27: 小学 | D27: 语文 | E27: AS0720220072 | F27: 60 | G27: 30 | H27: 74.2 | I27: 37.1 | J27: 67.1
A28: 26 | B28: 安顺经济技术开发区 | C28: 小学 | D28: 语文 | E28: AS0720220074 | F28: 60 | G28: 30 | H28: 缺考 | I28: 0 | J28: 30 | K28: 面试缺考
A29: 27 | B29: 安顺经济技术开发区 | C29: 初中 | D29: 语文 | E29: AS0720220080 | F29: 71 | G29: 35.5 | H29: 缺考 | I29: 0 | J29: 35.5 | K29: 面试缺考
A30: 28 | B30: 安顺经济技术开发区 | C30: 初中 | D30: 语文 | E30: AS0720220091 | F30: 68 | G30: 34 | H30: 86.1 | I30: =H30*0.5 -> 43.05 | J30: 77.05
A31: 29 | B31: 安顺经济技术开发区 | C31: 初中 | D31: 语文 | E31: AS0720220075 | F31: 67 | G31: 33.5 | H31: 79.6 | I31: =H31*0.5 -> 39.8 | J31: 73.3
